Workbook

Sheet Introduction
B2: Mise à jour automatique des données - version 2025-02 → il se peut que l'ouverture prenne légèrement plus de temps qu'auparavant - en cas de soucis, n'hésitez pas à retélécharger l'outil sur notre site internet →
B4: A ce jour, les données de RevTool ne remontent que jusqu'au 1er janvier 2018 !
C5: L'outil de suivi de l'évolution des prix dans le secteur de la construction. Attention ! Cet outil n'est pas un instrument juridique, mais bien un outil de calcul.
C7: Découvrez l'outil en 4 étapes !
B17: Profitez des feuilles bonus : Elles sont cachées par défaut, cliquez sur les boutons blancs afin de les faire apparaître
C18: Feuille | D18: Cette feuille résume l'évolution des prix sur plusieurs périodes d'analyses. Les résultats visibles correspondent à l'application de la formule de révision des prix calculée chaque mois selon les paramètres encodés dans la feuille « Formule de révision courante ». (indice matériaux, indice salaire, coefficients)
D19: Vous pouvez également faire une prévision sur cette feuille de ce que le prix pourrait être après un certain laps de temps (si le démarrage du projet n’est prévu que pour dans 10 mois par exemple).
D20: Veuillez noter, cependant, que les résultats de ce procédé sont estimatifs. Nous ne sommes malheureusement pas en mesure de prévoir l’évolution future des prix.
C22: Feuille | D22: Cette feuille de calcul vous offre la fonctionnalité de vérifier rapidement des cumuls de remises ou d'augmentations de prix.
D23: Vérifiez rapidement quels pourcentages de majoration (fi) il ne faut pas dépasser afin de ne pas atteindre les prix publics HTVA de vos fournisseurs.
D24: Vous pouvez calculer l’impact final sur le budget du client en appliquant l’évolution de prix comme première majoration et le taux de TVA applicable comme seconde majoration. De ce fait vous pourrez connaître la différence entre le budget final du client par rapport au budget initial en les comparant.
C26: Feuilles | D26: Ces feuilles de calcul sont disponibles pour votre information et sont les banques de données sur lesquelles sont notamment basées les autres feuilles de calcul.
D27: Vous pouvez les consulter si une analyse plus approfondie vous intéresse.
D28: Ces feuilles sont mises à jour au moins une fois par mois.
D30: Cette feuille vous résume l'inflation sur plusieurs périodes d'analyses précédentes … ... Et vous permet de faire des prévisions ESTIMATIVES sur ce que le prix « POURRAIT » être après un certain laps de temps, selon un évolution ' constante ' des prix. → Nous ne sommes évidemment pas en possession d’une boule de cristal.
C32: Nous attirons votre attention que l'indexation des prix n'est pas automatique. Le prix convenu avec le client doit être respecté et ne peut être adapté unilatéralement
C34: Dans certains cas, les documents contratuels ou du marché prévoient l'utilisation d'une formule de révision qui permet de valoriser une évolution des prix des matériaux et de la main d'oeuvre (à la hausse comme à la baisse)
C36: RevTool a été conçu par Buildwise afin de sensibiliser ses membres à l’impact de l’évolution des prix dans le secteur de la construction. Buildwise ne peut cependant être tenu responsable de l’application pour un marché spécifique des calculs réalisées. Ceux-ci dépendent toujours des documents du marché. Buildwise n’offre aucune garantie explicite ou implicite et la garantie d’adéquation à un usage bien déterminé est d’ailleurs exclue. L’utilisateur vérifiera si les résultats ainsi obtenus peuvent être utilisés dans le cadre de ses objectifs et les testera toujours à l’aide d’autres moyens. Il est seul responsable de leur exactitude. Buildwise ne garantit toutefois pas que RevTool est totalement exempt de bugs ou d’erreurs. Buildwise fera tous les efforts raisonnables pour garantir le bon fonctionnement de l’application.
C42: Pour toute question relative à l'outil et à son utilisation, contactez la division "Gestion & Qualité" de Buildwise
C43: gebe@buildwise.be | D43: https://www.buildwise.be/fr/expertise-soutien/gestion-bim/
C45: Pour toute question juridique sur l'application des formules de révision, contactez Embuild :
C46: https://embuild.be/fr
C54: Vers les conditions juridiques de Buildwise

Sheet Graphique évolution des indices
B2: Cette feuille vous permet de disposer d'une vue graphique de l'évolution de l'ensemble des indices de prix disponibles dans l'outil en utilisant la fontionnalité du filtre du graphique. Utiliser la fonctionnalité du filtre : cliquer sur le graphique, puis sélectionner le 3ème symbole qui apparaît dans le coin supérieur droit, à l'extérieur de celui-ci. (en forme d'entonnoir) Vous pouvez dès lors sélectionner les données et périodes que vous désirez faire apparâitre / disparaître. (N'oubliez pas de cliquer sur "appliquer", tout en bas de la fenêtre)
B6: Si vous ne voyez pas les dates/données correctement, n'hésitez pas à raffraichir les données → Onglet « Données » (datas) → Section « Requête et connexions » → « Actualiser tout » → Patientez … et c'est OK !
AM124: Matériaux pierreux naturels et sables | BN124: Métaux | CU124: Bois | CY124: Terre cuite | DC124: Ciment | DG124: Produits en béton | DN124: Produits combustibles et bitumineux | DY124: Matières plastiques | EH124: GRYMAFER | EL124: Electricité indice à la consommation Statbel 04.5.1.0 | EM124: Gaz naturel indice à la consommation Statbel 04.5.2.1 | EN124: Eau indice à la consommation Statbel 04.4.1.0 | EO124: IPC Indice des prix à la consommation (Statbel) | EP124: Inflation générale (Statbel) | EQ124: Indice Santé (Statbel) | ER124: Indice Production dans la construction (Statbel) | ES124: Indice Loyers (Statbel) | EV124: Services | FH124: Secteurs
B125: Période | C125: =Indices_courants___2025[[#Headers],[indice "i"]] -> indice "i" | D125: =Indices_courants___2025[[#Headers],[indice "i2021"]] -> indice "i2021" | E125: =Indices_courants___2025[[#Headers],[indice "K1"]] -> indice "K1" | F125: =Indices_courants___2025[[#Headers],[indice "K2"]] -> indice "K2" | G125: =Indices_courants___2025[[#Headers],[indice "M"]] -> indice "M" | H125: =Indices_courants___2025[[#Headers],[indice "MM"]] -> indice "MM" | I125: ='Rétrospectives & prévisions'!R56 -> Inflation générale belge (Indicedes prix à la consommation 'IPC' Statbel) | J125: ='Rétrospectives & prévisions'!O56 -> Evolution des prix totale selon formule de révision des prix (a = 40% / b = 40% / c = 20% / indice "s" - cat A (< 10 p) / indice "i2021" ) | K125: =Indices_courants___2025[[#Headers],[IPP 23 - Fabrication d’autres produits minéraux non métalliques]] -> IPP 23 - Fabrication d’autres produits minéraux non métalliques | L125: =Indices_courants___2025[[#Headers],[IPP 24 - Métallurgie]] -> IPP 24 - Métallurgie | M125: =Indices_courants___2025[[#Headers],[IPP 161 - Sciage et rabotage du bois]] -> IPP 161 - Sciage et rabotage du bois | N125: =Indices_courants___2025[[#Headers],[IPP 162 - Fabrication d’articles en bois, liège, vannerie et sparterie]] -> IPP 162 - Fabrication d’articles en bois, liège, vannerie et sparterie | O125: =Indices_courants___2025[[#Headers],[IPP 203 - Fabrication de peintures, vernis, encres et mastics]] -> IPP 203 - Fabrication de peintures, vernis, encres et mastics | P125: =Indices_courants___2025[[#Headers],[IPP 205 - Fabrication d’autres produits chimiques]] -> IPP 205 - Fabrication d’autres produits chimiques | Q125: =Indices_courants___2025[[#Headers],[IPP 222 - Fabrication de produits en plastique]] -> IPP 222 - Fabrication de produits en plastique | R125: =Indices_courants___2025[[#Headers],[IPP 231 - Fabrication de verre et d’articles en verre]] -> IPP 231 - Fabrication de verre et d’articles en verre | S125: =Indices_courants___2025[[#Headers],[IPP 233 - Fabrication de matériaux de construction en terre cuite]] -> IPP 233 - Fabrication de matériaux de construction en terre cuite | T125: =Indices_courants___2025[[#Headers],[IPP 235 - Fabrication de ciment, chaux et plâtre]] -> IPP 235 - Fabrication de ciment, chaux et plâtre | U125: =Indices_courants___2025[[#Headers],[IPP 236 - Fabrication d’ouvrages en béton, en ciment ou en plâtre]] -> IPP 236 - Fabrication d’ouvrages en béton, en ciment ou en plâtre | V125: =Indices_courants___2025[[#Headers],[IPP 237 - Taille, façonnage et finissage de pierres]] -> IPP 237 - Taille, façonnage et finissage de pierres | W125: =Indices_courants___2025[[#Headers],[IPP 239 - Fabrication de produits abrasifs et de produits minéraux non métalliques n.c.a.]] -> IPP 239 - Fabrication de produits abrasifs et de produits minéraux non métalliques n.c.a. | X125: =Indices_courants___2025[[#Headers],[IPP 241 - Sidérurgie]] -> IPP 241 - Sidérurgie | Y125: =Indices_courants___2025[[#Headers],[IPP 243 - Fabrication d’autres produits de première transformation de l’acier]] -> IPP 243 - Fabrication d’autres produits de première transformation de l’acier | Z125: =Indices_courants___2025[[#Headers],[IPP 244 - Production de métaux précieux et d’autres métaux non ferreux]] -> IPP 244 - Production de métaux précieux et d’autres métaux non ferreux | AA125: =Indices_courants___2025[[#Headers],[IPP 251 - Fabrication d’éléments en métal pour la construction]] -> IPP 251 - Fabrication d’éléments en métal pour la construction | AB125: =Indices_courants___2025[[#Headers],[IPP 252 - Fabrication de réservoirs, citernes et conteneurs métalliques]] -> IPP 252 - Fabrication de réservoirs, citernes et conteneurs métalliques | AC125: =Indices_courants___2025[[#Headers],[IPP 257 - Fabrication de coutellerie, d’outillage et de quincaillerie]] -> IPP 257 - Fabrication de coutellerie, d’outillage et de quincaillerie | AD125: =Indices_courants___2025[[#Headers],[IPP 259 - Fabrication d’autres ouvrages en métaux]] -> IPP 259 - Fabrication d’autres ouvrages en métaux | AE125: =Indices_courants___2025[[#Headers],[IPP 263 - Fabrication d’équipements de communication]] -> IPP 263 - Fabrication d’équipements de communication | AF125: =Indices_courants___2025[[#Headers],[IPP 271 - Fabrication de moteurs, génératrices et transformateurs électriques et de matériel de distribution et de commande électrique]] -> IPP 271 - Fabrication de moteurs, génératrices et transformateurs électriques et de matériel de distribution et de commande électrique | AG125: =Indices_courants___2025[[#Headers],[IPP 273 - Fabrication de fils et câbles et de matériel d’installation électrique]] -> IPP 273 - Fabrication de fils et câbles et de matériel d’installation électrique | AH125: =Indices_courants___2025[[#Headers],[IPP 274 - Fabrication d’appareils d’éclairage électrique]] -> IPP 274 - Fabrication d’appareils d’éclairage électrique | AI125: =Indices_courants___2025[[#Headers],[IPP 282 - Fabrication d’autres machines d’usage général]] -> IPP 282 - Fabrication d’autres machines d’usage général | AJ125: =Indices_courants___2025[[#Headers],[IPP 310 - Fabrication de meubles]] -> IPP 310 - Fabrication de meubles | AK125: =Indices_courants___2025[[#Headers],[IPP 081 - Extraction de pierres, de sables et d’argiles]] -> IPP 081 - Extraction de pierres, de sables et d’argiles | AL125: =Indices_courants___2025[[#Headers],[CIMENT (série spécifique - enquête)]] -> CIMENT (série spécifique - enquête) | AM125: =Indices_TP___2025[[#Headers],[TP 101 - porphyre concassé - 40/56]] -> TP 101 - porphyre concassé - 40/56 | AN125: =Indices_TP___2025[[#Headers],[TP 102 - porphyre concassé - 20/32]] -> TP 102 - porphyre concassé - 20/32 | AO125: =Indices_TP___2025[[#Headers],[TP 103 - porphyre concassé - 6/20]] -> TP 103 - porphyre concassé - 6/20 | AP125: =Indices_TP___2025[[#Headers],[TP 104 - porphyre concassé - 2/6]] -> TP 104 - porphyre concassé - 2/6 | AQ125: =Indices_TP___2025[[#Headers],[TP 105 - porphyre concassé - tout calibre (àpd 12/2023)]] -> TP 105 - porphyre concassé - tout calibre (àpd 12/2023) | AR125: =Indices_TP___2025[[#Headers],[TP 109 - grès concassé - 32/56]] -> TP 109 - grès concassé - 32/56 | AS125: =Indices_TP___2025[[#Headers],[TP 110 - grès concassé - 20/32]] -> TP 110 - grès concassé - 20/32 | AT125: =Indices_TP___2025[[#Headers],[TP 111 - grès concassé - 6/20]] -> TP 111 - grès concassé - 6/20 | AU125: =Indices_TP___2025[[#Headers],[TP 112 - grès concassé - 2/6]] -> TP 112 - grès concassé - 2/6 | AV125: =Indices_TP___2025[[#Headers],[TP 115 - grès concassé - tout calibre (àpd 12/2023)]] -> TP 115 - grès concassé - tout calibre (àpd 12/2023) | AW125: =Indices_TP___2025[[#Headers],[TP 117 - pierres calcaires du Tournaisis - 20/32]] -> TP 117 - pierres calcaires du Tournaisis - 20/32 | AX125: =Indices_TP___2025[[#Headers],[TP 118 - pierres calcaires du Tournaisis - 14/20]] -> TP 118 - pierres calcaires du Tournaisis - 14/20 | AY125: =Indices_TP___2025[[#Headers],[TP 119 - pierres calcaires du Tournaisis - 6/14]] -> TP 119 - pierres calcaires du Tournaisis - 6/14 | AZ125: =Indices_TP___2025[[#Headers],[TP 120 - pierres calcaires du Tournaisis - 2/6]] -> TP 120 - pierres calcaires du Tournaisis - 2/6 | BA125: =Indices_TP___2025[[#Headers],[TP 121 - pierres calcaires du Tournaisis - 0/2 - 0/4]] -> TP 121 - pierres calcaires du Tournaisis - 0/2 - 0/4 | BB125: =Indices_TP___2025[[#Headers],[TP 125 - pierres calcaires du Tournaisis - tout calibre (àpd 12/2023)]] -> TP 125 - pierres calcaires du Tournaisis - tout calibre (àpd 12/2023) | BC125: =Indices_TP___2025[[#Headers],[TP 130 - sables belges - de pavage]] -> TP 130 - sables belges - de pavage | BD125: =Indices_TP___2025[[#Headers],[TP 131 - sables belges - pour béton]] -> TP 131 - sables belges - pour béton | BE125: =Indices_TP___2025[[#Headers],[TP 132 - graviers de rivières belges - gravier 4/28]] -> TP 132 - graviers de rivières belges - gravier 4/28 | BF125: =Indices_TP___2025[[#Headers],[TP 133 - graviers de rivières belges - sable de Meuse]] -> TP 133 - graviers de rivières belges - sable de Meuse | BG125: =Indices_TP___2025[[#Headers],[TP 134 - graviers de rivières belges - concassé 2/6]] -> TP 134 - graviers de rivières belges - concassé 2/6 | BH125: =Indices_TP___2025[[#Headers],[TP 135 - graviers de rivières belges - concassé 6/20]] -> TP 135 - graviers de rivières belges - concassé 6/20 | BI125: =Indices_TP___2025[[#Headers],[TP 136 - graviers de rivières belges - concassé 2/32]] -> TP 136 - graviers de rivières belges - concassé 2/32 | BJ125: =Indices_TP___2025[[#Headers],[TP 137 - graviers importés par bateau - vers Bruxelles]] -> TP 137 - graviers importés par bateau - vers Bruxelles | BK125: =Indices_TP___2025[[#Headers],[TP 137² - graviers importés par bateau - vers Anvers]] -> TP 137² - graviers importés par bateau - vers Anvers | BL125: =Indices_TP___2025[[#Headers],[TP 138 - sables importés par bateau - vers Bruxelles]] -> TP 138 - sables importés par bateau - vers Bruxelles | BM125: =Indices_TP___2025[[#Headers],[TP 138² - sables importés par bateau - vers Anvers]] -> TP 138² - sables importés par bateau - vers Anvers | BN125: =Indices_TP___2025[[#Headers],[TP 205 - tôles minces laminées à froid - 1mm (voir TP 234)]] -> TP 205 - tôles minces laminées à froid - 1mm (voir TP 234) | BO125: =Indices_TP___2025[[#Headers],[TP 210 - profilés - aciers AE 355 D (voir TP 231)]] -> TP 210 - profilés - aciers AE 355 D (voir TP 231) | BP125: =Indices_TP___2025[[#Headers],[TP 211 - aciers marchands - aciers courants AE 235 A (voir TP 230)]] -> TP 211 - aciers marchands - aciers courants AE 235 A (voir TP 230) | BQ125: =Indices_TP___2025[[#Headers],[TP 212 - tôles fortes - aciers AE 355 D (voir TP 232)]] -> TP 212 - tôles fortes - aciers AE 355 D (voir TP 232) | BR125: =Indices_TP___2025[[#Headers],[TP 213 - profilés - aciers AE 235 C (voir TP 231)]] -> TP 213 - profilés - aciers AE 235 C (voir TP 231) | BS125: =Indices_TP___2025[[#Headers],[TP 215 - tôles fortes - aciers AE 235 A (voir TP 232)]] -> TP 215 - tôles fortes - aciers AE 235 A (voir TP 232) | BT125: =Indices_TP___2025[[#Headers],[TP 216 - tôles moyennes - aciers courants A 320 (voir TP 232)]] -> TP 216 - tôles moyennes - aciers courants A 320 (voir TP 232) | BU125: =Indices_TP___2025[[#Headers],[TP 217 - profilés - aciers courants AE 235 A (voir TP 231)]] -> TP 217 - profilés - aciers courants AE 235 A (voir TP 231) | BV125: =Indices_TP___2025[[#Headers],[TP 218 - ronds à béton - BE 500 crênelés]] -> TP 218 - ronds à béton - BE 500 crênelés | BW125: =Indices_TP___2025[[#Headers],[TP 219 - aciers marchands - aciers AE 355 C (voir TP 230)]] -> TP 219 - aciers marchands - aciers AE 355 C (voir TP 230) | BX125: =Indices_TP___2025[[#Headers],[TP 220 - tôles fortes - aciers courants A 320 (voir TP 232)]] -> TP 220 - tôles fortes - aciers courants A 320 (voir TP 232) | BY125: =Indices_TP___2025[[#Headers],[TP 221 - tôles minces laminées à chaud - aciers courants A 320 - 1,5 mm (voir TP 233)]] -> TP 221 - tôles minces laminées à chaud - aciers courants A 320 - 1,5 mm (voir TP 233) | BZ125: =Indices_TP___2025[[#Headers],[TP 222 - tôles minces laminées à chaud - aciers courants A 320 - 2 mm (voir TP 233)]] -> TP 222 - tôles minces laminées à chaud - aciers courants A 320 - 2 mm (voir TP 233) | CA125: =Indices_TP___2025[[#Headers],[TP 223 - tôles minces laminées à chaud - aciers courants A 320 - 2,75 mm (voir TP 233)]] -> TP 223 - tôles minces laminées à chaud - aciers courants A 320 - 2,75 mm (voir TP 233) | CB125: =Indices_TP___2025[[#Headers],[TP 224 - ronds à béton - diam. 10 à 40 mm]] -> TP 224 - ronds à béton - diam. 10 à 40 mm | CC125: =Indices_TP___2025[[#Headers],[TP 226 - palplanches - profilés AZ 18 - PAE 320]] -> TP 226 - palplanches - profilés AZ 18 - PAE 320 | CD125: =Indices_TP___2025[[#Headers],[TP 227 - fonte de moulage - fonte]] -> TP 227 - fonte de moulage - fonte | CE125: =Indices_TP___2025[[#Headers],[TP 230 - Acier - Aciers Marchands (àpd 12/2023)]] -> TP 230 - Acier - Aciers Marchands (àpd 12/2023) | CF125: =Indices_TP___2025[[#Headers],[TP 231 - Acier - Poutrelles H (àpd 12/2023)]] -> TP 231 - Acier - Poutrelles H (àpd 12/2023) | CG125: =Indices_TP___2025[[#Headers],[TP 232 - Acier - Tôles (àpd 12/2023)]] -> TP 232 - Acier - Tôles (àpd 12/2023) | CH125: =Indices_TP___2025[[#Headers],[TP 233 - Acier - Bobines laminées à chaud (àpd 12/2023)]] -> TP 233 - Acier - Bobines laminées à chaud (àpd 12/2023) | CI125: =Indices_TP___2025[[#Headers],[TP 234 - Acier - Bobines laminées à froid (àpd 12/2023)]] -> TP 234 - Acier - Bobines laminées à froid (àpd 12/2023) | CJ125: =Indices_TP___2025[[#Headers],[TP 235 - Acier - Galvanisé (àpd 12/2023)]] -> TP 235 - Acier - Galvanisé (àpd 12/2023) | CK125: =Indices_TP___2025[[#Headers],[TP 236 - Aciers inoxydables 304 - bobines laminées à froid (àpd 12/2023)]] -> TP 236 - Aciers inoxydables 304 - bobines laminées à froid (àpd 12/2023) | CL125: =Indices_TP___2025[[#Headers],[TP 259 - plomb ordinaire]] -> TP 259 - plomb ordinaire | CM125: =Indices_TP___2025[[#Headers],[TP 260 - cuivre électrolytique (voir TP 260 bis)]] -> TP 260 - cuivre électrolytique (voir TP 260 bis) | CN125: =Indices_TP___2025[[#Headers],[TP 260 bis - cuivre - brut]] -> TP 260 bis - cuivre - brut | CO125: =Indices_TP___2025[[#Headers],[TP 261 - zinc - laminé (voir TP 261 bis)]] -> TP 261 - zinc - laminé (voir TP 261 bis) | CP125: =Indices_TP___2025[[#Headers],[TP 261 bis - zinc brut]] -> TP 261 bis - zinc brut | CQ125: =Indices_TP___2025[[#Headers],[TP 262 - aluminium - tôles en alliage 1050 (1m x 2m) - ép. 1 à 3 mm (voir TP 262 ter)]] -> TP 262 - aluminium - tôles en alliage 1050 (1m x 2m) - ép. 1 à 3 mm (voir TP 262 ter) | CR125: =Indices_TP___2025[[#Headers],[TP 262 bis - aluminium - brut]] -> TP 262 bis - aluminium - brut | CS125: =Indices_TP___2025[[#Headers],[TP 262 ter - tôles aluminium (àpd 12/2023)]] -> TP 262 ter - tôles aluminium (àpd 12/2023) | CT125: =Indices_TP___2025[[#Headers],[TP 263 - nickel brut]] -> TP 263 - nickel brut | CU125: =Indices_TP___2025[[#Headers],[TP 339 - bois de sciage epicea - epicea indigene V - 2½ x 7 - charpente]] -> TP 339 - bois de sciage epicea - epicea indigene V - 2½ x 7 - charpente | CV125: =Indices_TP___2025[[#Headers],[TP 340 - bois de sciage epicea - epicea indigene V - 4/4 x 4 - voliges]] -> TP 340 - bois de sciage epicea - epicea indigene V - 4/4 x 4 - voliges | CW125: =Indices_TP___2025[[#Headers],[TP 341 - bois de sciage pin du nord - pin du nord V - 2½ x 7 - charpente]] -> TP 341 - bois de sciage pin du nord - pin du nord V - 2½ x 7 - charpente | CX125: =Indices_TP___2025[[#Headers],[TP 342 - bois de sciage pin du nord - pin du nord V - 4/4 x 4 - voliges]] -> TP 342 - bois de sciage pin du nord - pin du nord V - 4/4 x 4 - voliges | CY125: =Indices_TP___2025[[#Headers],[TP 442 - blocs terre cuite perforés - L : 290 / l : 140 /h : 90]] -> TP 442 - blocs terre cuite perforés - L : 290 / l : 140 /h : 90 | CZ125: =Indices_TP___2025[[#Headers],[TP 443 - blocs terre cuite perforés - L : 290 / l : 140 / h : 140]] -> TP 443 - blocs terre cuite perforés - L : 290 / l : 140 / h : 140 | DA125: =Indices_TP___2025[[#Headers],[TP 445 - briques de maçonnerie - ordinaire : L : 190 / l : 09 / h : 65]] -> TP 445 - briques de maçonnerie - ordinaire : L : 190 / l : 09 / h : 65 | DB125: =Indices_TP___2025[[#Headers],[TP 448 - briques de maçonnerie - à la main : L : 190 / l : 90 / h : 50 - argile locale]] -> TP 448 - briques de maçonnerie - à la main : L : 190 / l : 90 / h : 50 - argile locale | DC125: =Indices_TP___2025[[#Headers],[TP 462 - ciment - classe 32,5]] -> TP 462 - ciment - classe 32,5 | DD125: =Indices_TP___2025[[#Headers],[TP 464 - ciment - classe 42,5]] -> TP 464 - ciment - classe 42,5 | DE125: =Indices_TP___2025[[#Headers],[TP 466 - ciment - classe 52,5]] -> TP 466 - ciment - classe 52,5 | DF125: =Indices_TP___2025[[#Headers],[TP 467 - ciment - en sacs]] -> TP 467 - ciment - en sacs | DG125: =Indices_TP___2025[[#Headers],[TP 470 - produits béton pour la voirie - carreaux - 30/30/6 cm]] -> TP 470 - produits béton pour la voirie - carreaux - 30/30/6 cm | DH125: =Indices_TP___2025[[#Headers],[TP 475 - produits béton pour la voirie - pavés - 22/11/10 cm]] -> TP 475 - produits béton pour la voirie - pavés - 22/11/10 cm | DI125: =Indices_TP___2025[[#Headers],[TP 476 - produits béton pour le bâtiment - blocs creux - classe p 0,8 - 39/19/19]] -> TP 476 - produits béton pour le bâtiment - blocs creux - classe p 0,8 - 39/19/19 | DJ125: =Indices_TP___2025[[#Headers],[TP 477 - produits béton pour le bâtiment - blocs pleins - classe p 2,2 - 39/19/19]] -> TP 477 - produits béton pour le bâtiment - blocs pleins - classe p 2,2 - 39/19/19 | DK125: =Indices_TP___2025[[#Headers],[TP 480 - produits béton pour la voirie - bordures 21-411 type 1A - 100/35/15]] -> TP 480 - produits béton pour la voirie - bordures 21-411 type 1A - 100/35/15 | DL125: =Indices_TP___2025[[#Headers],[TP 486 - produits béton pour la voirie - tuyaux non armés - L : 2,5 m - diam. 80cm]] -> TP 486 - produits béton pour la voirie - tuyaux non armés - L : 2,5 m - diam. 80cm | DM125: =Indices_TP___2025[[#Headers],[TP 486² - produits béton pour la voirie - tuyaux non armés - L : 2 m - diam. 80cm]] -> TP 486² - produits béton pour la voirie - tuyaux non armés - L : 2 m - diam. 80cm | DN125: =Indices_TP___2025[[#Headers],[TP 549 - Diesel B7 à la pompe - 10 ppm]] -> TP 549 - Diesel B7 à la pompe - 10 ppm | DO125: =Indices_TP___2025[[#Headers],[TP 549² - Diesel B7 à la pompe - 50 ppm]] -> TP 549² - Diesel B7 à la pompe - 50 ppm | DP125: =Indices_TP___2025[[#Headers],[TP 549³ - Diesel B7 à la pompe]] -> TP 549³ - Diesel B7 à la pompe | DQ125: =Indices_TP___2025[[#Headers],[TP 550 - Gazoil chauffage - 1000 ppm]] -> TP 550 - Gazoil chauffage - 1000 ppm | DR125: =Indices_TP___2025[[#Headers],[TP 550² - Gazoil chauffage - 2000 ppm]] -> TP 550² - Gazoil chauffage - 2000 ppm | DS125: =Indices_TP___2025[[#Headers],[TP 551 - Eurosuper 95 à la pompe - 10 ppm]] -> TP 551 - Eurosuper 95 à la pompe - 10 ppm | DT125: =Indices_TP___2025[[#Headers],[TP 551² - Eurosuper 95 à la pompe - 50 ppm]] -> TP 551² - Eurosuper 95 à la pompe - 50 ppm | DU125: =Indices_TP___2025[[#Headers],[TP 551³ - Eurosuper 95 à la pompe]] -> TP 551³ - Eurosuper 95 à la pompe | DV125: =Indices_TP___2025[[#Headers],[TP 552 - LPG]] -> TP 552 - LPG | DW125: =Indices_TP___2025[[#Headers],[TP 563 - Bitume pétrolier - fûts]] -> TP 563 - Bitume pétrolier - fûts | DX125: =Indices_TP___2025[[#Headers],[TP 564 - Bitume pétrolier - vrac]] -> TP 564 - Bitume pétrolier - vrac | DY125: =Indices_TP___2025[[#Headers],[TP 671 - polyester (UP) - non saturé liquide (stop 01/2024)]] -> TP 671 - polyester (UP) - non saturé liquide (stop 01/2024) | DZ125: =Indices_TP___2025[[#Headers],[TP 672 - PVC - chlorure de polyvinyl (voir TP 680)]] -> TP 672 - PVC - chlorure de polyvinyl (voir TP 680) | EA125: =Indices_TP___2025[[#Headers],[TP 673 - polyéthylène basse densité - PE/LD basse densité (voir TP 681)]] -> TP 673 - polyéthylène basse densité - PE/LD basse densité (voir TP 681) | EB125: =Indices_TP___2025[[#Headers],[TP 674 - polyéthylène haute densité - PE/HD haute densité (voir TP 683)]] -> TP 674 - polyéthylène haute densité - PE/HD haute densité (voir TP 683) | EC125: =Indices_TP___2025[[#Headers],[TP 675 - tubes polyéthylène - PE/HD haute densité (voir TP 683)]] -> TP 675 - tubes polyéthylène - PE/HD haute densité (voir TP 683) | ED125: =Indices_TP___2025[[#Headers],[TP 680 - PVC - tuyaux (àpd 12/2023)]] -> TP 680 - PVC - tuyaux (àpd 12/2023) | EE125: =Indices_TP___2025[[#Headers],[TP 681 - PELD - film (àpd 12/2023)]] -> TP 681 - PELD - film (àpd 12/2023) | EF125: =Indices_TP___2025[[#Headers],[TP 683 - PEHD - moulage par injection (àpd 12/2023)]] -> TP 683 - PEHD - moulage par injection (àpd 12/2023) | EG125: =Indices_TP___2025[[#Headers],[TP 684 - PP - polypropylène (homopolymère) (àpd 12/2023)]] -> TP 684 - PP - polypropylène (homopolymère) (àpd 12/2023) | EH125: Ronds à béton - GRYMAFER - RSR | EI125: Fil à froid - GRYMAFER - FKC | EJ125: Fil à chaud - GRYMAFER - CWH | EK125: Treillis - GRYMAFER - TNM | EL125: Electricité - Statbel - 04.5.1.0 | EM125: Gaz naturel - Statbel - 04.5.2.1 | EN125: Eau - Statbel - 04.4.1.0 | EO125: Indice des prix à la consommation (IPC) Statbel | EP125: Indice de l'inflation Statbel | EQ125: Indice santé Statbel | ER125: Indice de production pour secteur de la Construction - Statbel | ES125: Indice Loyers - Statbel | EU125: période | EV125: =Produits_et_services[[#Headers],[49.41 - Transports routiers de fret]] -> 49.41 - Transports routiers de fret | EW125: =Produits_et_services[[#Headers],[50.2 - Transports maritimes et côtiers de fret]] -> 50.2 - Transports maritimes et côtiers de fret | EX125: =Produits_et_services[[#Headers],[52.1 - Entreposage et stockage]] -> 52.1 - Entreposage et stockage | EY125: =Produits_et_services[[#Headers],[52.24 - Manutention]] -> 52.24 - Manutention | EZ125: =Produits_et_services[[#Headers],[53.2 - Autres activités de poste et de courrier]] -> 53.2 - Autres activités de poste et de courrier | FA125: =Produits_et_services[[#Headers],[61 - Télécommunications]] -> 61 - Télécommunications | FB125: =Produits_et_services[[#Headers],[62 - Programmation, conseil et autres activités informatiques]] -> 62 - Programmation, conseil et autres activités informatiques | FC125: =Produits_et_services[[#Headers],[71 - Activités d''architecture et d''ingénieurie; activités de contrôle et analyses techniques]] -> 71 - Activités d'architecture et d'ingénieurie; activités de contrôle et analyses techniques | FD125: =Produits_et_services[[#Headers],[73 - Publicité et études de marché]] -> 73 - Publicité et études de marché | FE125: =Produits_et_services[[#Headers],[78 - Activités liées à l''emploi]] -> 78 - Activités liées à l'emploi | FF125: =Produits_et_services[[#Headers],[80 - Enquêtes privées et sécurité]] -> 80 - Enquêtes privées et sécurité | FG125: =Produits_et_services[[#Headers],[81.2 - Activités de nettoyage]] -> 81.2 - Activités de nettoyage | FH125: =Produits_et_services[[#Headers],[90 - Energie]] -> 90 - Energie | FI125: =Produits_et_services[[#Headers],[255 - Métallurgie et travail des métaux]] -> 255 - Métallurgie et travail des métaux | FJ125: =Produits_et_services[[#Headers],[257 - Fabrications métalliques]] -> 257 - Fabrications métalliques | FK125: =Produits_et_services[[#Headers],[267 - Appareils électriques, machines électroniques, équipements de radio, TV et communication (fabrication)]] -> 267 - Appareils électriques, machines électroniques, équipements de radio, TV et communication (fabrication) | FL125: =Produits_et_services[[#Headers],[800 - Industries extractives (autres)]] -> 800 - Industries extractives (autres) | FM125: =Produits_et_services[[#Headers],[810 - Pierres, sables & argiles (extraction)]] -> 810 - Pierres, sables & argiles (extraction) | FN125: =Produits_et_services[[#Headers],[811 - Pierres ornementales et de construction, de pierres calcaires, de gypse, de craie et d''ardoise (extraction)]] -> 811 - Pierres ornementales et de construction, de pierres calcaires, de gypse, de craie et d'ardoise (extraction) | FO125: =Produits_et_services[[#Headers],[812 - Exploitation gravières et sablières, extraction d''argiles et de kaolin]] -> 812 - Exploitation gravières et sablières, extraction d'argiles et de kaolin | FP125: =Produits_et_services[[#Headers],[1083 - thé et café (transformation)]] -> 1083 - thé et café (transformation) | FQ125: =Produits_et_services[[#Headers],[1105 - Bière (fabrication)]] -> 1105 - Bière (fabrication) | FR125: =Produits_et_services[[#Headers],[1393 - Tapis et moquettes (Fabrication)]] -> 1393 - Tapis et moquettes (Fabrication) | FS125: =Produits_et_services[[#Headers],[1412 - Vêtements de travail (fabrication)]] -> 1412 - Vêtements de travail (fabrication) | FT125: =Produits_et_services[[#Headers],[1600 - Travail du bois et fabrication d''articles en bois et en liège, à l''exception des meubles; fabrication d''articles en vannerie et sparterie]] -> 1600 - Travail du bois et fabrication d'articles en bois et en liège, à l'exception des meubles; fabrication d'articles en vannerie et sparterie | FU125: =Produits_et_services[[#Headers],[1610 - Sciage et rabotage du bois]] -> 1610 - Sciage et rabotage du bois | FV125: =Produits_et_services[[#Headers],[1620 - Articles en bois, liège, vannerie et sparterie (fabrication)]] -> 1620 - Articles en bois, liège, vannerie et sparterie (fabrication) | FW125: =Produits_et_services[[#Headers],[1621 - Placage et panneaux bois (fabrication)]] -> 1621 - Placage et panneaux bois (fabrication) | FX125: =Produits_et_services[[#Headers],[1623 - Charpentes et autres menuiseries (fabrication)]] -> 1623 - Charpentes et autres menuiseries (fabrication) | FY125: =Produits_et_services[[#Headers],[1700 - Papier et carton (industrie)]] -> 1700 - Papier et carton (industrie) | FZ125: =Produits_et_services[[#Headers],[1920 - Rafinage du pétrole]] -> 1920 - Rafinage du pétrole | GA125: =Produits_et_services[[#Headers],[2000 - Industrie chimique]] -> 2000 - Industrie chimique | GB125: =Produits_et_services[[#Headers],[2010 - Produits chimiques de base, de produits azotés et d''engrais, de matières plastiques de base et de caoutchouc synthétique (fabrication)]] -> 2010 - Produits chimiques de base, de produits azotés et d'engrais, de matières plastiques de base et de caoutchouc synthétique (fabrication) | GC125: =Produits_et_services[[#Headers],[2012 - Colorants et pigments (fabrication)]] -> 2012 - Colorants et pigments (fabrication) | GD125: =Produits_et_services[[#Headers],[2013 - Autres produits chimiques inorganiques de base (fabrication)]] -> 2013 - Autres produits chimiques inorganiques de base (fabrication) | GE125: =Produits_et_services[[#Headers],[2016 - Matières plastiques de base (fabrication)]] -> 2016 - Matières plastiques de base (fabrication) | GF125: =Produits_et_services[[#Headers],[2030 - Peintures, mastics, vernis, encres (fabrication)]] -> 2030 - Peintures, mastics, vernis, encres (fabrication) | GG125: =Produits_et_services[[#Headers],[2200 - Caoutchouc et plastique (fabrication de produits)]] -> 2200 - Caoutchouc et plastique (fabrication de produits) | GH125: =Produits_et_services[[#Headers],[2210 - Caoutchouc (fabrication de produits)]] -> 2210 - Caoutchouc (fabrication de produits) | GI125: =Produits_et_services[[#Headers],[2220 - Plastique (fabrication de produits)]] -> 2220 - Plastique (fabrication de produits) | GJ125: =Produits_et_services[[#Headers],[2221 - Plastique : plaques, feuilles, tubes et profilés (fabrication en matière plastique)]] -> 2221 - Plastique : plaques, feuilles, tubes et profilés (fabrication en matière plastique) | GK125: =Produits_et_services[[#Headers],[2222 - Emballages plastiques (fabrication)]] -> 2222 - Emballages plastiques (fabrication) | GL125: =Produits_et_services[[#Headers],[2223 - Eléments plastiques pour la construction (fabrication)]] -> 2223 - Eléments plastiques pour la construction (fabrication) | GM125: =Produits_et_services[[#Headers],[2300 - Autres produits minéraux non métalliques (fabrication)]] -> 2300 - Autres produits minéraux non métalliques (fabrication) | GN125: =Produits_et_services[[#Headers],[2310 - Verre et articles en verre (fabrication)]] -> 2310 - Verre et articles en verre (fabrication) | GO125: =Produits_et_services[[#Headers],[2312 - Verre plat (façonnage et transformation)]] -> 2312 - Verre plat (façonnage et transformation) | GP125: =Produits_et_services[[#Headers],[2330 - Terre cuite (Fabrication de matériaux de construction)]] -> 2330 - Terre cuite (Fabrication de matériaux de construction) | GQ125: =Produits_et_services[[#Headers],[2332 - Briques, tuiles et produits de construction en terre cuite (fabrication)]] -> 2332 - Briques, tuiles et produits de construction en terre cuite (fabrication) | GR125: =Produits_et_services[[#Headers],[2350 - Ciment, chaux et plâtre (fabrication)]] -> 2350 - Ciment, chaux et plâtre (fabrication) | GS125: =Produits_et_services[[#Headers],[2351 - Ciment (fabrication)]] -> 2351 - Ciment (fabrication) | GT125: =Produits_et_services[[#Headers],[2360 - Ouvrages en béton, ciment ou plâtre (fabrication)]] -> 2360 - Ouvrages en béton, ciment ou plâtre (fabrication) | GU125: =Produits_et_services[[#Headers],[2361 - Eléments en béton pour la construction (fabrication)]] -> 2361 - Eléments en béton pour la construction (fabrication) | GV125: =Produits_et_services[[#Headers],[2363 - Béton prêt à l''emploi (fabrication)]] -> 2363 - Béton prêt à l'emploi (fabrication) | GW125: =Produits_et_services[[#Headers],[2369 - Autres ouvrages béton, ciment ou plâtre (fabrication)]] -> 2369 - Autres ouvrages béton, ciment ou plâtre (fabrication) | GX125: =Produits_et_services[[#Headers],[2370 - Pierre : taille, façonnage et finissage]] -> 2370 - Pierre : taille, façonnage et finissage | GY125: =Produits_et_services[[#Headers],[2390 - Produits abrasifs et de produits minéraux non métalliques n.c.a. (fabrication)]] -> 2390 - Produits abrasifs et de produits minéraux non métalliques n.c.a. (fabrication) | GZ125: =Produits_et_services[[#Headers],[2400 - Métallurgie]] -> 2400 - Métallurgie | HA125: =Produits_et_services[[#Headers],[2410 - Sidérurgie]] -> 2410 - Sidérurgie | HB125: =Produits_et_services[[#Headers],[2430 - Acier : autres produits de première transformation (fabrication)]] -> 2430 - Acier : autres produits de première transformation (fabrication) | HC125: =Produits_et_services[[#Headers],[2434 - Tréfilage à froid]] -> 2434 - Tréfilage à froid | HD125: =Produits_et_services[[#Headers],[2440 - Métaux précieux et d''autres métaux non ferreux (Production)]] -> 2440 - Métaux précieux et d'autres métaux non ferreux (Production) | HE125: =Produits_et_services[[#Headers],[2444 - Cuivre (Métallurgie)]] -> 2444 - Cuivre (Métallurgie) | HF125: =Produits_et_services[[#Headers],[2450 - Fonderie de métaux]] -> 2450 - Fonderie de métaux | HG125: =Produits_et_services[[#Headers],[2451 - Fonderie de fonte]] -> 2451 - Fonderie de fonte | HH125: =Produits_et_services[[#Headers],[2500 - Produits métalliques, à l''exception des machines et des équipements (fabrication)]] -> 2500 - Produits métalliques, à l'exception des machines et des équipements (fabrication) | HI125: =Produits_et_services[[#Headers],[2510 - Eléments en métal pour la construction (fabrication)]] -> 2510 - Eléments en métal pour la construction (fabrication) | HJ125: =Produits_et_services[[#Headers],[2511 - Structures métalliques et parties de structures (fabrication)]] -> 2511 - Structures métalliques et parties de structures (fabrication) | HK125: =Produits_et_services[[#Headers],[2512 - Portes et fenêtres métalliques (fabrication)]] -> 2512 - Portes et fenêtres métalliques (fabrication) | HL125: =Produits_et_services[[#Headers],[2520 - Réservoirs, citernes et conteneurs métalliques (fabrication)]] -> 2520 - Réservoirs, citernes et conteneurs métalliques (fabrication) | HM125: =Produits_et_services[[#Headers],[2521 - Radiateurs et chaudières pour le chauffage central (fabrication)]] -> 2521 - Radiateurs et chaudières pour le chauffage central (fabrication) | HN125: =Produits_et_services[[#Headers],[2600 - Produits informatiques, électroniques et optiques (fabrication)]] -> 2600 - Produits informatiques, électroniques et optiques (fabrication) | HO125: =Produits_et_services[[#Headers],[2630 - Equipements de communication (fabrication)]] -> 2630 - Equipements de communication (fabrication) | HP125: =Produits_et_services[[#Headers],[2700 - Equipements électriques (fabrication)]] -> 2700 - Equipements électriques (fabrication) | HQ125: =Produits_et_services[[#Headers],[2730 - Fils, câbles et matériel d''installation électrique (fabrication)]] -> 2730 - Fils, câbles et matériel d'installation électrique (fabrication) | HR125: =Produits_et_services[[#Headers],[2733 - Matériel d''installation électrique (fabrication)]] -> 2733 - Matériel d'installation électrique (fabrication) | HS125: =Produits_et_services[[#Headers],[2740 - Lampes et appareils d''éclairage électrique (fabrication)]] -> 2740 - Lampes et appareils d'éclairage électrique (fabrication) | HT125: =Produits_et_services[[#Headers],[2750 - Appareils ménagers (fabrication)]] -> 2750 - Appareils ménagers (fabrication) | HU125: =Produits_et_services[[#Headers],[2800 - Machines et équipements n.c.a. (fabrication)]] -> 2800 - Machines et équipements n.c.a. (fabrication) | HV125: =Produits_et_services[[#Headers],[2822 - Matériel de levage et de manutention (fabrication)]] -> 2822 - Matériel de levage et de manutention (fabrication) | HW125: =Produits_et_services[[#Headers],[2900 - Véhicules automobiles, de remorques et de semi-remorques (Construction et assemblage)]] -> 2900 - Véhicules automobiles, de remorques et de semi-remorques (Construction et assemblage) | HX125: =Produits_et_services[[#Headers],[3100 - Meubles (fabrication)]] -> 3100 - Meubles (fabrication) | HY125: =Produits_et_services[[#Headers],[3101 - Meubles de bureau et de magasin (fabrication)]] -> 3101 - Meubles de bureau et de magasin (fabrication) | HZ125: =Produits_et_services[[#Headers],[3102 - Meubles de cuisine (fabrication)]] -> 3102 - Meubles de cuisine (fabrication) | IA125: =Produits_et_services[[#Headers],[3200 - Autres industries manufacturières]] -> 3200 - Autres industries manufacturières | IB125: =Produits_et_services[[#Headers],[3300 - Machines (réparation et installation) & installations]] -> 3300 - Machines (réparation et installation) & installations | IC125: =Produits_et_services[[#Headers],[3500 - Electricité, gaz, vapeur et air conditionné (Production et distribution)]] -> 3500 - Electricité, gaz, vapeur et air conditionné (Production et distribution) | ID125: =Produits_et_services[[#Headers],[3510 - Electricité (Production, transport et distribution)]] -> 3510 - Electricité (Production, transport et distribution) | IE125: =Produits_et_services[[#Headers],[3520 - Gaz (production et distribution de combustibles gazeux)]] -> 3520 - Gaz (production et distribution de combustibles gazeux) | IF125: =Produits_et_services[[#Headers],[3600 - Eau (captage, traitement et distribution d''eau)]] -> 3600 - Eau (captage, traitement et distribution d'eau) | IH125: Période | II125: =Indices_courants___2025[[#Headers],[indice "s" - cat A (< 10 p)]] -> indice "s" - cat A (< 10 p) | IJ125: =Indices_courants___2025[[#Headers],[indice "s" - cat A (de 10 à 19 p)]] -> indice "s" - cat A (de 10 à 19 p) | IK125: =Indices_courants___2025[[#Headers],[indice "s" - cat A (≥ 20 p)]] -> indice "s" - cat A (≥ 20 p) | IL125: =Indices_courants___2025[[#Headers],[indice "s" - cat B (< 10 p)]] -> indice "s" - cat B (< 10 p) | IM125: =Indices_courants___2025[[#Headers],[indice "s" - cat B (de 10 à 19 p)]] -> indice "s" - cat B (de 10 à 19 p) | IN125: =Indices_courants___2025[[#Headers],[indice "s" - cat B (≥ 20 p)]] -> indice "s" - cat B (≥ 20 p) | IO125: =Indices_courants___2025[[#Headers],[indice "s" - cat C (< 10 p)]] -> indice "s" - cat C (< 10 p) | IP125: =Indices_courants___2025[[#Headers],[indice "s" - cat C (de 10 à 19 p)]] -> indice "s" - cat C (de 10 à 19 p) | IQ125: =Indices_courants___2025[[#Headers],[indice "s" - cat C (≥ 20 p)]] -> indice "s" - cat C (≥ 20 p) | IR125: =Indices_courants___2025[[#Headers],[indice "s" - cat D (< 10 p)]] -> indice "s" - cat D (< 10 p) | IS125: =Indices_courants___2025[[#Headers],[indice "s" - cat D (de 10 à 19 p)]] -> indice "s" - cat D (de 10 à 19 p) | IT125: =Indices_courants___2025[[#Headers],[indice "s" - cat D (≥ 20 p)]] -> indice "s" - cat D (≥ 20 p) | IU125: =Indices_courants___2025[[#Headers],[indice "s" - électriciens (< 10 p)]] -> indice "s" - électriciens (< 10 p) | IV125: =Indices_courants___2025[[#Headers],[indice "s" - électriciens (≥ 10 p)]] -> indice "s" - électriciens (≥ 10 p) | IW125: =Indices_courants___2025[[#Headers],[Indice T0 - asphalteurs]] -> Indice T0 - asphalteurs | IX125: =Indices_courants___2025[[#Headers],[Indice T1 - asphalteurs]] -> Indice T1 - asphalteurs | IY125: =Indices_courants___2025[[#Headers],[Indice T2 - asphalteurs]] -> Indice T2 - asphalteurs | IZ125: =Indices_courants___2025[[#Headers],[Indice T3 - asphalteurs]] -> Indice T3 - asphalteurs | JA125: =Indices_courants___2025[[#Headers],[Indice T4 - asphalteurs]] -> Indice T4 - asphalteurs | JB125: =Indices_courants___2025[[#Headers],[Indice T5 - asphalteurs]] -> Indice T5 - asphalteurs | JC125: =Indices_courants___2025[[#Headers],[Usines & Ateliers - CP 111]] -> Usines & Ateliers - CP 111 | JD125: CP 124 - construction - ouvriers | JE125: CP 200 - employés | JF125: CP 149.01 - électriciens - ouvriers | JG125: CP 116.0001 - Industrie chimique - manœuvres | JH125: CP 121 - Nettoyage - ouvriers | JI125: CP 111.0003 - Construction métallique - ouvriers | JJ125: CP 209 - Construction métallique - employés | JK125: CP 126 - Transformation bois - ouvriers | JL125: CP 126 - Transformation bois - employés | JM125: CP 115.0003 - miroiterie - ouvriers
B126: ='Indices courants'!C28 -> 2018-01-01 | C126: =IFERROR(IF('Indices courants'!D28/'Indices courants'!D$28=0,NA(),'Indices courants'!D28/'Indices courants'!D$28),NA()) -> 1 | D126: =IFERROR(IF('Indices courants'!E28/'Indices courants'!E$28=0,NA(),'Indices courants'!E28/'Indices courants'!E$28),NA()) -> 1 | E126: =IFERROR(IF('Indices courants'!F28/'Indices courants'!F$28=0,NA(),'Indices courants'!F28/'Indices courants'!F$28),NA()) -> 1 | F126: =IFERROR(IF('Indices courants'!G28/'Indices courants'!G$28=0,NA(),'Indices courants'!G28/'Indices courants'!G$28),NA()) -> 1 | G126: =IFERROR(IF('Indices courants'!H28/'Indices courants'!H$28=0,NA(),'Indices courants'!H28/'Indices courants'!H$28),NA()) -> 1 | H126: =IFERROR(IF('Indices courants'!I28/'Indices courants'!I$28=0,NA(),'Indices courants'!I28/'Indices courants'!I$28),NA()) -> 1 | I126: ='Rétrospectives & prévisions'!R57 -> 1 | J126: ='Rétrospectives & prévisions'!O57 ->  | K126: =IFERROR(IF('Indices courants'!AE28/IF('Indices courants'!AE$28=0, INDEX('Indices courants'!AE$28:AE$135, MATCH(TRUE,Indices_courants___2025[IPP 23 - Fabrication d’autres produits minéraux non métalliques]<>"",0)),'Indices courants'!AE$28)=0,NA(), 'Indices courants'!AE28/IF('Indices courants'!AE$28=0, INDEX('Indices courants'!AE$28:AE$135, MATCH(TRUE,Indices_courants___2025[IPP 23 - Fabrication d’autres produits minéraux non métalliques]<>"",0)),'Indices courants'!AE$28)),NA()) ->  | L126: =IFERROR(IF('Indices courants'!AF28/IF('Indices courants'!AF$28=0, INDEX('Indices courants'!AF$28:AF$135, MATCH(TRUE,Indices_courants___2025[IPP 23 - Fabrication d’autres produits minéraux non métalliques]<>"",0)),'Indices courants'!AF$28)=0,NA(), 'Indices courants'!AF28/IF('Indices courants'!AF$28=0, INDEX('Indices courants'!AF$28:AF$135, MATCH(TRUE,Indices_courants___2025[IPP 23 - Fabrication d’autres produits minéraux non métalliques]<>"",0)),'Indices courants'!AF$28)),NA()) ->  | M126: =IFERROR(IF('Indices courants'!AG28/IF('Indices courants'!AG$28=0, INDEX('Indices courants'!AG$28:AG$135, MATCH(TRUE,Indices_courants___2025[IPP 23 - Fabrication d’autres produits minéraux non métalliques]<>"",0)),'Indices courants'!AG$28)=0,NA(), 'Indices courants'!AG28/IF('Indices courants'!AG$28=0, INDEX('Indices courants'!AG$28:AG$135, MATCH(TRUE,Indices_courants___2025[IPP 23 - Fabrication d’autres produits minéraux non métalliques]<>"",0)),'Indices courants'!AG$28)),NA()) ->  | N126: =IFERROR(IF('Indices courants'!AH28/IF('Indices courants'!AH$28=0, INDEX('Indices courants'!AH$28:AH$135, MATCH(TRUE,Indices_courants___2025[IPP 23 - Fabrication d’autres produits minéraux non métalliques]<>"",0)),'Indices courants'!AH$28)=0,NA(), 'Indices courants'!AH28/IF('Indices courants'!AH$28=0, INDEX('Indices courants'!AH$28:AH$135, MATCH(TRUE,Indices_courants___2025[IPP 23 - Fabrication d’autres produits minéraux non métalliques]<>"",0)),'Indices courants'!AH$28)),NA()) ->  | O126: =IFERROR(IF('Indices courants'!AI28/IF('Indices courants'!AI$28=0, INDEX('Indices courants'!AI$28:AI$135, MATCH(TRUE,Indices_courants___2025[IPP 23 - Fabrication d’autres produits minéraux non métalliques]<>"",0)),'Indices courants'!AI$28)=0,NA(), 'Indices courants'!AI28/IF('Indices courants'!AI$28=0, INDEX('Indices courants'!AI$28:AI$135, MATCH(TRUE,Indices_courants___2025[IPP 23 - Fabrication d’autres produits minéraux non métalliques]<>"",0)),'Indices courants'!AI$28)),NA()) ->  | P126: =IFERROR(IF('Indices courants'!AJ28/IF('Indices courants'!AJ$28=0, INDEX('Indices courants'!AJ$28:AJ$135, MATCH(TRUE,Indices_courants___2025[IPP 23 - Fabrication d’autres produits minéraux non métalliques]<>"",0)),'Indices courants'!AJ$28)=0,NA(), 'Indices courants'!AJ28/IF('Indices courants'!AJ$28=0, INDEX('Indices courants'!AJ$28:AJ$135, MATCH(TRUE,Indices_courants___2025[IPP 23 - Fabrication d’autres produits minéraux non métalliques]<>"",0)),'Indices courants'!AJ$28)),NA()) ->  | Q126: =IFERROR(IF('Indices courants'!AK28/IF('Indices courants'!AK$28=0, INDEX('Indices courants'!AK$28:AK$135, MATCH(TRUE,Indices_courants___2025[IPP 23 - Fabrication d’autres produits minéraux non métalliques]<>"",0)),'Indices courants'!AK$28)=0,NA(), 'Indices courants'!AK28/IF('Indices courants'!AK$28=0, INDEX('Indices courants'!AK$28:AK$135, MATCH(TRUE,Indices_courants___2025[IPP 23 - Fabrication d’autres produits minéraux non métalliques]<>"",0)),'Indices courants'!AK$28)),NA()) ->  | R126: =IFERROR(IF('Indices courants'!AL28/IF('Indices courants'!AL$28=0, INDEX('Indices courants'!AL$28:AL$135, MATCH(TRUE,Indices_courants___2025[IPP 23 - Fabrication d’autres produits minéraux non métalliques]<>"",0)),'Indices courants'!AL$28)=0,NA(), 'Indices courants'!AL28/IF('Indices courants'!AL$28=0, INDEX('Indices courants'!AL$28:AL$135, MATCH(TRUE,Indices_courants___2025[IPP 23 - Fabrication d’autres produits minéraux non métalliques]<>"",0)),'Indices courants'!AL$28)),NA()) ->  | S126: =IFERROR(IF('Indices courants'!AM28/IF('Indices courants'!AM$28=0, INDEX('Indices courants'!AM$28:AM$135, MATCH(TRUE,Indices_courants___2025[IPP 23 - Fabrication d’autres produits minéraux non métalliques]<>"",0)),'Indices courants'!AM$28)=0,NA(), 'Indices courants'!AM28/IF('Indices courants'!AM$28=0, INDEX('Indices courants'!AM$28:AM$135, MATCH(TRUE,Indices_courants___2025[IPP 23 - Fabrication d’autres produits minéraux non métalliques]<>"",0)),'Indices courants'!AM$28)),NA()) ->  | T126: =IFERROR(IF('Indices courants'!AN28/IF('Indices courants'!AN$28=0, INDEX('Indices courants'!AN$28:AN$135, MATCH(TRUE,Indices_courants___2025[IPP 23 - Fabrication d’autres produits minéraux non métalliques]<>"",0)),'Indices courants'!AN$28)=0,NA(), 'Indices courants'!AN28/IF('Indices courants'!AN$28=0, INDEX('Indices courants'!AN$28:AN$135, MATCH(TRUE,Indices_courants___2025[IPP 23 - Fabrication d’autres produits minéraux non métalliques]<>"",0)),'Indices courants'!AN$28)),NA()) ->  | U126: =IFERROR(IF('Indices courants'!AO28/IF('Indices courants'!AO$28=0, INDEX('Indices courants'!AO$28:AO$135, MATCH(TRUE,Indices_courants___2025[IPP 23 - Fabrication d’autres produits minéraux non métalliques]<>"",0)),'Indices courants'!AO$28)=0,NA(), 'Indices courants'!AO28/IF('Indices courants'!AO$28=0, INDEX('Indices courants'!AO$28:AO$135, MATCH(TRUE,Indices_courants___2025[IPP 23 - Fabrication d’autres produits minéraux non métalliques]<>"",0)),'Indices courants'!AO$28)),NA()) ->  | V126: =IFERROR(IF('Indices courants'!AP28/IF('Indices courants'!AP$28=0, INDEX('Indices courants'!AP$28:AP$135, MATCH(TRUE,Indices_courants___2025[IPP 23 - Fabrication d’autres produits minéraux non métalliques]<>"",0)),'Indices courants'!AP$28)=0,NA(), 'Indices courants'!AP28/IF('Indices courants'!AP$28=0, INDEX('Indices courants'!AP$28:AP$135, MATCH(TRUE,Indices_courants___2025[IPP 23 - Fabrication d’autres produits minéraux non métalliques]<>"",0)),'Indices courants'!AP$28)),NA()) ->  | W126: =IFERROR(IF('Indices courants'!AQ28/IF('Indices courants'!AQ$28=0, INDEX('Indices courants'!AQ$28:AQ$135, MATCH(TRUE,Indices_courants___2025[IPP 23 - Fabrication d’autres produits minéraux non métalliques]<>"",0)),'Indices courants'!AQ$28)=0,NA(), 'Indices courants'!AQ28/IF('Indices courants'!AQ$28=0, INDEX('Indices courants'!AQ$28:AQ$135, MATCH(TRUE,Indices_courants___2025[IPP 23 - Fabrication d’autres produits minéraux non métalliques]<>"",0)),'Indices courants'!AQ$28)),NA()) ->  | X126: =IFERROR(IF('Indices courants'!AR28/IF('Indices courants'!AR$28=0, INDEX('Indices courants'!AR$28:AR$135, MATCH(TRUE,Indices_courants___2025[IPP 23 - Fabrication d’autres produits minéraux non métalliques]<>"",0)),'Indices courants'!AR$28)=0,NA(), 'Indices courants'!AR28/IF('Indices courants'!AR$28=0, INDEX('Indices courants'!AR$28:AR$135, MATCH(TRUE,Indices_courants___2025[IPP 23 - Fabrication d’autres produits minéraux non métalliques]<>"",0)),'Indices courants'!AR$28)),NA()) ->  | Y126: =IFERROR(IF('Indices courants'!AS28/IF('Indices courants'!AS$28=0, INDEX('Indices courants'!AS$28:AS$135, MATCH(TRUE,Indices_courants___2025[IPP 23 - Fabrication d’autres produits minéraux non métalliques]<>"",0)),'Indices courants'!AS$28)=0,NA(), 'Indices courants'!AS28/IF('Indices courants'!AS$28=0, INDEX('Indices courants'!AS$28:AS$135, MATCH(TRUE,Indices_courants___2025[IPP 23 - Fabrication d’autres produits minéraux non métalliques]<>"",0)),'Indices courants'!AS$28)),NA()) ->  | Z126: =IFERROR(IF('Indices courants'!AT28/IF('Indices courants'!AT$28=0, INDEX('Indices courants'!AT$28:AT$135, MATCH(TRUE,Indices_courants___2025[IPP 23 - Fabrication d’autres produits minéraux non métalliques]<>"",0)),'Indices courants'!AT$28)=0,NA(), 'Indices courants'!AT28/IF('Indices courants'!AT$28=0, INDEX('Indices courants'!AT$28:AT$135, MATCH(TRUE,Indices_courants___2025[IPP 23 - Fabrication d’autres produits minéraux non métalliques]<>"",0)),'Indices courants'!AT$28)),NA()) ->  | AA126: =IFERROR(IF('Indices courants'!AU28/IF('Indices courants'!AU$28=0, INDEX('Indices courants'!AU$28:AU$135, MATCH(TRUE,Indices_courants___2025[IPP 23 - Fabrication d’autres produits minéraux non métalliques]<>"",0)),'Indices courants'!AU$28)=0,NA(), 'Indices courants'!AU28/IF('Indices courants'!AU$28=0, INDEX('Indices courants'!AU$28:AU$135, MATCH(TRUE,Indices_courants___2025[IPP 23 - Fabrication d’autres produits minéraux non métalliques]<>"",0)),'Indices courants'!AU$28)),NA()) ->  | AB126: =IFERROR(IF('Indices courants'!AV28/IF('Indices courants'!AV$28=0, INDEX('Indices courants'!AV$28:AV$135, MATCH(TRUE,Indices_courants___2025[IPP 23 - Fabrication d’autres produits minéraux non métalliques]<>"",0)),'Indices courants'!AV$28)=0,NA(), 'Indices courants'!AV28/IF('Indices courants'!AV$28=0, INDEX('Indices courants'!AV$28:AV$135, MATCH(TRUE,Indices_courants___2025[IPP 23 - Fabrication d’autres produits minéraux non métalliques]<>"",0)),'Indices courants'!AV$28)),NA()) ->  | AC126: =IFERROR(IF('Indices courants'!AW28/IF('Indices courants'!AW$28=0, INDEX('Indices courants'!AW$28:AW$135, MATCH(TRUE,Indices_courants___2025[IPP 23 - Fabrication d’autres produits minéraux non métalliques]<>"",0)),'Indices courants'!AW$28)=0,NA(), 'Indices courants'!AW28/IF('Indices courants'!AW$28=0, INDEX('Indices courants'!AW$28:AW$135, MATCH(TRUE,Indices_courants___2025[IPP 23 - Fabrication d’autres produits minéraux non métalliques]<>"",0)),'Indices courants'!AW$28)),NA()) ->  | AD126: =IFERROR(IF('Indices courants'!AX28/IF('Indices courants'!AX$28=0, INDEX('Indices courants'!AX$28:AX$135, MATCH(TRUE,Indices_courants___2025[IPP 23 - Fabrication d’autres produits minéraux non métalliques]<>"",0)),'Indices courants'!AX$28)=0,NA(), 'Indices courants'!AX28/IF('Indices courants'!AX$28=0, INDEX('Indices courants'!AX$28:AX$135, MATCH(TRUE,Indices_courants___2025[IPP 23 - Fabrication d’autres produits minéraux non métalliques]<>"",0)),'Indices courants'!AX$28)),NA()) ->  | AE126: =IFERROR(IF('Indices courants'!AY28/IF('Indices courants'!AY$28=0, INDEX('Indices courants'!AY$28:AY$135, MATCH(TRUE,Indices_courants___2025[IPP 23 - Fabrication d’autres produits minéraux non métalliques]<>"",0)),'Indices courants'!AY$28)=0,NA(), 'Indices courants'!AY28/IF('Indices courants'!AY$28=0, INDEX('Indices courants'!AY$28:AY$135, MATCH(TRUE,Indices_courants___2025[IPP 23 - Fabrication d’autres produits minéraux non métalliques]<>"",0)),'Indices courants'!AY$28)),NA()) ->  | AF126: =IFERROR(IF('Indices courants'!AZ28/IF('Indices courants'!AZ$28=0, INDEX('Indices courants'!AZ$28:AZ$135, MATCH(TRUE,Indices_courants___2025[IPP 23 - Fabrication d’autres produits minéraux non métalliques]<>"",0)),'Indices courants'!AZ$28)=0,NA(), 'Indices courants'!AZ28/IF('Indices courants'!AZ$28=0, INDEX('Indices courants'!AZ$28:AZ$135, MATCH(TRUE,Indices_courants___2025[IPP 23 - Fabrication d’autres produits minéraux non métalliques]<>"",0)),'Indices courants'!AZ$28)),NA()) ->  | AG126: =IFERROR(IF('Indices courants'!BA28/IF('Indices courants'!BA$28=0, INDEX('Indices courants'!BA$28:BA$135, MATCH(TRUE,Indices_courants___2025[IPP 23 - Fabrication d’autres produits minéraux non métalliques]<>"",0)),'Indices courants'!BA$28)=0,NA(), 'Indices courants'!BA28/IF('Indices courants'!BA$28=0, INDEX('Indices courants'!BA$28:BA$135, MATCH(TRUE,Indices_courants___2025[IPP 23 - Fabrication d’autres produits minéraux non métalliques]<>"",0)),'Indices courants'!BA$28)),NA()) ->  | AH126: =IFERROR(IF('Indices courants'!BB28/IF('Indices courants'!BB$28=0, INDEX('Indices courants'!BB$28:BB$135, MATCH(TRUE,Indices_courants___2025[IPP 23 - Fabrication d’autres produits minéraux non métalliques]<>"",0)),'Indices courants'!BB$28)=0,NA(), 'Indices courants'!BB28/IF('Indices courants'!BB$28=0, INDEX('Indices courants'!BB$28:BB$135, MATCH(TRUE,Indices_courants___2025[IPP 23 - Fabrication d’autres produits minéraux non métalliques]<>"",0)),'Indices courants'!BB$28)),NA()) ->  | AI126: =IFERROR(IF('Indices courants'!BC28/IF('Indices courants'!BC$28=0, INDEX('Indices courants'!BC$28:BC$135, MATCH(TRUE,Indices_courants___2025[IPP 23 - Fabrication d’autres produits minéraux non métalliques]<>"",0)),'Indices courants'!BC$28)=0,NA(), 'Indices courants'!BC28/IF('Indices courants'!BC$28=0, INDEX('Indices courants'!BC$28:BC$135, MATCH(TRUE,Indices_courants___2025[IPP 23 - Fabrication d’autres produits minéraux non métalliques]<>"",0)),'Indices courants'!BC$28)),NA()) ->  | AJ126: =IFERROR(IF('Indices courants'!BD28/IF('Indices courants'!BD$28=0, INDEX('Indices courants'!BD$28:BD$135, MATCH(TRUE,Indices_courants___2025[IPP 23 - Fabrication d’autres produits minéraux non métalliques]<>"",0)),'Indices courants'!BD$28)=0,NA(), 'Indices courants'!BD28/IF('Indices courants'!BD$28=0, INDEX('Indices courants'!BD$28:BD$135, MATCH(TRUE,Indices_courants___2025[IPP 23 - Fabrication d’autres produits minéraux non métalliques]<>"",0)),'Indices courants'!BD$28)),NA()) ->  | AK126: =IFERROR(IF('Indices courants'!BE28/IF('Indices courants'!BE$28=0, INDEX('Indices courants'!BE$28:BE$135, MATCH(TRUE,Indices_courants___2025[IPP 23 - Fabrication d’autres produits minéraux non métalliques]<>"",0)),'Indices courants'!BE$28)=0,NA(), 'Indices courants'!BE28/IF('Indices courants'!BE$28=0, INDEX('Indices courants'!BE$28:BE$135, MATCH(TRUE,Indices_courants___2025[IPP 23 - Fabrication d’autres produits minéraux non métalliques]<>"",0)),'Indices courants'!BE$28)),NA()) ->  | AL126: =IFERROR(IF('Indices courants'!BF28/IF('Indices courants'!BF$28=0, INDEX('Indices courants'!BF$28:BF$135, MATCH(TRUE,Indices_courants___2025[IPP 23 - Fabrication d’autres produits minéraux non métalliques]<>"",0)),'Indices courants'!BF$28)=0,NA(), 'Indices courants'!BF28/IF('Indices courants'!BF$28=0, INDEX('Indices courants'!BF$28:BF$135, MATCH(TRUE,Indices_courants___2025[IPP 23 - Fabrication d’autres produits minéraux non métalliques]<>"",0)),'Indices courants'!BF$28)),NA()) ->  | AM126: =IFERROR(IF('Indices T.P. matériaux'!C33/IF('Indices T.P. matériaux'!C$33=0, INDEX(Indices_TP___2025[TP 105 - porphyre concassé - tout calibre (àpd 12/2023)],MATCH(TRUE,Indices_TP___2025[TP 105 - porphyre concassé - tout calibre (àpd 12/2023)]<>"",0)), 'Indices T.P. matériaux'!C$33)=0,NA(),'Indices T.P. matériaux'!C33/IF('Indices T.P. matériaux'!C$33=0, INDEX(Indices_TP___2025[TP 105 - porphyre concassé - tout calibre (àpd 12/2023)],MATCH(TRUE,Indices_TP___2025[TP 105 - porphyre concassé - tout calibre (àpd 12/2023)]<>"",0)), 'Indices T.P. matériaux'!C$33)),NA()) -> 1 | AN126: =IFERROR(IF('Indices T.P. matériaux'!D33/IF('Indices T.P. matériaux'!D$33=0, INDEX(Indices_TP___2025[TP 105 - porphyre concassé - tout calibre (àpd 12/2023)],MATCH(TRUE,Indices_TP___2025[TP 105 - porphyre concassé - tout calibre (àpd 12/2023)]<>"",0)), 'Indices T.P. matériaux'!D$33)=0,NA(),'Indices T.P. matériaux'!D33/IF('Indices T.P. matériaux'!D$33=0, INDEX(Indices_TP___2025[TP 105 - porphyre concassé - tout calibre (àpd 12/2023)],MATCH(TRUE,Indices_TP___2025[TP 105 - porphyre concassé - tout calibre (àpd 12/2023)]<>"",0)), 'Indices T.P. matériaux'!D$33)),NA()) -> 1 | AO126: =IFERROR(IF('Indices T.P. matériaux'!E33/IF('Indices T.P. matériaux'!E$33=0, INDEX(Indices_TP___2025[TP 105 - porphyre concassé - tout calibre (àpd 12/2023)],MATCH(TRUE,Indices_TP___2025[TP 105 - porphyre concassé - tout calibre (àpd 12/2023)]<>"",0)), 'Indices T.P. matériaux'!E$33)=0,NA(),'Indices T.P. matériaux'!E33/IF('Indices T.P. matériaux'!E$33=0, INDEX(Indices_TP___2025[TP 105 - porphyre concassé - tout calibre (àpd 12/2023)],MATCH(TRUE,Indices_TP___2025[TP 105 - porphyre concassé - tout calibre (àpd 12/2023)]<>"",0)), 'Indices T.P. matériaux'!E$33)),NA()) -> 1 | AP126: =IFERROR(IF('Indices T.P. matériaux'!F33/IF('Indices T.P. matériaux'!F$33=0, INDEX(Indices_TP___2025[TP 105 - porphyre concassé - tout calibre (àpd 12/2023)],MATCH(TRUE,Indices_TP___2025[TP 105 - porphyre concassé - tout calibre (àpd 12/2023)]<>"",0)), 'Indices T.P. matériaux'!F$33)=0,NA(),'Indices T.P. matériaux'!F33/IF('Indices T.P. matériaux'!F$33=0, INDEX(Indices_TP___2025[TP 105 - porphyre concassé - tout calibre (àpd 12/2023)],MATCH(TRUE,Indices_TP___2025[TP 105 - porphyre concassé - tout calibre (àpd 12/2023)]<>"",0)), 'Indices T.P. matériaux'!F$33)),NA()) -> 1 | AQ126: =IFERROR(IF('Indices T.P. matériaux'!G33/IF('Indices T.P. matériaux'!G$33=0, INDEX(Indices_TP___2025[TP 105 - porphyre concassé - tout calibre (àpd 12/2023)],MATCH(TRUE,Indices_TP___2025[TP 105 - porphyre concassé - tout calibre (àpd 12/2023)]<>"",0)), 'Indices T.P. matériaux'!G$33)=0,NA(),'Indices T.P. matériaux'!G33/IF('Indices T.P. matériaux'!G$33=0, INDEX(Indices_TP___2025[TP 105 - porphyre concassé - tout calibre (àpd 12/2023)],MATCH(TRUE,Indices_TP___2025[TP 105 - porphyre concassé - tout calibre (àpd 12/2023)]<>"",0)), 'Indices T.P. matériaux'!G$33)),NA()) ->  | AR126: =IFERROR(IF('Indices T.P. matériaux'!H33/IF('Indices T.P. matériaux'!H$33=0, INDEX(Indices_TP___2025[TP 105 - porphyre concassé - tout calibre (àpd 12/2023)],MATCH(TRUE,Indices_TP___2025[TP 105 - porphyre concassé - tout calibre (àpd 12/2023)]<>"",0)), 'Indices T.P. matériaux'!H$33)=0,NA(),'Indices T.P. matériaux'!H33/IF('Indices T.P. matériaux'!H$33=0, INDEX(Indices_TP___2025[TP 105 - porphyre concassé - tout calibre (àpd 12/2023)],MATCH(TRUE,Indices_TP___2025[TP 105 - porphyre concassé - tout calibre (àpd 12/2023)]<>"",0)), 'Indices T.P. matériaux'!H$33)),NA()) -> 1 | AS126: =IFERROR(IF('Indices T.P. matériaux'!I33/IF('Indices T.P. matériaux'!I$33=0, INDEX(Indices_TP___2025[TP 105 - porphyre concassé - tout calibre (àpd 12/2023)],MATCH(TRUE,Indices_TP___2025[TP 105 - porphyre concassé - tout calibre (àpd 12/2023)]<>"",0)), 'Indices T.P. matériaux'!I$33)=0,NA(),'Indices T.P. matériaux'!I33/IF('Indices T.P. matériaux'!I$33=0, INDEX(Indices_TP___2025[TP 105 - porphyre concassé - tout calibre (àpd 12/2023)],MATCH(TRUE,Indices_TP___2025[TP 105 - porphyre concassé - tout calibre (àpd 12/2023)]<>"",0)), 'Indices T.P. matériaux'!I$33)),NA()) -> 1 | AT126: =IFERROR(IF('Indices T.P. matériaux'!J33/IF('Indices T.P. matériaux'!J$33=0, INDEX(Indices_TP___2025[TP 105 - porphyre concassé - tout calibre (àpd 12/2023)],MATCH(TRUE,Indices_TP___2025[TP 105 - porphyre concassé - tout calibre (àpd 12/2023)]<>"",0)), 'Indices T.P. matériaux'!J$33)=0,NA(),'Indices T.P. matériaux'!J33/IF('Indices T.P. matériaux'!J$33=0, INDEX(Indices_TP___2025[TP 105 - porphyre concassé - tout calibre (àpd 12/2023)],MATCH(TRUE,Indices_TP___2025[TP 105 - porphyre concassé - tout calibre (àpd 12/2023)]<>"",0)), 'Indices T.P. matériaux'!J$33)),NA()) -> 1 | AU126: =IFERROR(IF('Indices T.P. matériaux'!K33/IF('Indices T.P. matériaux'!K$33=0, INDEX(Indices_TP___2025[TP 105 - porphyre concassé - tout calibre (àpd 12/2023)],MATCH(TRUE,Indices_TP___2025[TP 105 - porphyre concassé - tout calibre (àpd 12/2023)]<>"",0)), 'Indices T.P. matériaux'!K$33)=0,NA(),'Indices T.P. matériaux'!K33/IF('Indices T.P. matériaux'!K$33=0, INDEX(Indices_TP___2025[TP 105 - porphyre concassé - tout calibre (àpd 12/2023)],MATCH(TRUE,Indices_TP___2025[TP 105 - porphyre concassé - tout calibre (àpd 12/2023)]<>"",0)), 'Indices T.P. matériaux'!K$33)),NA()) -> 1 | AV126: =IFERROR(IF('Indices T.P. matériaux'!L33/IF('Indices T.P. matériaux'!L$33=0, INDEX(Indices_TP___2025[TP 105 - porphyre concassé - tout calibre (àpd 12/2023)],MATCH(TRUE,Indices_TP___2025[TP 105 - porphyre concassé - tout calibre (àpd 12/2023)]<>"",0)), 'Indices T.P. matériaux'!L$33)=0,NA(),'Indices T.P. matériaux'!L33/IF('Indices T.P. matériaux'!L$33=0, INDEX(Indices_TP___2025[TP 105 - porphyre concassé - tout calibre (àpd 12/2023)],MATCH(TRUE,Indices_TP___2025[TP 105 - porphyre concassé - tout calibre (àpd 12/2023)]<>"",0)), 'Indices T.P. matériaux'!L$33)),NA()) ->  | AW126: =IFERROR(IF('Indices T.P. matériaux'!M33/IF('Indices T.P. matériaux'!M$33=0, INDEX(Indices_TP___2025[TP 105 - porphyre concassé - tout calibre (àpd 12/2023)],MATCH(TRUE,Indices_TP___2025[TP 105 - porphyre concassé - tout calibre (àpd 12/2023)]<>"",0)), 'Indices T.P. matériaux'!M$33)=0,NA(),'Indices T.P. matériaux'!M33/IF('Indices T.P. matériaux'!M$33=0, INDEX(Indices_TP___2025[TP 105 - porphyre concassé - tout calibre (àpd 12/2023)],MATCH(TRUE,Indices_TP___2025[TP 105 - porphyre concassé - tout calibre (àpd 12/2023)]<>"",0)), 'Indices T.P. matériaux'!M$33)),NA()) -> 1 | AX126: =IFERROR(IF('Indices T.P. matériaux'!N33/IF('Indices T.P. matériaux'!N$33=0, INDEX(Indices_TP___2025[TP 105 - porphyre concassé - tout calibre (àpd 12/2023)],MATCH(TRUE,Indices_TP___2025[TP 105 - porphyre concassé - tout calibre (àpd 12/2023)]<>"",0)), 'Indices T.P. matériaux'!N$33)=0,NA(),'Indices T.P. matériaux'!N33/IF('Indices T.P. matériaux'!N$33=0, INDEX(Indices_TP___2025[TP 105 - porphyre concassé - tout calibre (àpd 12/2023)],MATCH(TRUE,Indices_TP___2025[TP 105 - porphyre concassé - tout calibre (àpd 12/2023)]<>"",0)), 'Indices T.P. matériaux'!N$33)),NA()) -> 1 | AY126: =IFERROR(IF('Indices T.P. matériaux'!O33/IF('Indices T.P. matériaux'!O$33=0, INDEX(Indices_TP___2025[TP 105 - porphyre concassé - tout calibre (àpd 12/2023)],MATCH(TRUE,Indices_TP___2025[TP 105 - porphyre concassé - tout calibre (àpd 12/2023)]<>"",0)), 'Indices T.P. matériaux'!O$33)=0,NA(),'Indices T.P. matériaux'!O33/IF('Indices T.P. matériaux'!O$33=0, INDEX(Indices_TP___2025[TP 105 - porphyre concassé - tout calibre (àpd 12/2023)],MATCH(TRUE,Indices_TP___2025[TP 105 - porphyre concassé - tout calibre (àpd 12/2023)]<>"",0)), 'Indices T.P. matériaux'!O$33)),NA()) -> 1 | AZ126: =IFERROR(IF('Indices T.P. matériaux'!P33/IF('Indices T.P. matériaux'!P$33=0, INDEX(Indices_TP___2025[TP 105 - porphyre concassé - tout calibre (àpd 12/2023)],MATCH(TRUE,Indices_TP___2025[TP 105 - porphyre concassé - tout calibre (àpd 12/2023)]<>"",0)), 'Indices T.P. matériaux'!P$33)=0,NA(),'Indices T.P. matériaux'!P33/IF('Indices T.P. matériaux'!P$33=0, INDEX(Indices_TP___2025[TP 105 - porphyre concassé - tout calibre (àpd 12/2023)],MATCH(TRUE,Indices_TP___2025[TP 105 - porphyre concassé - tout calibre (àpd 12/2023)]<>"",0)), 'Indices T.P. matériaux'!P$33)),NA()) -> 1 | BA126: =IFERROR(IF('Indices T.P. matériaux'!Q33/IF('Indices T.P. matériaux'!Q$33=0, INDEX(Indices_TP___2025[TP 105 - porphyre concassé - tout calibre (àpd 12/2023)],MATCH(TRUE,Indices_TP___2025[TP 105 - porphyre concassé - tout calibre (àpd 12/2023)]<>"",0)), 'Indices T.P. matériaux'!Q$33)=0,NA(),'Indices T.P. matériaux'!Q33/IF('Indices T.P. matériaux'!Q$33=0, INDEX(Indices_TP___2025[TP 105 - porphyre concassé - tout calibre (àpd 12/2023)],MATCH(TRUE,Indices_TP___2025[TP 105 - porphyre concassé - tout calibre (àpd 12/2023)]<>"",0)), 'Indices T.P. matériaux'!Q$33)),NA()) -> 1 | BB126: =IFERROR(IF('Indices T.P. matériaux'!R33/IF('Indices T.P. matériaux'!R$33=0, INDEX(Indices_TP___2025[TP 105 - porphyre concassé - tout calibre (àpd 12/2023)],MATCH(TRUE,Indices_TP___2025[TP 105 - porphyre concassé - tout calibre (àpd 12/2023)]<>"",0)), 'Indices T.P. matériaux'!R$33)=0,NA(),'Indices T.P. matériaux'!R33/IF('Indices T.P. matériaux'!R$33=0, INDEX(Indices_TP___2025[TP 105 - porphyre concassé - tout calibre (àpd 12/2023)],MATCH(TRUE,Indices_TP___2025[TP 105 - porphyre concassé - tout calibre (àpd 12/2023)]<>"",0)), 'Indices T.P. matériaux'!R$33)),NA()) ->  | BC126: =IFERROR(IF('Indices T.P. matériaux'!S33/IF('Indices T.P. matériaux'!S$33=0, INDEX(Indices_TP___2025[TP 105 - porphyre concassé - tout calibre (àpd 12/2023)],MATCH(TRUE,Indices_TP___2025[TP 105 - porphyre concassé - tout calibre (àpd 12/2023)]<>"",0)), 'Indices T.P. matériaux'!S$33)=0,NA(),'Indices T.P. matériaux'!S33/IF('Indices T.P. matériaux'!S$33=0, INDEX(Indices_TP___2025[TP 105 - porphyre concassé - tout calibre (àpd 12/2023)],MATCH(TRUE,Indices_TP___2025[TP 105 - porphyre concassé - tout calibre (àpd 12/2023)]<>"",0)), 'Indices T.P. matériaux'!S$33)),NA()) -> 1 | BD126: =IFERROR(IF('Indices T.P. matériaux'!T33/IF('Indices T.P. matériaux'!T$33=0, INDEX(Indices_TP___2025[TP 105 - porphyre concassé - tout calibre (àpd 12/2023)],MATCH(TRUE,Indices_TP___2025[TP 105 - porphyre concassé - tout calibre (àpd 12/2023)]<>"",0)), 'Indices T.P. matériaux'!T$33)=0,NA(),'Indices T.P. matériaux'!T33/IF('Indices T.P. matériaux'!T$33=0, INDEX(Indices_TP___2025[TP 105 - porphyre concassé - tout calibre (àpd 12/2023)],MATCH(TRUE,Indices_TP___2025[TP 105 - porphyre concassé - tout calibre (àpd 12/2023)]<>"",0)), 'Indices T.P. matériaux'!T$33)),NA()) -> 1 | BE126: =IFERROR(IF('Indices T.P. matériaux'!U33/IF('Indices T.P. matériaux'!U$33=0, INDEX(Indices_TP___2025[TP 105 - porphyre concassé - tout calibre (àpd 12/2023)],MATCH(TRUE,Indices_TP___2025[TP 105 - porphyre concassé - tout calibre (àpd 12/2023)]<>"",0)), 'Indices T.P. matériaux'!U$33)=0,NA(),'Indices T.P. matériaux'!U33/IF('Indices T.P. matériaux'!U$33=0, INDEX(Indices_TP___2025[TP 105 - porphyre concassé - tout calibre (àpd 12/2023)],MATCH(TRUE,Indices_TP___2025[TP 105 - porphyre concassé - tout calibre (àpd 12/2023)]<>"",0)), 'Indices T.P. matériaux'!U$33)),NA()) -> 1 | BF126: =IFERROR(IF('Indices T.P. matériaux'!V33/IF('Indices T.P. matériaux'!V$33=0, INDEX(Indices_TP___2025[TP 105 - porphyre concassé - tout calibre (àpd 12/2023)],MATCH(TRUE,Indices_TP___2025[TP 105 - porphyre concassé - tout calibre (àpd 12/2023)]<>"",0)), 'Indices T.P. matériaux'!V$33)=0,NA(),'Indices T.P. matériaux'!V33/IF('Indices T.P. matériaux'!V$33=0, INDEX(Indices_TP___2025[TP 105 - porphyre concassé - tout calibre (àpd 12/2023)],MATCH(TRUE,Indices_TP___2025[TP 105 - porphyre concassé - tout calibre (àpd 12/2023)]<>"",0)), 'Indices T.P. matériaux'!V$33)),NA()) -> 1 | BG126: =IFERROR(IF('Indices T.P. matériaux'!W33/IF('Indices T.P. matériaux'!W$33=0, INDEX(Indices_TP___2025[TP 105 - porphyre concassé - tout calibre (àpd 12/2023)],MATCH(TRUE,Indices_TP___2025[TP 105 - porphyre concassé - tout calibre (àpd 12/2023)]<>"",0)), 'Indices T.P. matériaux'!W$33)=0,NA(),'Indices T.P. matériaux'!W33/IF('Indices T.P. matériaux'!W$33=0, INDEX(Indices_TP___2025[TP 105 - porphyre concassé - tout calibre (àpd 12/2023)],MATCH(TRUE,Indices_TP___2025[TP 105 - porphyre concassé - tout calibre (àpd 12/2023)]<>"",0)), 'Indices T.P. matériaux'!W$33)),NA()) -> 1 | BH126: =IFERROR(IF('Indices T.P. matériaux'!X33/IF('Indices T.P. matériaux'!X$33=0, INDEX(Indices_TP___2025[TP 105 - porphyre concassé - tout calibre (àpd 12/2023)],MATCH(TRUE,Indices_TP___2025[TP 105 - porphyre concassé - tout calibre (àpd 12/2023)]<>"",0)), 'Indices T.P. matériaux'!X$33)=0,NA(),'Indices T.P. matériaux'!X33/IF('Indices T.P. matériaux'!X$33=0, INDEX(Indices_TP___2025[TP 105 - porphyre concassé - tout calibre (àpd 12/2023)],MATCH(TRUE,Indices_TP___2025[TP 105 - porphyre concassé - tout calibre (àpd 12/2023)]<>"",0)), 'Indices T.P. matériaux'!X$33)),NA()) -> 1 | BI126: =IFERROR(IF('Indices T.P. matériaux'!Y33/IF('Indices T.P. matériaux'!Y$33=0, INDEX(Indices_TP___2025[TP 105 - porphyre concassé - tout calibre (àpd 12/2023)],MATCH(TRUE,Indices_TP___2025[TP 105 - porphyre concassé - tout calibre (àpd 12/2023)]<>"",0)), 'Indices T.P. matériaux'!Y$33)=0,NA(),'Indices T.P. matériaux'!Y33/IF('Indices T.P. matériaux'!Y$33=0, INDEX(Indices_TP___2025[TP 105 - porphyre concassé - tout calibre (àpd 12/2023)],MATCH(TRUE,Indices_TP___2025[TP 105 - porphyre concassé - tout calibre (àpd 12/2023)]<>"",0)), 'Indices T.P. matériaux'!Y$33)),NA()) -> 1 | BJ126: =IFERROR(IF('Indices T.P. matériaux'!Z33/IF('Indices T.P. matériaux'!Z$33=0, INDEX(Indices_TP___2025[TP 105 - porphyre concassé - tout calibre (àpd 12/2023)],MATCH(TRUE,Indices_TP___2025[TP 105 - porphyre concassé - tout calibre (àpd 12/2023)]<>"",0)), 'Indices T.P. matériaux'!Z$33)=0,NA(),'Indices T.P. matériaux'!Z33/IF('Indices T.P. matériaux'!Z$33=0, INDEX(Indices_TP___2025[TP 105 - porphyre concassé - tout calibre (àpd 12/2023)],MATCH(TRUE,Indices_TP___2025[TP 105 - porphyre concassé - tout calibre (àpd 12/2023)]<>"",0)), 'Indices T.P. matériaux'!Z$33)),NA()) -> 1 | BK126: =IFERROR(IF('Indices T.P. matériaux'!AA33/IF('Indices T.P. matériaux'!AA$33=0, INDEX(Indices_TP___2025[TP 105 - porphyre concassé - tout calibre (àpd 12/2023)],MATCH(TRUE,Indices_TP___2025[TP 105 - porphyre concassé - tout calibre (àpd 12/2023)]<>"",0)), 'Indices T.P. matériaux'!AA$33)=0,NA(),'Indices T.P. matériaux'!AA33/IF('Indices T.P. matériaux'!AA$33=0, INDEX(Indices_TP___2025[TP 105 - porphyre concassé - tout calibre (àpd 12/2023)],MATCH(TRUE,Indices_TP___2025[TP 105 - porphyre concassé - tout calibre (àpd 12/2023)]<>"",0)), 'Indices T.P. matériaux'!AA$33)),NA()) -> 1 | BL126: =IFERROR(IF('Indices T.P. matériaux'!AB33/IF('Indices T.P. matériaux'!AB$33=0, INDEX(Indices_TP___2025[TP 105 - porphyre concassé - tout calibre (àpd 12/2023)],MATCH(TRUE,Indices_TP___2025[TP 105 - porphyre concassé - tout calibre (àpd 12/2023)]<>"",0)), 'Indices T.P. matériaux'!AB$33)=0,NA(),'Indices T.P. matériaux'!AB33/IF('Indices T.P. matériaux'!AB$33=0, INDEX(Indices_TP___2025[TP 105 - porphyre concassé - tout calibre (àpd 12/2023)],MATCH(TRUE,Indices_TP___2025[TP 105 - porphyre concassé - tout calibre (àpd 12/2023)]<>"",0)), 'Indices T.P. matériaux'!AB$33)),NA()) -> 1 | BM126: =IFERROR(IF('Indices T.P. matériaux'!AC33/IF('Indices T.P. matériaux'!AC$33=0, INDEX(Indices_TP___2025[TP 105 - porphyre concassé - tout calibre (àpd 12/2023)],MATCH(TRUE,Indices_TP___2025[TP 105 - porphyre concassé - tout calibre (àpd 12/2023)]<>"",0)), 'Indices T.P. matériaux'!AC$33)=0,NA(),'Indices T.P. matériaux'!AC33/IF('Indices T.P. matériaux'!AC$33=0, INDEX(Indices_TP___2025[TP 105 - porphyre concassé - tout calibre (àpd 12/2023)],MATCH(TRUE,Indices_TP___2025[TP 105 - porphyre concassé - tout calibre (àpd 12/2023)]<>"",0)), 'Indices T.P. matériaux'!AC$33)),NA()) -> 1 | BN126: =IFERROR(IF('Indices T.P. matériaux'!AD33/IF('Indices T.P. matériaux'!AD$33=0, INDEX(Indices_TP___2025[TP 105 - porphyre concassé - tout calibre (àpd 12/2023)],MATCH(TRUE,Indices_TP___2025[TP 105 - porphyre concassé - tout calibre (àpd 12/2023)]<>"",0)), 'Indices T.P. matériaux'!AD$33)=0,NA(),'Indices T.P. matériaux'!AD33/IF('Indices T.P. matériaux'!AD$33=0, INDEX(Indices_TP___2025[TP 105 - porphyre concassé - tout calibre (àpd 12/2023)],MATCH(TRUE,Indices_TP___2025[TP 105 - porphyre concassé - tout calibre (àpd 12/2023)]<>"",0)), 'Indices T.P. matériaux'!AD$33)),NA()) -> 1 | BO126: =IFERROR(IF('Indices T.P. matériaux'!AE33/IF('Indices T.P. matériaux'!AE$33=0, INDEX(Indices_TP___2025[TP 105 - porphyre concassé - tout calibre (àpd 12/2023)],MATCH(TRUE,Indices_TP___2025[TP 105 - porphyre concassé - tout calibre (àpd 12/2023)]<>"",0)), 'Indices T.P. matériaux'!AE$33)=0,NA(),'Indices T.P. matériaux'!AE33/IF('Indices T.P. matériaux'!AE$33=0, INDEX(Indices_TP___2025[TP 105 - porphyre concassé - tout calibre (àpd 12/2023)],MATCH(TRUE,Indices_TP___2025[TP 105 - porphyre concassé - tout calibre (àpd 12/2023)]<>"",0)), 'Indices T.P. matériaux'!AE$33)),NA()) -> 1 | BP126: =IFERROR(IF('Indices T.P. matériaux'!AF33/IF('Indices T.P. matériaux'!AF$33=0, INDEX(Indices_TP___2025[TP 105 - porphyre concassé - tout calibre (àpd 12/2023)],MATCH(TRUE,Indices_TP___2025[TP 105 - porphyre concassé - tout calibre (àpd 12/2023)]<>"",0)), 'Indices T.P. matériaux'!AF$33)=0,NA(),'Indices T.P. matériaux'!AF33/IF('Indices T.P. matériaux'!AF$33=0, INDEX(Indices_TP___2025[TP 105 - porphyre concassé - tout calibre (àpd 12/2023)],MATCH(TRUE,Indices_TP___2025[TP 105 - porphyre concassé - tout calibre (àpd 12/2023)]<>"",0)), 'Indices T.P. matériaux'!AF$33)),NA()) -> 1 | BQ126: =IFERROR(IF('Indices T.P. matériaux'!AG33/IF('Indices T.P. matériaux'!AG$33=0, INDEX(Indices_TP___2025[TP 105 - porphyre concassé - tout calibre (àpd 12/2023)],MATCH(TRUE,Indices_TP___2025[TP 105 - porphyre concassé - tout calibre (àpd 12/2023)]<>"",0)), 'Indices T.P. matériaux'!AG$33)=0,NA(),'Indices T.P. matériaux'!AG33/IF('Indices T.P. matériaux'!AG$33=0, INDEX(Indices_TP___2025[TP 105 - porphyre concassé - tout calibre (àpd 12/2023)],MATCH(TRUE,Indices_TP___2025[TP 105 - porphyre concassé - tout calibre (àpd 12/2023)]<>"",0)), 'Indices T.P. matériaux'!AG$33)),NA()) -> 1 | BR126: =IFERROR(IF('Indices T.P. matériaux'!AH33/IF('Indices T.P. matériaux'!AH$33=0, INDEX(Indices_TP___2025[TP 105 - porphyre concassé - tout calibre (àpd 12/2023)],MATCH(TRUE,Indices_TP___2025[TP 105 - porphyre concassé - tout calibre (àpd 12/2023)]<>"",0)), 'Indices T.P. matériaux'!AH$33)=0,NA(),'Indices T.P. matériaux'!AH33/IF('Indices T.P. matériaux'!AH$33=0, INDEX(Indices_TP___2025[TP 105 - porphyre concassé - tout calibre (àpd 12/2023)],MATCH(TRUE,Indices_TP___2025[TP 105 - porphyre concassé - tout calibre (àpd 12/2023)]<>"",0)), 'Indices T.P. matériaux'!AH$33)),NA()) -> 1 | BS126: =IFERROR(IF('Indices T.P. matériaux'!AI33/IF('Indices T.P. matériaux'!AI$33=0, INDEX(Indices_TP___2025[TP 105 - porphyre concassé - tout calibre (àpd 12/2023)],MATCH(TRUE,Indices_TP___2025[TP 105 - porphyre concassé - tout calibre (àpd 12/2023)]<>"",0)), 'Indices T.P. matériaux'!AI$33)=0,NA(),'Indices T.P. matériaux'!AI33/IF('Indices T.P. matériaux'!AI$33=0, INDEX(Indices_TP___2025[TP 105 - porphyre concassé - tout calibre (àpd 12/2023)],MATCH(TRUE,Indices_TP___2025[TP 105 - porphyre concassé - tout calibre (àpd 12/2023)]<>"",0)), 'Indices T.P. matériaux'!AI$33)),NA()) -> 1 | BT126: =IFERROR(IF('Indices T.P. matériaux'!AJ33/IF('Indices T.P. matériaux'!AJ$33=0, INDEX(Indices_TP___2025[TP 105 - porphyre concassé - tout calibre (àpd 12/2023)],MATCH(TRUE,Indices_TP___2025[TP 105 - porphyre concassé - tout calibre (àpd 12/2023)]<>"",0)), 'Indices T.P. matériaux'!AJ$33)=0,NA(),'Indices T.P. matériaux'!AJ33/IF('Indices T.P. matériaux'!AJ$33=0, INDEX(Indices_TP___2025[TP 105 - porphyre concassé - tout calibre (àpd 12/2023)],MATCH(TRUE,Indices_TP___2025[TP 105 - porphyre concassé - tout calibre (àpd 12/2023)]<>"",0)), 'Indices T.P. matériaux'!AJ$33)),NA()) -> 1 | BU126: =IFERROR(IF('Indices T.P. matériaux'!AK33/IF('Indices T.P. matériaux'!AK$33=0, INDEX(Indices_TP___2025[TP 105 - porphyre concassé - tout calibre (àpd 12/2023)],MATCH(TRUE,Indices_TP___2025[TP 105 - porphyre concassé - tout calibre (àpd 12/2023)]<>"",0)), 'Indices T.P. matériaux'!AK$33)=0,NA(),'Indices T.P. matériaux'!AK33/IF('Indices T.P. matériaux'!AK$33=0, INDEX(Indices_TP___2025[TP 105 - porphyre concassé - tout calibre (àpd 12/2023)],MATCH(TRUE,Indices_TP___2025[TP 105 - porphyre concassé - tout calibre (àpd 12/2023)]<>"",0)), 'Indices T.P. matériaux'!AK$33)),NA()) -> 1 | BV126: =IFERROR(IF('Indices T.P. matériaux'!AL33/IF('Indices T.P. matériaux'!AL$33=0, INDEX(Indices_TP___2025[TP 105 - porphyre concassé - tout calibre (àpd 12/2023)],MATCH(TRUE,Indices_TP___2025[TP 105 - porphyre concassé - tout calibre (àpd 12/2023)]<>"",0)), 'Indices T.P. matériaux'!AL$33)=0,NA(),'Indices T.P. matériaux'!AL33/IF('Indices T.P. matériaux'!AL$33=0, INDEX(Indices_TP___2025[TP 105 - porphyre concassé - tout calibre (àpd 12/2023)],MATCH(TRUE,Indices_TP___2025[TP 105 - porphyre concassé - tout calibre (àpd 12/2023)]<>"",0)), 'Indices T.P. matériaux'!AL$33)),NA()) -> 1 | BW126: =IFERROR(IF('Indices T.P. matériaux'!AM33/IF('Indices T.P. matériaux'!AM$33=0, INDEX(Indices_TP___2025[TP 105 - porphyre concassé - tout calibre (àpd 12/2023)],MATCH(TRUE,Indices_TP___2025[TP 105 - porphyre concassé - tout calibre (àpd 12/2023)]<>"",0)), 'Indices T.P. matériaux'!AM$33)=0,NA(),'Indices T.P. matériaux'!AM33/IF('Indices T.P. matériaux'!AM$33=0, INDEX(Indices_TP___2025[TP 105 - porphyre concassé - tout calibre (àpd 12/2023)],MATCH(TRUE,Indices_TP___2025[TP 105 - porphyre concassé - tout calibre (àpd 12/2023)]<>"",0)), 'Indices T.P. matériaux'!AM$33)),NA()) -> 1 | BX126: =IFERROR(IF('Indices T.P. matériaux'!AN33/IF('Indices T.P. matériaux'!AN$33=0, INDEX(Indices_TP___2025[TP 105 - porphyre concassé - tout calibre (àpd 12/2023)],MATCH(TRUE,Indices_TP___2025[TP 105 - porphyre concassé - tout calibre (àpd 12/2023)]<>"",0)), 'Indices T.P. matériaux'!AN$33)=0,NA(),'Indices T.P. matériaux'!AN33/IF('Indices T.P. matériaux'!AN$33=0, INDEX(Indices_TP___2025[TP 105 - porphyre concassé - tout calibre (àpd 12/2023)],MATCH(TRUE,Indices_TP___2025[TP 105 - porphyre concassé - tout calibre (àpd 12/2023)]<>"",0)), 'Indices T.P. matériaux'!AN$33)),NA()) -> 1 | BY126: =IFERROR(IF('Indices T.P. matériaux'!AO33/IF('Indices T.P. matériaux'!AO$33=0, INDEX(Indices_TP___2025[TP 105 - porphyre concassé - tout calibre (àpd 12/2023)],MATCH(TRUE,Indices_TP___2025[TP 105 - porphyre concassé - tout calibre (àpd 12/2023)]<>"",0)), 'Indices T.P. matériaux'!AO$33)=0,NA(),'Indices T.P. matériaux'!AO33/IF('Indices T.P. matériaux'!AO$33=0, INDEX(Indices_TP___2025[TP 105 - porphyre concassé - tout calibre (àpd 12/2023)],MATCH(TRUE,Indices_TP___2025[TP 105 - porphyre concassé - tout calibre (àpd 12/2023)]<>"",0)), 'Indices T.P. matériaux'!AO$33)),NA()) -> 1 | BZ126: =IFERROR(IF('Indices T.P. matériaux'!AP33/IF('Indices T.P. matériaux'!AP$33=0, INDEX(Indices_TP___2025[TP 105 - porphyre concassé - tout calibre (àpd 12/2023)],MATCH(TRUE,Indices_TP___2025[TP 105 - porphyre concassé - tout calibre (àpd 12/2023)]<>"",0)), 'Indices T.P. matériaux'!AP$33)=0,NA(),'Indices T.P. matériaux'!AP33/IF('Indices T.P. matériaux'!AP$33=0, INDEX(Indices_TP___2025[TP 105 - porphyre concassé - tout calibre (àpd 12/2023)],MATCH(TRUE,Indices_TP___2025[TP 105 - porphyre concassé - tout calibre (àpd 12/2023)]<>"",0)), 'Indices T.P. matériaux'!AP$33)),NA()) -> 1 | CA126: =IFERROR(IF('Indices T.P. matériaux'!AQ33/IF('Indices T.P. matériaux'!AQ$33=0, INDEX(Indices_TP___2025[TP 105 - porphyre concassé - tout calibre (àpd 12/2023)],MATCH(TRUE,Indices_TP___2025[TP 105 - porphyre concassé - tout calibre (àpd 12/2023)]<>"",0)), 'Indices T.P. matériaux'!AQ$33)=0,NA(),'Indices T.P. matériaux'!AQ33/IF('Indices T.P. matériaux'!AQ$33=0, INDEX(Indices_TP___2025[TP 105 - porphyre concassé - tout calibre (àpd 12/2023)],MATCH(TRUE,Indices_TP___2025[TP 105 - porphyre concassé - tout calibre (àpd 12/2023)]<>"",0)), 'Indices T.P. matériaux'!AQ$33)),NA()) -> 1 | CB126: =IFERROR(IF('Indices T.P. matériaux'!AR33/IF('Indices T.P. matériaux'!AR$33=0, INDEX(Indices_TP___2025[TP 105 - porphyre concassé - tout calibre (àpd 12/2023)],MATCH(TRUE,Indices_TP___2025[TP 105 - porphyre concassé - tout calibre (àpd 12/2023)]<>"",0)), 'Indices T.P. matériaux'!AR$33)=0,NA(),'Indices T.P. matériaux'!AR33/IF('Indices T.P. matériaux'!AR$33=0, INDEX(Indices_TP___2025[TP 105 - porphyre concassé - tout calibre (àpd 12/2023)],MATCH(TRUE,Indices_TP___2025[TP 105 - porphyre concassé - tout calibre (àpd 12/2023)]<>"",0)), 'Indices T.P. matériaux'!AR$33)),NA()) -> 1 | CC126: =IFERROR(IF('Indices T.P. matériaux'!AS33/IF('Indices T.P. matériaux'!AS$33=0, INDEX(Indices_TP___2025[TP 105 - porphyre concassé - tout calibre (àpd 12/2023)],MATCH(TRUE,Indices_TP___2025[TP 105 - porphyre concassé - tout calibre (àpd 12/2023)]<>"",0)), 'Indices T.P. matériaux'!AS$33)=0,NA(),'Indices T.P. matériaux'!AS33/IF('Indices T.P. matériaux'!AS$33=0, INDEX(Indices_TP___2025[TP 105 - porphyre concassé - tout calibre (àpd 12/2023)],MATCH(TRUE,Indices_TP___2025[TP 105 - porphyre concassé - tout calibre (àpd 12/2023)]<>"",0)), 'Indices T.P. matériaux'!AS$33)),NA()) -> 1 | CD126: =IFERROR(IF('Indices T.P. matériaux'!AT33/IF('Indices T.P. matériaux'!AT$33=0, INDEX(Indices_TP___2025[TP 105 - porphyre concassé - tout calibre (àpd 12/2023)],MATCH(TRUE,Indices_TP___2025[TP 105 - porphyre concassé - tout calibre (àpd 12/2023)]<>"",0)), 'Indices T.P. matériaux'!AT$33)=0,NA(),'Indices T.P. matériaux'!AT33/IF('Indices T.P. matériaux'!AT$33=0, INDEX(Indices_TP___2025[TP 105 - porphyre concassé - tout calibre (àpd 12/2023)],MATCH(TRUE,Indices_TP___2025[TP 105 - porphyre concassé - tout calibre (àpd 12/2023)]<>"",0)), 'Indices T.P. matériaux'!AT$33)),NA()) -> 1 | CE126: =IFERROR(IF('Indices T.P. matériaux'!AU33/IF('Indices T.P. matériaux'!AU$33=0, INDEX(Indices_TP___2025[TP 105 - porphyre concassé - tout calibre (àpd 12/2023)],MATCH(TRUE,Indices_TP___2025[TP 105 - porphyre concassé - tout calibre (àpd 12/2023)]<>"",0)), 'Indices T.P. matériaux'!AU$33)=0,NA(),'Indices T.P. matériaux'!AU33/IF('Indices T.P. matériaux'!AU$33=0, INDEX(Indices_TP___2025[TP 105 - porphyre concassé - tout calibre (àpd 12/2023)],MATCH(TRUE,Indices_TP___2025[TP 105 - porphyre concassé - tout calibre (àpd 12/2023)]<>"",0)), 'Indices T.P. matériaux'!AU$33)),NA()) ->  | CF126: =IFERROR(IF('Indices T.P. matériaux'!AV33/IF('Indices T.P. matériaux'!AV$33=0, INDEX(Indices_TP___2025[TP 105 - porphyre concassé - tout calibre (àpd 12/2023)],MATCH(TRUE,Indices_TP___2025[TP 105 - porphyre concassé - tout calibre (àpd 12/2023)]<>"",0)), 'Indices T.P. matériaux'!AV$33)=0,NA(),'Indices T.P. matériaux'!AV33/IF('Indices T.P. matériaux'!AV$33=0, INDEX(Indices_TP___2025[TP 105 - porphyre concassé - tout calibre (àpd 12/2023)],MATCH(TRUE,Indices_TP___2025[TP 105 - porphyre concassé - tout calibre (àpd 12/2023)]<>"",0)), 'Indices T.P. matériaux'!AV$33)),NA()) ->  | CG126: =IFERROR(IF('Indices T.P. matériaux'!AW33/IF('Indices T.P. matériaux'!AW$33=0, INDEX(Indices_TP___2025[TP 105 - porphyre concassé - tout calibre (àpd 12/2023)],MATCH(TRUE,Indices_TP___2025[TP 105 - porphyre concassé - tout calibre (àpd 12/2023)]<>"",0)), 'Indices T.P. matériaux'!AW$33)=0,NA(),'Indices T.P. matériaux'!AW33/IF('Indices T.P. matériaux'!AW$33=0, INDEX(Indices_TP___2025[TP 105 - porphyre concassé - tout calibre (àpd 12/2023)],MATCH(TRUE,Indices_TP___2025[TP 105 - porphyre concassé - tout calibre (àpd 12/2023)]<>"",0)), 'Indices T.P. matériaux'!AW$33)),NA()) ->  | CH126: =IFERROR(IF('Indices T.P. matériaux'!AX33/IF('Indices T.P. matériaux'!AX$33=0, INDEX(Indices_TP___2025[TP 105 - porphyre concassé - tout calibre (àpd 12/2023)],MATCH(TRUE,Indices_TP___2025[TP 105 - porphyre concassé - tout calibre (àpd 12/2023)]<>"",0)), 'Indices T.P. matériaux'!AX$33)=0,NA(),'Indices T.P. matériaux'!AX33/IF('Indices T.P. matériaux'!AX$33=0, INDEX(Indices_TP___2025[TP 105 - porphyre concassé - tout calibre (àpd 12/2023)],MATCH(TRUE,Indices_TP___2025[TP 105 - porphyre concassé - tout calibre (àpd 12/2023)]<>"",0)), 'Indices T.P. matériaux'!AX$33)),NA()) ->  | CI126: =IFERROR(IF('Indices T.P. matériaux'!AY33/IF('Indices T.P. matériaux'!AY$33=0, INDEX(Indices_TP___2025[TP 105 - porphyre concassé - tout calibre (àpd 12/2023)],MATCH(TRUE,Indices_TP___2025[TP 105 - porphyre concassé - tout calibre (àpd 12/2023)]<>"",0)), 'Indices T.P. matériaux'!AY$33)=0,NA(),'Indices T.P. matériaux'!AY33/IF('Indices T.P. matériaux'!AY$33=0, INDEX(Indices_TP___2025[TP 105 - porphyre concassé - tout calibre (àpd 12/2023)],MATCH(TRUE,Indices_TP___2025[TP 105 - porphyre concassé - tout calibre (àpd 12/2023)]<>"",0)), 'Indices T.P. matériaux'!AY$33)),NA()) ->  | CJ126: =IFERROR(IF('Indices T.P. matériaux'!AZ33/IF('Indices T.P. matériaux'!AZ$33=0, INDEX(Indices_TP___2025[TP 105 - porphyre concassé - tout calibre (àpd 12/2023)],MATCH(TRUE,Indices_TP___2025[TP 105 - porphyre concassé - tout calibre (àpd 12/2023)]<>"",0)), 'Indices T.P. matériaux'!AZ$33)=0,NA(),'Indices T.P. matériaux'!AZ33/IF('Indices T.P. matériaux'!AZ$33=0, INDEX(Indices_TP___2025[TP 105 - porphyre concassé - tout calibre (àpd 12/2023)],MATCH(TRUE,Indices_TP___2025[TP 105 - porphyre concassé - tout calibre (àpd 12/2023)]<>"",0)), 'Indices T.P. matériaux'!AZ$33)),NA()) ->  | CK126: =IFERROR(IF('Indices T.P. matériaux'!BA33/IF('Indices T.P. matériaux'!BA$33=0, INDEX(Indices_TP___2025[TP 105 - porphyre concassé - tout calibre (àpd 12/2023)],MATCH(TRUE,Indices_TP___2025[TP 105 - porphyre concassé - tout calibre (àpd 12/2023)]<>"",0)), 'Indices T.P. matériaux'!BA$33)=0,NA(),'Indices T.P. matériaux'!BA33/IF('Indices T.P. matériaux'!BA$33=0, INDEX(Indices_TP___2025[TP 105 - porphyre concassé - tout calibre (àpd 12/2023)],MATCH(TRUE,Indices_TP___2025[TP 105 - porphyre concassé - tout calibre (àpd 12/2023)]<>"",0)), 'Indices T.P. matériaux'!BA$33)),NA()) ->  | CL126: =IFERROR(IF('Indices T.P. matériaux'!BB33/IF('Indices T.P. matériaux'!BB$33=0, INDEX(Indices_TP___2025[TP 105 - porphyre concassé - tout calibre (àpd 12/2023)],MATCH(TRUE,Indices_TP___2025[TP 105 - porphyre concassé - tout calibre (àpd 12/2023)]<>"",0)), 'Indices T.P. matériaux'!BB$33)=0,NA(),'Indices T.P. matériaux'!BB33/IF('Indices T.P. matériaux'!BB$33=0, INDEX(Indices_TP___2025[TP 105 - porphyre concassé - tout calibre (àpd 12/2023)],MATCH(TRUE,Indices_TP___2025[TP 105 - porphyre concassé - tout calibre (àpd 12/2023)]<>"",0)), 'Indices T.P. matériaux'!BB$33)),NA()) -> 1 | CM126: =IFERROR(IF('Indices T.P. matériaux'!BC33/IF('Indices T.P. matériaux'!BC$33=0, INDEX(Indices_TP___2025[TP 105 - porphyre concassé - tout calibre (àpd 12/2023)],MATCH(TRUE,Indices_TP___2025[TP 105 - porphyre concassé - tout calibre (àpd 12/2023)]<>"",0)), 'Indices T.P. matériaux'!BC$33)=0,NA(),'Indices T.P. matériaux'!BC33/IF('Indices T.P. matériaux'!BC$33=0, INDEX(Indices_TP___2025[TP 105 - porphyre concassé - tout calibre (àpd 12/2023)],MATCH(TRUE,Indices_TP___2025[TP 105 - porphyre concassé - tout calibre (àpd 12/2023)]<>"",0)), 'Indices T.P. matériaux'!BC$33)),NA()) -> 1 | CN126: =IFERROR(IF('Indices T.P. matériaux'!BD33/IF('Indices T.P. matériaux'!BD$33=0, INDEX(Indices_TP___2025[TP 105 - porphyre concassé - tout calibre (àpd 12/2023)],MATCH(TRUE,Indices_TP___2025[TP 105 - porphyre concassé - tout calibre (àpd 12/2023)]<>"",0)), 'Indices T.P. matériaux'!BD$33)=0,NA(),'Indices T.P. matériaux'!BD33/IF('Indices T.P. matériaux'!BD$33=0, INDEX(Indices_TP___2025[TP 105 - porphyre concassé - tout calibre (àpd 12/2023)],MATCH(TRUE,Indices_TP___2025[TP 105 - porphyre concassé - tout calibre (àpd 12/2023)]<>"",0)), 'Indices T.P. matériaux'!BD$33)),NA()) -> 1 | CO126: =IFERROR(IF('Indices T.P. matériaux'!BE33/IF('Indices T.P. matériaux'!BE$33=0, INDEX(Indices_TP___2025[TP 105 - porphyre concassé - tout calibre (àpd 12/2023)],MATCH(TRUE,Indices_TP___2025[TP 105 - porphyre concassé - tout calibre (àpd 12/2023)]<>"",0)), 'Indices T.P. matériaux'!BE$33)=0,NA(),'Indices T.P. matériaux'!BE33/IF('Indices T.P. matériaux'!BE$33=0, INDEX(Indices_TP___2025[TP 105 - porphyre concassé - tout calibre (àpd 12/2023)],MATCH(TRUE,Indices_TP___2025[TP 105 - porphyre concassé - tout calibre (àpd 12/2023)]<>"",0)), 'Indices T.P. matériaux'!BE$33)),NA()) -> 1 | CP126: =IFERROR(IF('Indices T.P. matériaux'!BF33/IF('Indices T.P. matériaux'!BF$33=0, INDEX(Indices_TP___2025[TP 105 - porphyre concassé - tout calibre (àpd 12/2023)],MATCH(TRUE,Indices_TP___2025[TP 105 - porphyre concassé - tout calibre (àpd 12/2023)]<>"",0)), 'Indices T.P. matériaux'!BF$33)=0,NA(),'Indices T.P. matériaux'!BF33/IF('Indices T.P. matériaux'!BF$33=0, INDEX(Indices_TP___2025[TP 105 - porphyre concassé - tout calibre (àpd 12/2023)],MATCH(TRUE,Indices_TP___2025[TP 105 - porphyre concassé - tout calibre (àpd 12/2023)]<>"",0)), 'Indices T.P. matériaux'!BF$33)),NA()) -> 1 | CQ126: =IFERROR(IF('Indices T.P. matériaux'!BG33/IF('Indices T.P. matériaux'!BG$33=0, INDEX(Indices_TP___2025[TP 105 - porphyre concassé - tout calibre (àpd 12/2023)],MATCH(TRUE,Indices_TP___2025[TP 105 - porphyre concassé - tout calibre (àpd 12/2023)]<>"",0)), 'Indices T.P. matériaux'!BG$33)=0,NA(),'Indices T.P. matériaux'!BG33/IF('Indices T.P. matériaux'!BG$33=0, INDEX(Indices_TP___2025[TP 105 - porphyre concassé - tout calibre (àpd 12/2023)],MATCH(TRUE,Indices_TP___2025[TP 105 - porphyre concassé - tout calibre (àpd 12/2023)]<>"",0)), 'Indices T.P. matériaux'!BG$33)),NA()) -> 1 | CR126: =IFERROR(IF('Indices T.P. matériaux'!BH33/IF('Indices T.P. matériaux'!BH$33=0, INDEX(Indices_TP___2025[TP 105 - porphyre concassé - tout calibre (àpd 12/2023)],MATCH(TRUE,Indices_TP___2025[TP 105 - porphyre concassé - tout calibre (àpd 12/2023)]<>"",0)), 'Indices T.P. matériaux'!BH$33)=0,NA(),'Indices T.P. matériaux'!BH33/IF('Indices T.P. matériaux'!BH$33=0, INDEX(Indices_TP___2025[TP 105 - porphyre concassé - tout calibre (àpd 12/2023)],MATCH(TRUE,Indices_TP___2025[TP 105 - porphyre concassé - tout calibre (àpd 12/2023)]<>"",0)), 'Indices T.P. matériaux'!BH$33)),NA()) -> 1 | CS126: =IFERROR(IF('Indices T.P. matériaux'!BI33/IF('Indices T.P. matériaux'!BI$33=0, INDEX(Indices_TP___2025[TP 105 - porphyre concassé - tout calibre (àpd 12/2023)],MATCH(TRUE,Indices_TP___2025[TP 105 - porphyre concassé - tout calibre (àpd 12/2023)]<>"",0)), 'Indices T.P. matériaux'!BI$33)=0,NA(),'Indices T.P. matériaux'!BI33/IF('Indices T.P. matériaux'!BI$33=0, INDEX(Indices_TP___2025[TP 105 - porphyre concassé - tout calibre (àpd 12/2023)],MATCH(TRUE,Indices_TP___2025[TP 105 - porphyre concassé - tout calibre (àpd 12/2023)]<>"",0)), 'Indices T.P. matériaux'!BI$33)),NA()) ->  | CT126: =IFERROR(IF('Indices T.P. matériaux'!BJ33/IF('Indices T.P. matériaux'!BJ$33=0, INDEX(Indices_TP___2025[TP 105 - porphyre concassé - tout calibre (àpd 12/2023)],MATCH(TRUE,Indices_TP___2025[TP 105 - porphyre concassé - tout calibre (àpd 12/2023)]<>"",0)), 'Indices T.P. matériaux'!BJ$33)=0,NA(),'Indices T.P. matériaux'!BJ33/IF('Indices T.P. matériaux'!BJ$33=0, INDEX(Indices_TP___2025[TP 105 - porphyre concassé - tout calibre (àpd 12/2023)],MATCH(TRUE,Indices_TP___2025[TP 105 - porphyre concassé - tout calibre (àpd 12/2023)]<>"",0)), 'Indices T.P. matériaux'!BJ$33)),NA()) -> 1 | CU126: =IFERROR(IF('Indices T.P. matériaux'!BK33/IF('Indices T.P. matériaux'!BK$33=0, INDEX(Indices_TP___2025[TP 105 - porphyre concassé - tout calibre (àpd 12/2023)],MATCH(TRUE,Indices_TP___2025[TP 105 - porphyre concassé - tout calibre (àpd 12/2023)]<>"",0)), 'Indices T.P. matériaux'!BK$33)=0,NA(),'Indices T.P. matériaux'!BK33/IF('Indices T.P. matériaux'!BK$33=0, INDEX(Indices_TP___2025[TP 105 - porphyre concassé - tout calibre (àpd 12/2023)],MATCH(TRUE,Indices_TP___2025[TP 105 - porphyre concassé - tout calibre (àpd 12/2023)]<>"",0)), 'Indices T.P. matériaux'!BK$33)),NA()) -> 1 | CV126: =IFERROR(IF('Indices T.P. matériaux'!BL33/IF('Indices T.P. matériaux'!BL$33=0, INDEX(Indices_TP___2025[TP 105 - porphyre concassé - tout calibre (àpd 12/2023)],MATCH(TRUE,Indices_TP___2025[TP 105 - porphyre concassé - tout calibre (àpd 12/2023)]<>"",0)), 'Indices T.P. matériaux'!BL$33)=0,NA(),'Indices T.P. matériaux'!BL33/IF('Indices T.P. matériaux'!BL$33=0, INDEX(Indices_TP___2025[TP 105 - porphyre concassé - tout calibre (àpd 12/2023)],MATCH(TRUE,Indices_TP___2025[TP 105 - porphyre concassé - tout calibre (àpd 12/2023)]<>"",0)), 'Indices T.P. matériaux'!BL$33)),NA()) -> 1 | CW126: =IFERROR(IF('Indices T.P. matériaux'!BM33/IF('Indices T.P. matériaux'!BM$33=0, INDEX(Indices_TP___2025[TP 105 - porphyre concassé - tout calibre (àpd 12/2023)],MATCH(TRUE,Indices_TP___2025[TP 105 - porphyre concassé - tout calibre (àpd 12/2023)]<>"",0)), 'Indices T.P. matériaux'!BM$33)=0,NA(),'Indices T.P. matériaux'!BM33/IF('Indices T.P. matériaux'!BM$33=0, INDEX(Indices_TP___2025[TP 105 - porphyre concassé - tout calibre (àpd 12/2023)],MATCH(TRUE,Indices_TP___2025[TP 105 - porphyre concassé - tout calibre (àpd 12/2023)]<>"",0)), 'Indices T.P. matériaux'!BM$33)),NA()) -> 1 | CX126: =IFERROR(IF('Indices T.P. matériaux'!BN33/IF('Indices T.P. matériaux'!BN$33=0, INDEX(Indices_TP___2025[TP 105 - porphyre concassé - tout calibre (àpd 12/2023)],MATCH(TRUE,Indices_TP___2025[TP 105 - porphyre concassé - tout calibre (àpd 12/2023)]<>"",0)), 'Indices T.P. matériaux'!BN$33)=0,NA(),'Indices T.P. matériaux'!BN33/IF('Indices T.P. matériaux'!BN$33=0, INDEX(Indices_TP___2025[TP 105 - porphyre concassé - tout calibre (àpd 12/2023)],MATCH(TRUE,Indices_TP___2025[TP 105 - porphyre concassé - tout calibre (àpd 12/2023)]<>"",0)), 'Indices T.P. matériaux'!BN$33)),NA()) -> 1 | CY126: =IFERROR(IF('Indices T.P. matériaux'!BO33/IF('Indices T.P. matériaux'!BO$33=0, INDEX(Indices_TP___2025[TP 105 - porphyre concassé - tout calibre (àpd 12/2023)],MATCH(TRUE,Indices_TP___2025[TP 105 - porphyre concassé - tout calibre (àpd 12/2023)]<>"",0)), 'Indices T.P. matériaux'!BO$33)=0,NA(),'Indices T.P. matériaux'!BO33/IF('Indices T.P. matériaux'!BO$33=0, INDEX(Indices_TP___2025[TP 105 - porphyre concassé - tout calibre (àpd 12/2023)],MATCH(TRUE,Indices_TP___2025[TP 105 - porphyre concassé - tout calibre (àpd 12/2023)]<>"",0)), 'Indices T.P. matériaux'!BO$33)),NA()) -> 1 | CZ126: =IFERROR(IF('Indices T.P. matériaux'!BP33/IF('Indices T.P. matériaux'!BP$33=0, INDEX(Indices_TP___2025[TP 105 - porphyre concassé - tout calibre (àpd 12/2023)],MATCH(TRUE,Indices_TP___2025[TP 105 - porphyre concassé - tout calibre (àpd 12/2023)]<>"",0)), 'Indices T.P. matériaux'!BP$33)=0,NA(),'Indices T.P. matériaux'!BP33/IF('Indices T.P. matériaux'!BP$33=0, INDEX(Indices_TP___2025[TP 105 - porphyre concassé - tout calibre (àpd 12/2023)],MATCH(TRUE,Indices_TP___2025[TP 105 - porphyre concassé - tout calibre (àpd 12/2023)]<>"",0)), 'Indices T.P. matériaux'!BP$33)),NA()) -> 1 | DA126: =IFERROR(IF('Indices T.P. matériaux'!BQ33/IF('Indices T.P. matériaux'!BQ$33=0, INDEX(Indices_TP___2025[TP 105 - porphyre concassé - tout calibre (àpd 12/2023)],MATCH(TRUE,Indices_TP___2025[TP 105 - porphyre concassé - tout calibre (àpd 12/2023)]<>"",0)), 'Indices T.P. matériaux'!BQ$33)=0,NA(),'Indices T.P. matériaux'!BQ33/IF('Indices T.P. matériaux'!BQ$33=0, INDEX(Indices_TP___2025[TP 105 - porphyre concassé - tout calibre (àpd 12/2023)],MATCH(TRUE,Indices_TP___2025[TP 105 - porphyre concassé - tout calibre (àpd 12/2023)]<>"",0)), 'Indices T.P. matériaux'!BQ$33)),NA()) -> 1 | DB126: =IFERROR(IF('Indices T.P. matériaux'!BR33/IF('Indices T.P. matériaux'!BR$33=0, INDEX(Indices_TP___2025[TP 105 - porphyre concassé - tout calibre (àpd 12/2023)],MATCH(TRUE,Indices_TP___2025[TP 105 - porphyre concassé - tout calibre (àpd 12/2023)]<>"",0)), 'Indices T.P. matériaux'!BR$33)=0,NA(),'Indices T.P. matériaux'!BR33/IF('Indices T.P. matériaux'!BR$33=0, INDEX(Indices_TP___2025[TP 105 - porphyre concassé - tout calibre (àpd 12/2023)],MATCH(TRUE,Indices_TP___2025[TP 105 - porphyre concassé - tout calibre (àpd 12/2023)]<>"",0)), 'Indices T.P. matériaux'!BR$33)),NA()) -> 1 | DC126: =IFERROR(IF('Indices T.P. matériaux'!BS33/IF('Indices T.P. matériaux'!BS$33=0, INDEX(Indices_TP___2025[TP 105 - porphyre concassé - tout calibre (àpd 12/2023)],MATCH(TRUE,Indices_TP___2025[TP 105 - porphyre concassé - tout calibre (àpd 12/2023)]<>"",0)), 'Indices T.P. matériaux'!BS$33)=0,NA(),'Indices T.P. matériaux'!BS33/IF('Indices T.P. matériaux'!BS$33=0, INDEX(Indices_TP___2025[TP 105 - porphyre concassé - tout calibre (àpd 12/2023)],MATCH(TRUE,Indices_TP___2025[TP 105 - porphyre concassé - tout calibre (àpd 12/2023)]<>"",0)), 'Indices T.P. matériaux'!BS$33)),NA()) -> 1 | DD126: =IFERROR(IF('Indices T.P. matériaux'!BT33/IF('Indices T.P. matériaux'!BT$33=0, INDEX(Indices_TP___2025[TP 105 - porphyre concassé - tout calibre (àpd 12/2023)],MATCH(TRUE,Indices_TP___2025[TP 105 - porphyre concassé - tout calibre (àpd 12/2023)]<>"",0)), 'Indices T.P. matériaux'!BT$33)=0,NA(),'Indices T.P. matériaux'!BT33/IF('Indices T.P. matériaux'!BT$33=0, INDEX(Indices_TP___2025[TP 105 - porphyre concassé - tout calibre (àpd 12/2023)],MATCH(TRUE,Indices_TP___2025[TP 105 - porphyre concassé - tout calibre (àpd 12/2023)]<>"",0)), 'Indices T.P. matériaux'!BT$33)),NA()) -> 1 | DE126: =IFERROR(IF('Indices T.P. matériaux'!BU33/IF('Indices T.P. matériaux'!BU$33=0, INDEX(Indices_TP___2025[TP 105 - porphyre concassé - tout calibre (àpd 12/2023)],MATCH(TRUE,Indices_TP___2025[TP 105 - porphyre concassé - tout calibre (àpd 12/2023)]<>"",0)), 'Indices T.P. matériaux'!BU$33)=0,NA(),'Indices T.P. matériaux'!BU33/IF('Indices T.P. matériaux'!BU$33=0, INDEX(Indices_TP___2025[TP 105 - porphyre concassé - tout calibre (àpd 12/2023)],MATCH(TRUE,Indices_TP___2025[TP 105 - porphyre concassé - tout calibre (àpd 12/2023)]<>"",0)), 'Indices T.P. matériaux'!BU$33)),NA()) -> 1 | DF126: =IFERROR(IF('Indices T.P. matériaux'!BV33/IF('Indices T.P. matériaux'!BV$33=0, INDEX(Indices_TP___2025[TP 105 - porphyre concassé - tout calibre (àpd 12/2023)],MATCH(TRUE,Indices_TP___2025[TP 105 - porphyre concassé - tout calibre (àpd 12/2023)]<>"",0)), 'Indices T.P. matériaux'!BV$33)=0,NA(),'Indices T.P. matériaux'!BV33/IF('Indices T.P. matériaux'!BV$33=0, INDEX(Indices_TP___2025[TP 105 - porphyre concassé - tout calibre (àpd 12/2023)],MATCH(TRUE,Indices_TP___2025[TP 105 - porphyre concassé - tout calibre (àpd 12/2023)]<>"",0)), 'Indices T.P. matériaux'!BV$33)),NA()) -> 1 | DG126: =IFERROR(IF('Indices T.P. matériaux'!BW33/IF('Indices T.P. matériaux'!BW$33=0, INDEX(Indices_TP___2025[TP 105 - porphyre concassé - tout calibre (àpd 12/2023)],MATCH(TRUE,Indices_TP___2025[TP 105 - porphyre concassé - tout calibre (àpd 12/2023)]<>"",0)), 'Indices T.P. matériaux'!BW$33)=0,NA(),'Indices T.P. matériaux'!BW33/IF('Indices T.P. matériaux'!BW$33=0, INDEX(Indices_TP___2025[TP 105 - porphyre concassé - tout calibre (àpd 12/2023)],MATCH(TRUE,Indices_TP___2025[TP 105 - porphyre concassé - tout calibre (àpd 12/2023)]<>"",0)), 'Indices T.P. matériaux'!BW$33)),NA()) -> 1 | DH126: =IFERROR(IF('Indices T.P. matériaux'!BX33/IF('Indices T.P. matériaux'!BX$33=0, INDEX(Indices_TP___2025[TP 105 - porphyre concassé - tout calibre (àpd 12/2023)],MATCH(TRUE,Indices_TP___2025[TP 105 - porphyre concassé - tout calibre (àpd 12/2023)]<>"",0)), 'Indices T.P. matériaux'!BX$33)=0,NA(),'Indices T.P. matériaux'!BX33/IF('Indices T.P. matériaux'!BX$33=0, INDEX(Indices_TP___2025[TP 105 - porphyre concassé - tout calibre (àpd 12/2023)],MATCH(TRUE,Indices_TP___2025[TP 105 - porphyre concassé - tout calibre (àpd 12/2023)]<>"",0)), 'Indices T.P. matériaux'!BX$33)),NA()) -> 1 | DI126: =IFERROR(IF('Indices T.P. matériaux'!BY33/IF('Indices T.P. matériaux'!BY$33=0, INDEX(Indices_TP___2025[TP 105 - porphyre concassé - tout calibre (àpd 12/2023)],MATCH(TRUE,Indices_TP___2025[TP 105 - porphyre concassé - tout calibre (àpd 12/2023)]<>"",0)), 'Indices T.P. matériaux'!BY$33)=0,NA(),'Indices T.P. matériaux'!BY33/IF('Indices T.P. matériaux'!BY$33=0, INDEX(Indices_TP___2025[TP 105 - porphyre concassé - tout calibre (àpd 12/2023)],MATCH(TRUE,Indices_TP___2025[TP 105 - porphyre concassé - tout calibre (àpd 12/2023)]<>"",0)), 'Indices T.P. matériaux'!BY$33)),NA()) -> 1 | DJ126: =IFERROR(IF('Indices T.P. matériaux'!BZ33/IF('Indices T.P. matériaux'!BZ$33=0, INDEX(Indices_TP___2025[TP 105 - porphyre concassé - tout calibre (àpd 12/2023)],MATCH(TRUE,Indices_TP___2025[TP 105 - porphyre concassé - tout calibre (àpd 12/2023)]<>"",0)), 'Indices T.P. matériaux'!BZ$33)=0,NA(),'Indices T.P. matériaux'!BZ33/IF('Indices T.P. matériaux'!BZ$33=0, INDEX(Indices_TP___2025[TP 105 - porphyre concassé - tout calibre (àpd 12/2023)],MATCH(TRUE,Indices_TP___2025[TP 105 - porphyre concassé - tout calibre (àpd 12/2023)]<>"",0)), 'Indices T.P. matériaux'!BZ$33)),NA()) -> 1 | DK126: =IFERROR(IF('Indices T.P. matériaux'!CA33/IF('Indices T.P. matériaux'!CA$33=0, INDEX(Indices_TP___2025[TP 105 - porphyre concassé - tout calibre (àpd 12/2023)],MATCH(TRUE,Indices_TP___2025[TP 105 - porphyre concassé - tout calibre (àpd 12/2023)]<>"",0)), 'Indices T.P. matériaux'!CA$33)=0,NA(),'Indices T.P. matériaux'!CA33/IF('Indices T.P. matériaux'!CA$33=0, INDEX(Indices_TP___2025[TP 105 - porphyre concassé - tout calibre (àpd 12/2023)],MATCH(TRUE,Indices_TP___2025[TP 105 - porphyre concassé - tout calibre (àpd 12/2023)]<>"",0)), 'Indices T.P. matériaux'!CA$33)),NA()) -> 1 | DL126: =IFERROR(IF('Indices T.P. matériaux'!CB33/IF('Indices T.P. matériaux'!CB$33=0, INDEX(Indices_TP___2025[TP 105 - porphyre concassé - tout calibre (àpd 12/2023)],MATCH(TRUE,Indices_TP___2025[TP 105 - porphyre concassé - tout calibre (àpd 12/2023)]<>"",0)), 'Indices T.P. matériaux'!CB$33)=0,NA(),'Indices T.P. matériaux'!CB33/IF('Indices T.P. matériaux'!CB$33=0, INDEX(Indices_TP___2025[TP 105 - porphyre concassé - tout calibre (àpd 12/2023)],MATCH(TRUE,Indices_TP___2025[TP 105 - porphyre concassé - tout calibre (àpd 12/2023)]<>"",0)), 'Indices T.P. matériaux'!CB$33)),NA()) -> 1 | DM126: =IFERROR(IF('Indices T.P. matériaux'!CC33/IF('Indices T.P. matériaux'!CC$33=0, INDEX(Indices_TP___2025[TP 105 - porphyre concassé - tout calibre (àpd 12/2023)],MATCH(TRUE,Indices_TP___2025[TP 105 - porphyre concassé - tout calibre (àpd 12/2023)]<>"",0)), 'Indices T.P. matériaux'!CC$33)=0,NA(),'Indices T.P. matériaux'!CC33/IF('Indices T.P. matériaux'!CC$33=0, INDEX(Indices_TP___2025[TP 105 - porphyre concassé - tout calibre (àpd 12/2023)],MATCH(TRUE,Indices_TP___2025[TP 105 - porphyre concassé - tout calibre (àpd 12/2023)]<>"",0)), 'Indices T.P. matériaux'!CC$33)),NA()) -> 1 | DN126: =IFERROR(IF('Indices T.P. matériaux'!CD33/IF('Indices T.P. matériaux'!CD$33=0, INDEX(Indices_TP___2025[TP 105 - porphyre concassé - tout calibre (àpd 12/2023)],MATCH(TRUE,Indices_TP___2025[TP 105 - porphyre concassé - tout calibre (àpd 12/2023)]<>"",0)), 'Indices T.P. matériaux'!CD$33)=0,NA(),'Indices T.P. matériaux'!CD33/IF('Indices T.P. matériaux'!CD$33=0, INDEX(Indices_TP___2025[TP 105 - porphyre concassé - tout calibre (àpd 12/2023)],MATCH(TRUE,Indices_TP___2025[TP 105 - porphyre concassé - tout calibre (àpd 12/2023)]<>"",0)), 'Indices T.P. matériaux'!CD$33)),NA()) -> 1 | DO126: =IFERROR(IF('Indices T.P. matériaux'!CE33/IF('Indices T.P. matériaux'!CE$33=0, INDEX(Indices_TP___2025[TP 105 - porphyre concassé - tout calibre (àpd 12/2023)],MATCH(TRUE,Indices_TP___2025[TP 105 - porphyre concassé - tout calibre (àpd 12/2023)]<>"",0)), 'Indices T.P. matériaux'!CE$33)=0,NA(),'Indices T.P. matériaux'!CE33/IF('Indices T.P. matériaux'!CE$33=0, INDEX(Indices_TP___2025[TP 105 - porphyre concassé - tout calibre (àpd 12/2023)],MATCH(TRUE,Indices_TP___2025[TP 105 - porphyre concassé - tout calibre (àpd 12/2023)]<>"",0)), 'Indices T.P. matériaux'!CE$33)),NA()) -> 1 | DP126: =IFERROR(IF('Indices T.P. matériaux'!CF33/IF('Indices T.P. matériaux'!CF$33=0, INDEX(Indices_TP___2025[TP 105 - porphyre concassé - tout calibre (àpd 12/2023)],MATCH(TRUE,Indices_TP___2025[TP 105 - porphyre concassé - tout calibre (àpd 12/2023)]<>"",0)), 'Indices T.P. matériaux'!CF$33)=0,NA(),'Indices T.P. matériaux'!CF33/IF('Indices T.P. matériaux'!CF$33=0, INDEX(Indices_TP___2025[TP 105 - porphyre concassé - tout calibre (àpd 12/2023)],MATCH(TRUE,Indices_TP___2025[TP 105 - porphyre concassé - tout calibre (àpd 12/2023)]<>"",0)), 'Indices T.P. matériaux'!CF$33)),NA()) -> 1 | DQ126: =IFERROR(IF('Indices T.P. matériaux'!CG33/IF('Indices T.P. matériaux'!CG$33=0, INDEX(Indices_TP___2025[TP 105 - porphyre concassé - tout calibre (àpd 12/2023)],MATCH(TRUE,Indices_TP___2025[TP 105 - porphyre concassé - tout calibre (àpd 12/2023)]<>"",0)), 'Indices T.P. matériaux'!CG$33)=0,NA(),'Indices T.P. matériaux'!CG33/IF('Indices T.P. matériaux'!CG$33=0, INDEX(Indices_TP___2025[TP 105 - porphyre concassé - tout calibre (àpd 12/2023)],MATCH(TRUE,Indices_TP___2025[TP 105 - porphyre concassé - tout calibre (àpd 12/2023)]<>"",0)), 'Indices T.P. matériaux'!CG$33)),NA()) -> 1 | DR126: =IFERROR(IF('Indices T.P. matériaux'!CH33/IF('Indices T.P. matériaux'!CH$33=0, INDEX(Indices_TP___2025[TP 105 - porphyre concassé - tout calibre (àpd 12/2023)],MATCH(TRUE,Indices_TP___2025[TP 105 - porphyre concassé - tout calibre (àpd 12/2023)]<>"",0)), 'Indices T.P. matériaux'!CH$33)=0,NA(),'Indices T.P. matériaux'!CH33/IF('Indices T.P. matériaux'!CH$33=0, INDEX(Indices_TP___2025[TP 105 - porphyre concassé - tout calibre (àpd 12/2023)],MATCH(TRUE,Indices_TP___2025[TP 105 - porphyre concassé - tout calibre (àpd 12/2023)]<>"",0)), 'Indices T.P. matériaux'!CH$33)),NA()) -> 1 | DS126: =IFERROR(IF('Indices T.P. matériaux'!CI33/IF('Indices T.P. matériaux'!CI$33=0, INDEX(Indices_TP___2025[TP 105 - porphyre concassé - tout calibre (àpd 12/2023)],MATCH(TRUE,Indices_TP___2025[TP 105 - porphyre concassé - tout calibre (àpd 12/2023)]<>"",0)), 'Indices T.P. matériaux'!CI$33)=0,NA(),'Indices T.P. matériaux'!CI33/IF('Indices T.P. matériaux'!CI$33=0, INDEX(Indices_TP___2025[TP 105 - porphyre concassé - tout calibre (àpd 12/2023)],MATCH(TRUE,Indices_TP___2025[TP 105 - porphyre concassé - tout calibre (àpd 12/2023)]<>"",0)), 'Indices T.P. matériaux'!CI$33)),NA()) -> 1 | DT126: =IFERROR(IF('Indices T.P. matériaux'!CJ33/IF('Indices T.P. matériaux'!CJ$33=0, INDEX(Indices_TP___2025[TP 105 - porphyre concassé - tout calibre (àpd 12/2023)],MATCH(TRUE,Indices_TP___2025[TP 105 - porphyre concassé - tout calibre (àpd 12/2023)]<>"",0)), 'Indices T.P. matériaux'!CJ$33)=0,NA(),'Indices T.P. matériaux'!CJ33/IF('Indices T.P. matériaux'!CJ$33=0, INDEX(Indices_TP___2025[TP 105 - porphyre concassé - tout calibre (àpd 12/2023)],MATCH(TRUE,Indices_TP___2025[TP 105 - porphyre concassé - tout calibre (àpd 12/2023)]<>"",0)), 'Indices T.P. matériaux'!CJ$33)),NA()) -> 1 | DU126: =IFERROR(IF('Indices T.P. matériaux'!CK33/IF('Indices T.P. matériaux'!CK$33=0, INDEX(Indices_TP___2025[TP 105 - porphyre concassé - tout calibre (àpd 12/2023)],MATCH(TRUE,Indices_TP___2025[TP 105 - porphyre concassé - tout calibre (àpd 12/2023)]<>"",0)), 'Indices T.P. matériaux'!CK$33)=0,NA(),'Indices T.P. matériaux'!CK33/IF('Indices T.P. matériaux'!CK$33=0, INDEX(Indices_TP___2025[TP 105 - porphyre concassé - tout calibre (àpd 12/2023)],MATCH(TRUE,Indices_TP___2025[TP 105 - porphyre concassé - tout calibre (àpd 12/2023)]<>"",0)), 'Indices T.P. matériaux'!CK$33)),NA()) -> 1 | DV126: =IFERROR(IF('Indices T.P. matériaux'!CL33/IF('Indices T.P. matériaux'!CL$33=0, INDEX(Indices_TP___2025[TP 105 - porphyre concassé - tout calibre (àpd 12/2023)],MATCH(TRUE,Indices_TP___2025[TP 105 - porphyre concassé - tout calibre (àpd 12/2023)]<>"",0)), 'Indices T.P. matériaux'!CL$33)=0,NA(),'Indices T.P. matériaux'!CL33/IF('Indices T.P. matériaux'!CL$33=0, INDEX(Indices_TP___2025[TP 105 - porphyre concassé - tout calibre (àpd 12/2023)],MATCH(TRUE,Indices_TP___2025[TP 105 - porphyre concassé - tout calibre (àpd 12/2023)]<>"",0)), 'Indices T.P. matériaux'!CL$33)),NA()) -> 1 | DW126: =IFERROR(IF('Indices T.P. matériaux'!CM33/IF('Indices T.P. matériaux'!CM$33=0, INDEX(Indices_TP___2025[TP 105 - porphyre concassé - tout calibre (àpd 12/2023)],MATCH(TRUE,Indices_TP___2025[TP 105 - porphyre concassé - tout calibre (àpd 12/2023)]<>"",0)), 'Indices T.P. matériaux'!CM$33)=0,NA(),'Indices T.P. matériaux'!CM33/IF('Indices T.P. matériaux'!CM$33=0, INDEX(Indices_TP___2025[TP 105 - porphyre concassé - tout calibre (àpd 12/2023)],MATCH(TRUE,Indices_TP___2025[TP 105 - porphyre concassé - tout calibre (àpd 12/2023)]<>"",0)), 'Indices T.P. matériaux'!CM$33)),NA()) -> 1 | DX126: =IFERROR(IF('Indices T.P. matériaux'!CN33/IF('Indices T.P. matériaux'!CN$33=0, INDEX(Indices_TP___2025[TP 105 - porphyre concassé - tout calibre (àpd 12/2023)],MATCH(TRUE,Indices_TP___2025[TP 105 - porphyre concassé - tout calibre (àpd 12/2023)]<>"",0)), 'Indices T.P. matériaux'!CN$33)=0,NA(),'Indices T.P. matériaux'!CN33/IF('Indices T.P. matériaux'!CN$33=0, INDEX(Indices_TP___2025[TP 105 - porphyre concassé - tout calibre (àpd 12/2023)],MATCH(TRUE,Indices_TP___2025[TP 105 - porphyre concassé - tout calibre (àpd 12/2023)]<>"",0)), 'Indices T.P. matériaux'!CN$33)),NA()) -> 1 | DY126: =IFERROR(IF('Indices T.P. matériaux'!CO33/IF('Indices T.P. matériaux'!CO$33=0, INDEX(Indices_TP___2025[TP 105 - porphyre concassé - tout calibre (àpd 12/2023)],MATCH(TRUE,Indices_TP___2025[TP 105 - porphyre concassé - tout calibre (àpd 12/2023)]<>"",0)), 'Indices T.P. matériaux'!CO$33)=0,NA(),'Indices T.P. matériaux'!CO33/IF('Indices T.P. matériaux'!CO$33=0, INDEX(Indices_TP___2025[TP 105 - porphyre concassé - tout calibre (àpd 12/2023)],MATCH(TRUE,Indices_TP___2025[TP 105 - porphyre concassé - tout calibre (àpd 12/2023)]<>"",0)), 'Indices T.P. matériaux'!CO$33)),NA()) -> 1 | DZ126: =IFERROR(IF('Indices T.P. matériaux'!CP33/IF('Indices T.P. matériaux'!CP$33=0, INDEX(Indices_TP___2025[TP 105 - porphyre concassé - tout calibre (àpd 12/2023)],MATCH(TRUE,Indices_TP___2025[TP 105 - porphyre concassé - tout calibre (àpd 12/2023)]<>"",0)), 'Indices T.P. matériaux'!CP$33)=0,NA(),'Indices T.P. matériaux'!CP33/IF('Indices T.P. matériaux'!CP$33=0, INDEX(Indices_TP___2025[TP 105 - porphyre concassé - tout calibre (àpd 12/2023)],MATCH(TRUE,Indices_TP___2025[TP 105 - porphyre concassé - tout calibre (àpd 12/2023)]<>"",0)), 'Indices T.P. matériaux'!CP$33)),NA()) -> 1 | EA126: =IFERROR(IF('Indices T.P. matériaux'!CQ33/IF('Indices T.P. matériaux'!CQ$33=0, INDEX(Indices_TP___2025[TP 105 - porphyre concassé - tout calibre (àpd 12/2023)],MATCH(TRUE,Indices_TP___2025[TP 105 - porphyre concassé - tout calibre (àpd 12/2023)]<>"",0)), 'Indices T.P. matériaux'!CQ$33)=0,NA(),'Indices T.P. matériaux'!CQ33/IF('Indices T.P. matériaux'!CQ$33=0, INDEX(Indices_TP___2025[TP 105 - porphyre concassé - tout calibre (àpd 12/2023)],MATCH(TRUE,Indices_TP___2025[TP 105 - porphyre concassé - tout calibre (àpd 12/2023)]<>"",0)), 'Indices T.P. matériaux'!CQ$33)),NA()) -> 1 | EB126: =IFERROR(IF('Indices T.P. matériaux'!CR33/IF('Indices T.P. matériaux'!CR$33=0, INDEX(Indices_TP___2025[TP 105 - porphyre concassé - tout calibre (àpd 12/2023)],MATCH(TRUE,Indices_TP___2025[TP 105 - porphyre concassé - tout calibre (àpd 12/2023)]<>"",0)), 'Indices T.P. matériaux'!CR$33)=0,NA(),'Indices T.P. matériaux'!CR33/IF('Indices T.P. matériaux'!CR$33=0, INDEX(Indices_TP___2025[TP 105 - porphyre concassé - tout calibre (àpd 12/2023)],MATCH(TRUE,Indices_TP___2025[TP 105 - porphyre concassé - tout calibre (àpd 12/2023)]<>"",0)), 'Indices T.P. matériaux'!CR$33)),NA()) -> 1 | EC126: =IFERROR(IF('Indices T.P. matériaux'!CS33/IF('Indices T.P. matériaux'!CS$33=0, INDEX(Indices_TP___2025[TP 105 - porphyre concassé - tout calibre (àpd 12/2023)],MATCH(TRUE,Indices_TP___2025[TP 105 - porphyre concassé - tout calibre (àpd 12/2023)]<>"",0)), 'Indices T.P. matériaux'!CS$33)=0,NA(),'Indices T.P. matériaux'!CS33/IF('Indices T.P. matériaux'!CS$33=0, INDEX(Indices_TP___2025[TP 105 - porphyre concassé - tout calibre (àpd 12/2023)],MATCH(TRUE,Indices_TP___2025[TP 105 - porphyre concassé - tout calibre (àpd 12/2023)]<>"",0)), 'Indices T.P. matériaux'!CS$33)),NA()) -> 1 | ED126: =IFERROR(IF('Indices T.P. matériaux'!CT33/IF('Indices T.P. matériaux'!CT$33=0, INDEX(Indices_TP___2025[TP 105 - porphyre concassé - tout calibre (àpd 12/2023)],MATCH(TRUE,Indices_TP___2025[TP 105 - porphyre concassé - tout calibre (àpd 12/2023)]<>"",0)), 'Indices T.P. matériaux'!CT$33)=0,NA(),'Indices T.P. matériaux'!CT33/IF('Indices T.P. matériaux'!CT$33=0, INDEX(Indices_TP___2025[TP 105 - porphyre concassé - tout calibre (àpd 12/2023)],MATCH(TRUE,Indices_TP___2025[TP 105 - porphyre concassé - tout calibre (àpd 12/2023)]<>"",0)), 'Indices T.P. matériaux'!CT$33)),NA()) ->  | EE126: =IFERROR(IF('Indices T.P. matériaux'!CU33/IF('Indices T.P. matériaux'!CU$33=0, INDEX(Indices_TP___2025[TP 105 - porphyre concassé - tout calibre (àpd 12/2023)],MATCH(TRUE,Indices_TP___2025[TP 105 - porphyre concassé - tout calibre (àpd 12/2023)]<>"",0)), 'Indices T.P. matériaux'!CU$33)=0,NA(),'Indices T.P. matériaux'!CU33/IF('Indices T.P. matériaux'!CU$33=0, INDEX(Indices_TP___2025[TP 105 - porphyre concassé - tout calibre (àpd 12/2023)],MATCH(TRUE,Indices_TP___2025[TP 105 - porphyre concassé - tout calibre (àpd 12/2023)]<>"",0)), 'Indices T.P. matériaux'!CU$33)),NA()) ->  | EF126: =IFERROR(IF('Indices T.P. matériaux'!CV33/IF('Indices T.P. matériaux'!CV$33=0, INDEX(Indices_TP___2025[TP 105 - porphyre concassé - tout calibre (àpd 12/2023)],MATCH(TRUE,Indices_TP___2025[TP 105 - porphyre concassé - tout calibre (àpd 12/2023)]<>"",0)), 'Indices T.P. matériaux'!CV$33)=0,NA(),'Indices T.P. matériaux'!CV33/IF('Indices T.P. matériaux'!CV$33=0, INDEX(Indices_TP___2025[TP 105 - porphyre concassé - tout calibre (àpd 12/2023)],MATCH(TRUE,Indices_TP___2025[TP 105 - porphyre concassé - tout calibre (àpd 12/2023)]<>"",0)), 'Indices T.P. matériaux'!CV$33)),NA()) ->  | EG126: =IFERROR(IF('Indices T.P. matériaux'!CW33/IF('Indices T.P. matériaux'!CW$33=0, INDEX(Indices_TP___2025[TP 105 - porphyre concassé - tout calibre (àpd 12/2023)],MATCH(TRUE,Indices_TP___2025[TP 105 - porphyre concassé - tout calibre (àpd 12/2023)]<>"",0)), 'Indices T.P. matériaux'!CW$33)=0,NA(),'Indices T.P. matériaux'!CW33/IF('Indices T.P. matériaux'!CW$33=0, INDEX(Indices_TP___2025[TP 105 - porphyre concassé - tout calibre (àpd 12/2023)],MATCH(TRUE,Indices_TP___2025[TP 105 - porphyre concassé - tout calibre (àpd 12/2023)]<>"",0)), 'Indices T.P. matériaux'!CW$33)),NA()) ->  | EH126: =IFERROR(IF('Indices Grymafer'!D30/'Indices Grymafer'!D$30=0,NA(),'Indices Grymafer'!D30/'Indices Grymafer'!D$30),NA()) -> 1 | EI126: =IFERROR(IF('Indices Grymafer'!E30/'Indices Grymafer'!E$30=0,NA(),'Indices Grymafer'!E30/'Indices Grymafer'!E$30),NA()) -> 1 | EJ126: =IFERROR(IF('Indices Grymafer'!F30/'Indices Grymafer'!F$30=0,NA(),'Indices Grymafer'!F30/'Indices Grymafer'!F$30),NA()) -> 1 | EK126: =IFERROR(IF('Indices Grymafer'!G30/'Indices Grymafer'!G$30=0,NA(),'Indices Grymafer'!G30/'Indices Grymafer'!G$30),NA()) -> 1 | EL126: =IFERROR(IF('Indices T.P. matériaux'!CZ33/'Indices T.P. matériaux'!CZ$33=0,NA(),'Indices T.P. matériaux'!CZ33/'Indices T.P. matériaux'!CZ$33),NA()) -> 1 | EM126: =IFERROR(IF('Indices T.P. matériaux'!DA33/'Indices T.P. matériaux'!DA$33=0,NA(),'Indices T.P. matériaux'!DA33/'Indices T.P. matériaux'!DA$33),NA()) -> 1 | EN126: =IFERROR(IF('Indices T.P. matériaux'!DB33/'Indices T.P. matériaux'!DB$33=0,NA(),'Indices T.P. matériaux'!DB33/'Indices T.P. matériaux'!DB$33),NA()) -> 1 | EO126: =IFERROR(IF('Indices T.P. matériaux'!DC33/'Indices T.P. matériaux'!DC$33=0,NA(),'Indices T.P. matériaux'!DC33/'Indices T.P. matériaux'!DC$33),NA()) -> 1 | EP126: =IFERROR(IF('Indices T.P. matériaux'!DD33/'Indices T.P. matériaux'!DD$33=0,NA(),'Indices T.P. matériaux'!DD33/'Indices T.P. matériaux'!DD$33),NA()) -> 1 | EQ126: =IFERROR(IF('Indices T.P. matériaux'!DE33/'Indices T.P. matériaux'!DE$33=0,NA(),'Indices T.P. matériaux'!DE33/'Indices T.P. matériaux'!DE$33),NA()) -> 1 | ER126: =IFERROR(IF('Indices T.P. matériaux'!DF33/'Indices T.P. matériaux'!DF$33=0,NA(),'Indices T.P. matériaux'!DF33/'Indices T.P. matériaux'!DF$33),NA()) -> 1 | ES126: =IFERROR(IF('Indices T.P. matériaux'!DG33/'Indices T.P. matériaux'!DG$33=0,NA(),'Indices T.P. matériaux'!DG33/'Indices T.P. matériaux'!DG$33),NA()) -> 1 | EU126: =B126 -> 2018-01-01 | EV126: =IFERROR(IF('Indices des produits & services'!D30/'Indices des produits & services'!D$30=0,NA(),'Indices des produits & services'!D30/'Indices des produits & services'!D$30),NA()) -> 1 | EW126: =IFERROR(IF('Indices des produits & services'!E30/'Indices des produits & services'!E$30=0,NA(),'Indices des produits & services'!E30/'Indices des produits & services'!E$30),NA()) -> 1 | EX126: =IFERROR(IF('Indices des produits & services'!F30/'Indices des produits & services'!F$30=0,NA(),'Indices des produits & services'!F30/'Indices des produits & services'!F$30),NA()) -> 1 | EY126: =IFERROR(IF('Indices des produits & services'!G30/'Indices des produits & services'!G$30=0,NA(),'Indices des produits & services'!G30/'Indices des produits & services'!G$30),NA()) -> 1 | EZ126: =IFERROR(IF('Indices des produits & services'!H30/'Indices des produits & services'!H$30=0,NA(),'Indices des produits & services'!H30/'Indices des produits & services'!H$30),NA()) -> 1 | FA126: =IFERROR(IF('Indices des produits & services'!I30/'Indices des produits & services'!I$30=0,NA(),'Indices des produits & services'!I30/'Indices des produits & services'!I$30),NA()) -> 1 | FB126: =IFERROR(IF('Indices des produits & services'!J30/'Indices des produits & services'!J$30=0,NA(),'Indices des produits & services'!J30/'Indices des produits & services'!J$30),NA()) -> 1 | FC126: =IFERROR(IF('Indices des produits & services'!K30/'Indices des produits & services'!K$30=0,NA(),'Indices des produits & services'!K30/'Indices des produits & services'!K$30),NA()) -> 1 | FD126: =IFERROR(IF('Indices des produits & services'!L30/'Indices des produits & services'!L$30=0,NA(),'Indices des produits & services'!L30/'Indices des produits & services'!L$30),NA()) -> 1 | FE126: =IFERROR(IF('Indices des produits & services'!M30/'Indices des produits & services'!M$30=0,NA(),'Indices des produits & services'!M30/'Indices des produits & services'!M$30),NA()) -> 1 | FF126: =IFERROR(IF('Indices des produits & services'!N30/'Indices des produits & services'!N$30=0,NA(),'Indices des produits & services'!N30/'Indices des produits & services'!N$30),NA()) -> 1 | FG126: =IFERROR(IF('Indices des produits & services'!O30/'Indices des produits & services'!O$30=0,NA(),'Indices des produits & services'!O30/'Indices des produits & services'!O$30),NA()) -> 1 | FH126: =IFERROR(IF('Indices des produits & services'!P30/'Indices des produits & services'!P$30=0,NA(),'Indices des produits & services'!P30/'Indices des produits & services'!P$30),NA()) -> 1 | FI126: =IFERROR(IF('Indices des produits & services'!Q30/'Indices des produits & services'!Q$30=0,NA(),'Indices des produits & services'!Q30/'Indices des produits & services'!Q$30),NA()) -> 1 | FJ126: =IFERROR(IF('Indices des produits & services'!R30/'Indices des produits & services'!R$30=0,NA(),'Indices des produits & services'!R30/'Indices des produits & services'!R$30),NA()) -> 1 | FK126: =IFERROR(IF('Indices des produits & services'!S30/'Indices des produits & services'!S$30=0,NA(),'Indices des produits & services'!S30/'Indices des produits & services'!S$30),NA()) -> 1 | FL126: =IFERROR(IF('Indices des produits & services'!T30/'Indices des produits & services'!T$30=0,NA(),'Indices des produits & services'!T30/'Indices des produits & services'!T$30),NA()) -> 1 | FM126: =IFERROR(IF('Indices des produits & services'!U30/'Indices des produits & services'!U$30=0,NA(),'Indices des produits & services'!U30/'Indices des produits & services'!U$30),NA()) -> 1 | FN126: =IFERROR(IF('Indices des produits & services'!V30/'Indices des produits & services'!V$30=0,NA(),'Indices des produits & services'!V30/'Indices des produits & services'!V$30),NA()) -> 1 | FO126: =IFERROR(IF('Indices des produits & services'!W30/'Indices des produits & services'!W$30=0,NA(),'Indices des produits & services'!W30/'Indices des produits & services'!W$30),NA()) -> 1 | FP126: =IFERROR(IF('Indices des produits & services'!X30/'Indices des produits & services'!X$30=0,NA(),'Indices des produits & services'!X30/'Indices des produits & services'!X$30),NA()) -> 1 | FQ126: =IFERROR(IF('Indices des produits & services'!Y30/'Indices des produits & services'!Y$30=0,NA(),'Indices des produits & services'!Y30/'Indices des produits & services'!Y$30),NA()) -> 1 | FR126: =IFERROR(IF('Indices des produits & services'!Z30/'Indices des produits & services'!Z$30=0,NA(),'Indices des produits & services'!Z30/'Indices des produits & services'!Z$30),NA()) -> 1 | FS126: =IFERROR(IF('Indices des produits & services'!AA30/'Indices des produits & services'!AA$30=0,NA(),'Indices des produits & services'!AA30/'Indices des produits & services'!AA$30),NA()) -> 1 | FT126: =IFERROR(IF('Indices des produits & services'!AB30/'Indices des produits & services'!AB$30=0,NA(),'Indices des produits & services'!AB30/'Indices des produits & services'!AB$30),NA()) -> 1 | FU126: =IFERROR(IF('Indices des produits & services'!AC30/'Indices des produits & services'!AC$30=0,NA(),'Indices des produits & services'!AC30/'Indices des produits & services'!AC$30),NA()) -> 1 | FV126: =IFERROR(IF('Indices des produits & services'!AD30/'Indices des produits & services'!AD$30=0,NA(),'Indices des produits & services'!AD30/'Indices des produits & services'!AD$30),NA()) -> 1 | FW126: =IFERROR(IF('Indices des produits & services'!AE30/'Indices des produits & services'!AE$30=0,NA(),'Indices des produits & services'!AE30/'Indices des produits & services'!AE$30),NA()) -> 1 | FX126: =IFERROR(IF('Indices des produits & services'!AF30/'Indices des produits & services'!AF$30=0,NA(),'Indices des produits & services'!AF30/'Indices des produits & services'!AF$30),NA()) -> 1 | FY126: =IFERROR(IF('Indices des produits & services'!AG30/'Indices des produits & services'!AG$30=0,NA(),'Indices des produits & services'!AG30/'Indices des produits & services'!AG$30),NA()) -> 1 | FZ126: =IFERROR(IF('Indices des produits & services'!AH30/'Indices des produits & services'!AH$30=0,NA(),'Indices des produits & services'!AH30/'Indices des produits & services'!AH$30),NA()) -> 1 | GA126: =IFERROR(IF('Indices des produits & services'!AI30/'Indices des produits & services'!AI$30=0,NA(),'Indices des produits & services'!AI30/'Indices des produits & services'!AI$30),NA()) -> 1 | GB126: =IFERROR(IF('Indices des produits & services'!AJ30/'Indices des produits & services'!AJ$30=0,NA(),'Indices des produits & services'!AJ30/'Indices des produits & services'!AJ$30),NA()) -> 1 | GC126: =IFERROR(IF('Indices des produits & services'!AK30/'Indices des produits & services'!AK$30=0,NA(),'Indices des produits & services'!AK30/'Indices des produits & services'!AK$30),NA()) -> 1 | GD126: =IFERROR(IF('Indices des produits & services'!AL30/'Indices des produits & services'!AL$30=0,NA(),'Indices des produits & services'!AL30/'Indices des produits & services'!AL$30),NA()) -> 1 | GE126: =IFERROR(IF('Indices des produits & services'!AM30/'Indices des produits & services'!AM$30=0,NA(),'Indices des produits & services'!AM30/'Indices des produits & services'!AM$30),NA()) -> 1 | GF126: =IFERROR(IF('Indices des produits & services'!AN30/'Indices des produits & services'!AN$30=0,NA(),'Indices des produits & services'!AN30/'Indices des produits & services'!AN$30),NA()) -> 1 | GG126: =IFERROR(IF('Indices des produits & services'!AO30/'Indices des produits & services'!AO$30=0,NA(),'Indices des produits & services'!AO30/'Indices des produits & services'!AO$30),NA()) -> 1 | GH126: =IFERROR(IF('Indices des produits & services'!AP30/'Indices des produits & services'!AP$30=0,NA(),'Indices des produits & services'!AP30/'Indices des produits & services'!AP$30),NA()) -> 1 | GI126: =IFERROR(IF('Indices des produits & services'!AQ30/'Indices des produits & services'!AQ$30=0,NA(),'Indices des produits & services'!AQ30/'Indices des produits & services'!AQ$30),NA()) -> 1 | GJ126: =IFERROR(IF('Indices des produits & services'!AR30/'Indices des produits & services'!AR$30=0,NA(),'Indices des produits & services'!AR30/'Indices des produits & services'!AR$30),NA()) -> 1 | GK126: =IFERROR(IF('Indices des produits & services'!AS30/'Indices des produits & services'!AS$30=0,NA(),'Indices des produits & services'!AS30/'Indices des produits & services'!AS$30),NA()) -> 1 | GL126: =IFERROR(IF('Indices des produits & services'!AT30/'Indices des produits & services'!AT$30=0,NA(),'Indices des produits & services'!AT30/'Indices des produits & services'!AT$30),NA()) -> 1 | GM126: =IFERROR(IF('Indices des produits & services'!AU30/'Indices des produits & services'!AU$30=0,NA(),'Indices des produits & services'!AU30/'Indices des produits & services'!AU$30),NA()) -> 1 | GN126: =IFERROR(IF('Indices des produits & services'!AV30/'Indices des produits & services'!AV$30=0,NA(),'Indices des produits & services'!AV30/'Indices des produits & services'!AV$30),NA()) -> 1 | GO126: =IFERROR(IF('Indices des produits & services'!AW30/'Indices des produits & services'!AW$30=0,NA(),'Indices des produits & services'!AW30/'Indices des produits & services'!AW$30),NA()) -> 1 | GP126: =IFERROR(IF('Indices des produits & services'!AX30/'Indices des produits & services'!AX$30=0,NA(),'Indices des produits & services'!AX30/'Indices des produits & services'!AX$30),NA()) -> 1 | GQ126: =IFERROR(IF('Indices des produits & services'!AY30/'Indices des produits & services'!AY$30=0,NA(),'Indices des produits & services'!AY30/'Indices des produits & services'!AY$30),NA()) -> 1 | GR126: =IFERROR(IF('Indices des produits & services'!AZ30/'Indices des produits & services'!AZ$30=0,NA(),'Indices des produits & services'!AZ30/'Indices des produits & services'!AZ$30),NA()) -> 1 | GS126: =IFERROR(IF('Indices des produits & services'!BA30/'Indices des produits & services'!BA$30=0,NA(),'Indices des produits & services'!BA30/'Indices des produits & services'!BA$30),NA()) -> 1 | GT126: =IFERROR(IF('Indices des produits & services'!BB30/'Indices des produits & services'!BB$30=0,NA(),'Indices des produits & services'!BB30/'Indices des produits & services'!BB$30),NA()) -> 1 | GU126: =IFERROR(IF('Indices des produits & services'!BC30/'Indices des produits & services'!BC$30=0,NA(),'Indices des produits & services'!BC30/'Indices des produits & services'!BC$30),NA()) -> 1 | GV126: =IFERROR(IF('Indices des produits & services'!BD30/'Indices des produits & services'!BD$30=0,NA(),'Indices des produits & services'!BD30/'Indices des produits & services'!BD$30),NA()) -> 1 | GW126: =IFERROR(IF('Indices des produits & services'!BE30/'Indices des produits & services'!BE$30=0,NA(),'Indices des produits & services'!BE30/'Indices des produits & services'!BE$30),NA()) -> 1 | GX126: =IFERROR(IF('Indices des produits & services'!BF30/'Indices des produits & services'!BF$30=0,NA(),'Indices des produits & services'!BF30/'Indices des produits & services'!BF$30),NA()) -> 1 | GY126: =IFERROR(IF('Indices des produits & services'!BG30/'Indices des produits & services'!BG$30=0,NA(),'Indices des produits & services'!BG30/'Indices des produits & services'!BG$30),NA()) -> 1 | GZ126: =IFERROR(IF('Indices des produits & services'!BH30/'Indices des produits & services'!BH$30=0,NA(),'Indices des produits & services'!BH30/'Indices des produits & services'!BH$30),NA()) -> 1 | HA126: =IFERROR(IF('Indices des produits & services'!BI30/'Indices des produits & services'!BI$30=0,NA(),'Indices des produits & services'!BI30/'Indices des produits & services'!BI$30),NA()) -> 1 | HB126: =IFERROR(IF('Indices des produits & services'!BJ30/'Indices des produits & services'!BJ$30=0,NA(),'Indices des produits & services'!BJ30/'Indices des produits & services'!BJ$30),NA()) -> 1 | HC126: =IFERROR(IF('Indices des produits & services'!BK30/'Indices des produits & services'!BK$30=0,NA(),'Indices des produits & services'!BK30/'Indices des produits & services'!BK$30),NA()) -> 1 | HD126: =IFERROR(IF('Indices des produits & services'!BL30/'Indices des produits & services'!BL$30=0,NA(),'Indices des produits & services'!BL30/'Indices des produits & services'!BL$30),NA()) -> 1 | HE126: =IFERROR(IF('Indices des produits & services'!BM30/'Indices des produits & services'!BM$30=0,NA(),'Indices des produits & services'!BM30/'Indices des produits & services'!BM$30),NA()) -> 1 | HF126: =IFERROR(IF('Indices des produits & services'!BN30/'Indices des produits & services'!BN$30=0,NA(),'Indices des produits & services'!BN30/'Indices des produits & services'!BN$30),NA()) -> 1 | HG126: =IFERROR(IF('Indices des produits & services'!BO30/'Indices des produits & services'!BO$30=0,NA(),'Indices des produits & services'!BO30/'Indices des produits & services'!BO$30),NA()) -> 1 | HH126: =IFERROR(IF('Indices des produits & services'!BP30/'Indices des produits & services'!BP$30=0,NA(),'Indices des produits & services'!BP30/'Indices des produits & services'!BP$30),NA()) -> 1 | HI126: =IFERROR(IF('Indices des produits & services'!BQ30/'Indices des produits & services'!BQ$30=0,NA(),'Indices des produits & services'!BQ30/'Indices des produits & services'!BQ$30),NA()) -> 1 | HJ126: =IFERROR(IF('Indices des produits & services'!BR30/'Indices des produits & services'!BR$30=0,NA(),'Indices des produits & services'!BR30/'Indices des produits & services'!BR$30),NA()) -> 1 | HK126: =IFERROR(IF('Indices des produits & services'!BS30/'Indices des produits & services'!BS$30=0,NA(),'Indices des produits & services'!BS30/'Indices des produits & services'!BS$30),NA()) -> 1 | HL126: =IFERROR(IF('Indices des produits & services'!BT30/'Indices des produits & services'!BT$30=0,NA(),'Indices des produits & services'!BT30/'Indices des produits & services'!BT$30),NA()) -> 1 | HM126: =IFERROR(IF('Indices des produits & services'!BU30/'Indices des produits & services'!BU$30=0,NA(),'Indices des produits & services'!BU30/'Indices des produits & services'!BU$30),NA()) -> 1 | HN126: =IFERROR(IF('Indices des produits & services'!BV30/'Indices des produits & services'!BV$30=0,NA(),'Indices des produits & services'!BV30/'Indices des produits & services'!BV$30),NA()) -> 1 | HO126: =IFERROR(IF('Indices des produits & services'!BW30/'Indices des produits & services'!BW$30=0,NA(),'Indices des produits & services'!BW30/'Indices des produits & services'!BW$30),NA()) -> 1 | HP126: =IFERROR(IF('Indices des produits & services'!BX30/'Indices des produits & services'!BX$30=0,NA(),'Indices des produits & services'!BX30/'Indices des produits & services'!BX$30),NA()) -> 1 | HQ126: =IFERROR(IF('Indices des produits & services'!BY30/'Indices des produits & services'!BY$30=0,NA(),'Indices des produits & services'!BY30/'Indices des produits & services'!BY$30),NA()) -> 1 | HR126: =IFERROR(IF('Indices des produits & services'!BZ30/'Indices des produits & services'!BZ$30=0,NA(),'Indices des produits & services'!BZ30/'Indices des produits & services'!BZ$30),NA()) -> 1 | HS126: =IFERROR(IF('Indices des produits & services'!CA30/'Indices des produits & services'!CA$30=0,NA(),'Indices des produits & services'!CA30/'Indices des produits & services'!CA$30),NA()) -> 1 | HT126: =IFERROR(IF('Indices des produits & services'!CB30/'Indices des produits & services'!CB$30=0,NA(),'Indices des produits & services'!CB30/'Indices des produits & services'!CB$30),NA()) -> 1 | HU126: =IFERROR(IF('Indices des produits & services'!CC30/'Indices des produits & services'!CC$30=0,NA(),'Indices des produits & services'!CC30/'Indices des produits & services'!CC$30),NA()) -> 1 | HV126: =IFERROR(IF('Indices des produits & services'!CD30/'Indices des produits & services'!CD$30=0,NA(),'Indices des produits & services'!CD30/'Indices des produits & services'!CD$30),NA()) -> 1 | HW126: =IFERROR(IF('Indices des produits & services'!CE30/'Indices des produits & services'!CE$30=0,NA(),'Indices des produits & services'!CE30/'Indices des produits & services'!CE$30),NA()) -> 1 | HX126: =IFERROR(IF('Indices des produits & services'!CF30/'Indices des produits & services'!CF$30=0,NA(),'Indices des produits & services'!CF30/'Indices des produits & services'!CF$30),NA()) -> 1 | HY126: =IFERROR(IF('Indices des produits & services'!CG30/'Indices des produits & services'!CG$30=0,NA(),'Indices des produits & services'!CG30/'Indices des produits & services'!CG$30),NA()) -> 1 | HZ126: =IFERROR(IF('Indices des produits & services'!CH30/'Indices des produits & services'!CH$30=0,NA(),'Indices des produits & services'!CH30/'Indices des produits & services'!CH$30),NA()) -> 1 | IA126: =IFERROR(IF('Indices des produits & services'!CI30/'Indices des produits & services'!CI$30=0,NA(),'Indices des produits & services'!CI30/'Indices des produits & services'!CI$30),NA()) -> 1 | IB126: =IFERROR(IF('Indices des produits & services'!CJ30/'Indices des produits & services'!CJ$30=0,NA(),'Indices des produits & services'!CJ30/'Indices des produits & services'!CJ$30),NA()) -> 1 | IC126: =IFERROR(IF('Indices des produits & services'!CK30/'Indices des produits & services'!CK$30=0,NA(),'Indices des produits & services'!CK30/'Indices des produits & services'!CK$30),NA()) -> 1 | ID126: =IFERROR(IF('Indices des produits & services'!CL30/'Indices des produits & services'!CL$30=0,NA(),'Indices des produits & services'!CL30/'Indices des produits & services'!CL$30),NA()) -> 1 | IE126: =IFERROR(IF('Indices des produits & services'!CM30/'Indices des produits & services'!CM$30=0,NA(),'Indices des produits & services'!CM30/'Indices des produits & services'!CM$30),NA()) -> 1 | IF126: =IFERROR(IF('Indices des produits & services'!CN30/'Indices des produits & services'!CN$30=0,NA(),'Indices des produits & services'!CN30/'Indices des produits & services'!CN$30),NA()) -> 1 | IH126: =B126 -> 2018-01-01 | II126: =IFERROR(IF('Indices courants'!J28/'Indices courants'!J$28=0,NA(),'Indices courants'!J28/'Indices courants'!J$28),NA()) -> 1 | IJ126: =IFERROR(IF('Indices courants'!K28/'Indices courants'!K$28=0,NA(),'Indices courants'!K28/'Indices courants'!K$28),NA()) -> 1 | IK126: =IFERROR(IF('Indices courants'!L28/'Indices courants'!L$28=0,NA(),'Indices courants'!L28/'Indices courants'!L$28),NA()) -> 1 | IL126: =IFERROR(IF('Indices courants'!M28/'Indices courants'!M$28=0,NA(),'Indices courants'!M28/'Indices courants'!M$28),NA()) -> 1 | IM126: =IFERROR(IF('Indices courants'!N28/'Indices courants'!N$28=0,NA(),'Indices courants'!N28/'Indices courants'!N$28),NA()) -> 1 | IN126: =IFERROR(IF('Indices courants'!O28/'Indices courants'!O$28=0,NA(),'Indices courants'!O28/'Indices courants'!O$28),NA()) -> 1 | IO126: =IFERROR(IF('Indices courants'!P28/'Indices courants'!P$28=0,NA(),'Indices courants'!P28/'Indices courants'!P$28),NA()) -> 1 | IP126: =IFERROR(IF('Indices courants'!Q28/'Indices courants'!Q$28=0,NA(),'Indices courants'!Q28/'Indices courants'!Q$28),NA()) -> 1 | IQ126: =IFERROR(IF('Indices courants'!R28/'Indices courants'!R$28=0,NA(),'Indices courants'!R28/'Indices courants'!R$28),NA()) -> 1 | IR126: =IFERROR(IF('Indices courants'!S28/'Indices courants'!S$28=0,NA(),'Indices courants'!S28/'Indices courants'!S$28),NA()) -> 1 | IS126: =IFERROR(IF('Indices courants'!T28/'Indices courants'!T$28=0,NA(),'Indices courants'!T28/'Indices courants'!T$28),NA()) -> 1 | IT126: =IFERROR(IF('Indices courants'!U28/'Indices courants'!U$28=0,NA(),'Indices courants'!U28/'Indices courants'!U$28),NA()) -> 1 | IU126: =IFERROR(IF('Indices courants'!V28/'Indices courants'!V$28=0,NA(),'Indices courants'!V28/'Indices courants'!V$28),NA()) -> 1 | IV126: =IFERROR(IF('Indices courants'!W28/'Indices courants'!W$28=0,NA(),'Indices courants'!W28/'Indices courants'!W$28),NA()) -> 1 | IW126: =IFERROR(IF('Indices courants'!X28/'Indices courants'!X$28=0,NA(),'Indices courants'!X28/'Indices courants'!X$28),NA()) -> 1 | IX126: =IFERROR(IF('Indices courants'!Y28/'Indices courants'!Y$28=0,NA(),'Indices courants'!Y28/'Indices courants'!Y$28),NA()) -> 1 | IY126: =IFERROR(IF('Indices courants'!Z28/'Indices courants'!Z$28=0,NA(),'Indices courants'!Z28/'Indices courants'!Z$28),NA()) -> 1 | IZ126: =IFERROR(IF('Indices courants'!AA28/'Indices courants'!AA$28=0,NA(),'Indices courants'!AA28/'Indices courants'!AA$28),NA()) -> 1 | JA126: =IFERROR(IF('Indices courants'!AB28/'Indices courants'!AB$28=0,NA(),'Indices courants'!AB28/'Indices courants'!AB$28),NA()) -> 1 | JB126: =IFERROR(IF('Indices courants'!AC28/'Indices courants'!AC$28=0,NA(),'Indices courants'!AC28/'Indices courants'!AC$28),NA()) -> 1 | JC126: =IFERROR(IF('Indices courants'!AD28/'Indices courants'!AD$28=0,NA(),'Indices courants'!AD28/'Indices courants'!AD$28),NA()) -> 1 | JD126: =IFERROR(IF('Indexations des salaires par CP'!BY37/'Indexations des salaires par CP'!BY$37=0,NA(),'Indexations des salaires par CP'!BY37/'Indexations des salaires par CP'!BY$37),NA()) -> 1 | JE126: =IFERROR(IF('Indexations des salaires par CP'!BZ37/'Indexations des salaires par CP'!BZ$37=0,NA(),'Indexations des salaires par CP'!BZ37/'Indexations des salaires par CP'!BZ$37),NA()) -> 1 | JF126: =IFERROR(IF('Indexations des salaires par CP'!CA37/'Indexations des salaires par CP'!CA$37=0,NA(),'Indexations des salaires par CP'!CA37/'Indexations des salaires par CP'!CA$37),NA()) -> 1 | JG126: =IFERROR(IF('Indexations des salaires par CP'!CB37/'Indexations des salaires par CP'!CB$37=0,NA(),'Indexations des salaires par CP'!CB37/'Indexations des salaires par CP'!CB$37),NA()) -> 1 | JH126: =IFERROR(IF('Indexations des salaires par CP'!CC37/'Indexations des salaires par CP'!CC$37=0,NA(),'Indexations des salaires par CP'!CC37/'Indexations des salaires par CP'!CC$37),NA()) -> 1 | JI126: =IFERROR(IF('Indexations des salaires par CP'!CD37/'Indexations des salaires par CP'!CD$37=0,NA(),'Indexations des salaires par CP'!CD37/'Indexations des salaires par CP'!CD$37),NA()) -> 1 | JJ126: =IFERROR(IF('Indexations des salaires par CP'!CE37/'Indexations des salaires par CP'!CE$37=0,NA(),'Indexations des salaires par CP'!CE37/'Indexations des salaires par CP'!CE$37),NA()) -> 1 | JK126: =IFERROR(IF('Indexations des salaires par CP'!CF37/'Indexations des salaires par CP'!CF$37=0,NA(),'Indexations des salaires par CP'!CF37/'Indexations des salaires par CP'!CF$37),NA()) -> 1 | JL126: =IFERROR(IF('Indexations des salaires par CP'!CG37/'Indexations des salaires par CP'!CG$37=0,NA(),'Indexations des salaires par CP'!CG37/'Indexations des salaires par CP'!CG$37),NA()) -> 1 | JM126: =IFERROR(IF('Indexations des salaires par CP'!CH37/'Indexations des salaires par CP'!CH$37=0,NA(),'Indexations des salaires par CP'!CH37/'Indexations des salaires par CP'!CH$37),NA()) -> 1
B127: ='Indices courants'!C29 -> 2018-02-01 | C127: =IFERROR(IF('Indices courants'!D29/'Indices courants'!D$28=0,NA(),'Indices courants'!D29/'Indices courants'!D$28),NA()) -> 1.001776875 | D127: =IFERROR(IF('Indices courants'!E29/'Indices courants'!E$28=0,NA(),'Indices courants'!E29/'Indices courants'!E$28),NA()) -> 1.009613397 | E127: =IFERROR(IF('Indices courants'!F29/'Indices courants'!F$28=0,NA(),'Indices courants'!F29/'Indices courants'!F$28),NA()) -> 0.9962311558 | F127: =IFERROR(IF('Indices courants'!G29/'Indices courants'!G$28=0,NA(),'Indices courants'!G29/'Indices courants'!G$28),NA()) -> 1 | G127: =IFERROR(IF('Indices courants'!H29/'Indices courants'!H$28=0,NA(),'Indices courants'!H29/'Indices courants'!H$28),NA()) -> 0.9940675767 | H127: =IFERROR(IF('Indices courants'!I29/'Indices courants'!I$28=0,NA(),'Indices courants'!I29/'Indices courants'!I$28),NA()) -> 1.006684661 | I127: ='Rétrospectives & prévisions'!R58 -> 1.00151 | J127: ='Rétrospectives & prévisions'!O58 ->  | K127: =IFERROR(IF('Indices courants'!AE29/IF('Indices courants'!AE$28=0, INDEX('Indices courants'!AE$28:AE$135, MATCH(TRUE,Indices_courants___2025[IPP 23 - Fabrication d’autres produits minéraux non métalliques]<>"",0)),'Indices courants'!AE$28)=0,NA(), 'Indices courants'!AE29/IF('Indices courants'!AE$28=0, INDEX('Indices courants'!AE$28:AE$135, MATCH(TRUE,Indices_courants___2025[IPP 23 - Fabrication d’autres produits minéraux non métalliques]<>"",0)),'Indices courants'!AE$28)),NA()) ->  | L127: =IFERROR(IF('Indices courants'!AF29/IF('Indices courants'!AF$28=0, INDEX('Indices courants'!AF$28:AF$135, MATCH(TRUE,Indices_courants___2025[IPP 23 - Fabrication d’autres produits minéraux non métalliques]<>"",0)),'Indices courants'!AF$28)=0,NA(), 'Indices courants'!AF29/IF('Indices courants'!AF$28=0, INDEX('Indices courants'!AF$28:AF$135, MATCH(TRUE,Indices_courants___2025[IPP 23 - Fabrication d’autres produits minéraux non métalliques]<>"",0)),'Indices courants'!AF$28)),NA()) ->  | M127: =IFERROR(IF('Indices courants'!AG29/IF('Indices courants'!AG$28=0, INDEX('Indices courants'!AG$28:AG$135, MATCH(TRUE,Indices_courants___2025[IPP 23 - Fabrication d’autres produits minéraux non métalliques]<>"",0)),'Indices courants'!AG$28)=0,NA(), 'Indices courants'!AG29/IF('Indices courants'!AG$28=0, INDEX('Indices courants'!AG$28:AG$135, MATCH(TRUE,Indices_courants___2025[IPP 23 - Fabrication d’autres produits minéraux non métalliques]<>"",0)),'Indices courants'!AG$28)),NA()) ->  | N127: =IFERROR(IF('Indices courants'!AH29/IF('Indices courants'!AH$28=0, INDEX('Indices courants'!AH$28:AH$135, MATCH(TRUE,Indices_courants___2025[IPP 23 - Fabrication d’autres produits minéraux non métalliques]<>"",0)),'Indices courants'!AH$28)=0,NA(), 'Indices courants'!AH29/IF('Indices courants'!AH$28=0, INDEX('Indices courants'!AH$28:AH$135, MATCH(TRUE,Indices_courants___2025[IPP 23 - Fabrication d’autres produits minéraux non métalliques]<>"",0)),'Indices courants'!AH$28)),NA()) ->  | O127: =IFERROR(IF('Indices courants'!AI29/IF('Indices courants'!AI$28=0, INDEX('Indices courants'!AI$28:AI$135, MATCH(TRUE,Indices_courants___2025[IPP 23 - Fabrication d’autres produits minéraux non métalliques]<>"",0)),'Indices courants'!AI$28)=0,NA(), 'Indices courants'!AI29/IF('Indices courants'!AI$28=0, INDEX('Indices courants'!AI$28:AI$135, MATCH(TRUE,Indices_courants___2025[IPP 23 - Fabrication d’autres produits minéraux non métalliques]<>"",0)),'Indices courants'!AI$28)),NA()) ->  | P127: =IFERROR(IF('Indices courants'!AJ29/IF('Indices courants'!AJ$28=0, INDEX('Indices courants'!AJ$28:AJ$135, MATCH(TRUE,Indices_courants___2025[IPP 23 - Fabrication d’autres produits minéraux non métalliques]<>"",0)),'Indices courants'!AJ$28)=0,NA(), 'Indices courants'!AJ29/IF('Indices courants'!AJ$28=0, INDEX('Indices courants'!AJ$28:AJ$135, MATCH(TRUE,Indices_courants___2025[IPP 23 - Fabrication d’autres produits minéraux non métalliques]<>"",0)),'Indices courants'!AJ$28)),NA()) ->  | Q127: =IFERROR(IF('Indices courants'!AK29/IF('Indices courants'!AK$28=0, INDEX('Indices courants'!AK$28:AK$135, MATCH(TRUE,Indices_courants___2025[IPP 23 - Fabrication d’autres produits minéraux non métalliques]<>"",0)),'Indices courants'!AK$28)=0,NA(), 'Indices courants'!AK29/IF('Indices courants'!AK$28=0, INDEX('Indices courants'!AK$28:AK$135, MATCH(TRUE,Indices_courants___2025[IPP 23 - Fabrication d’autres produits minéraux non métalliques]<>"",0)),'Indices courants'!AK$28)),NA()) ->  | R127: =IFERROR(IF('Indices courants'!AL29/IF('Indices courants'!AL$28=0, INDEX('Indices courants'!AL$28:AL$135, MATCH(TRUE,Indices_courants___2025[IPP 23 - Fabrication d’autres produits minéraux non métalliques]<>"",0)),'Indices courants'!AL$28)=0,NA(), 'Indices courants'!AL29/IF('Indices courants'!AL$28=0, INDEX('Indices courants'!AL$28:AL$135, MATCH(TRUE,Indices_courants___2025[IPP 23 - Fabrication d’autres produits minéraux non métalliques]<>"",0)),'Indices courants'!AL$28)),NA()) ->  | S127: =IFERROR(IF('Indices courants'!AM29/IF('Indices courants'!AM$28=0, INDEX('Indices courants'!AM$28:AM$135, MATCH(TRUE,Indices_courants___2025[IPP 23 - Fabrication d’autres produits minéraux non métalliques]<>"",0)),'Indices courants'!AM$28)=0,NA(), 'Indices courants'!AM29/IF('Indices courants'!AM$28=0, INDEX('Indices courants'!AM$28:AM$135, MATCH(TRUE,Indices_courants___2025[IPP 23 - Fabrication d’autres produits minéraux non métalliques]<>"",0)),'Indices courants'!AM$28)),NA()) ->  | T127: =IFERROR(IF('Indices courants'!AN29/IF('Indices courants'!AN$28=0, INDEX('Indices courants'!AN$28:AN$135, MATCH(TRUE,Indices_courants___2025[IPP 23 - Fabrication d’autres produits minéraux non métalliques]<>"",0)),'Indices courants'!AN$28)=0,NA(), 'Indices courants'!AN29/IF('Indices courants'!AN$28=0, INDEX('Indices courants'!AN$28:AN$135, MATCH(TRUE,Indices_courants___2025[IPP 23 - Fabrication d’autres produits minéraux non métalliques]<>"",0)),'Indices courants'!AN$28)),NA()) ->  | U127: =IFERROR(IF('Indices courants'!AO29/IF('Indices courants'!AO$28=0, INDEX('Indices courants'!AO$28:AO$135, MATCH(TRUE,Indices_courants___2025[IPP 23 - Fabrication d’autres produits minéraux non métalliques]<>"",0)),'Indices courants'!AO$28)=0,NA(), 'Indices courants'!AO29/IF('Indices courants'!AO$28=0, INDEX('Indices courants'!AO$28:AO$135, MATCH(TRUE,Indices_courants___2025[IPP 23 - Fabrication d’autres produits minéraux non métalliques]<>"",0)),'Indices courants'!AO$28)),NA()) ->  | V127: =IFERROR(IF('Indices courants'!AP29/IF('Indices courants'!AP$28=0, INDEX('Indices courants'!AP$28:AP$135, MATCH(TRUE,Indices_courants___2025[IPP 23 - Fabrication d’autres produits minéraux non métalliques]<>"",0)),'Indices courants'!AP$28)=0,NA(), 'Indices courants'!AP29/IF('Indices courants'!AP$28=0, INDEX('Indices courants'!AP$28:AP$135, MATCH(TRUE,Indices_courants___2025[IPP 23 - Fabrication d’autres produits minéraux non métalliques]<>"",0)),'Indices courants'!AP$28)),NA()) ->  | W127: =IFERROR(IF('Indices courants'!AQ29/IF('Indices courants'!AQ$28=0, INDEX('Indices courants'!AQ$28:AQ$135, MATCH(TRUE,Indices_courants___2025[IPP 23 - Fabrication d’autres produits minéraux non métalliques]<>"",0)),'Indices courants'!AQ$28)=0,NA(), 'Indices courants'!AQ29/IF('Indices courants'!AQ$28=0, INDEX('Indices courants'!AQ$28:AQ$135, MATCH(TRUE,Indices_courants___2025[IPP 23 - Fabrication d’autres produits minéraux non métalliques]<>"",0)),'Indices courants'!AQ$28)),NA()) ->  | X127: =IFERROR(IF('Indices courants'!AR29/IF('Indices courants'!AR$28=0, INDEX('Indices courants'!AR$28:AR$135, MATCH(TRUE,Indices_courants___2025[IPP 23 - Fabrication d’autres produits minéraux non métalliques]<>"",0)),'Indices courants'!AR$28)=0,NA(), 'Indices courants'!AR29/IF('Indices courants'!AR$28=0, INDEX('Indices courants'!AR$28:AR$135, MATCH(TRUE,Indices_courants___2025[IPP 23 - Fabrication d’autres produits minéraux non métalliques]<>"",0)),'Indices courants'!AR$28)),NA()) ->  | Y127: =IFERROR(IF('Indices courants'!AS29/IF('Indices courants'!AS$28=0, INDEX('Indices courants'!AS$28:AS$135, MATCH(TRUE,Indices_courants___2025[IPP 23 - Fabrication d’autres produits minéraux non métalliques]<>"",0)),'Indices courants'!AS$28)=0,NA(), 'Indices courants'!AS29/IF('Indices courants'!AS$28=0, INDEX('Indices courants'!AS$28:AS$135, MATCH(TRUE,Indices_courants___2025[IPP 23 - Fabrication d’autres produits minéraux non métalliques]<>"",0)),'Indices courants'!AS$28)),NA()) ->  | Z127: =IFERROR(IF('Indices courants'!AT29/IF('Indices courants'!AT$28=0, INDEX('Indices courants'!AT$28:AT$135, MATCH(TRUE,Indices_courants___2025[IPP 23 - Fabrication d’autres produits minéraux non métalliques]<>"",0)),'Indices courants'!AT$28)=0,NA(), 'Indices courants'!AT29/IF('Indices courants'!AT$28=0, INDEX('Indices courants'!AT$28:AT$135, MATCH(TRUE,Indices_courants___2025[IPP 23 - Fabrication d’autres produits minéraux non métalliques]<>"",0)),'Indices courants'!AT$28)),NA()) ->  | AA127: =IFERROR(IF('Indices courants'!AU29/IF('Indices courants'!AU$28=0, INDEX('Indices courants'!AU$28:AU$135, MATCH(TRUE,Indices_courants___2025[IPP 23 - Fabrication d’autres produits minéraux non métalliques]<>"",0)),'Indices courants'!AU$28)=0,NA(), 'Indices courants'!AU29/IF('Indices courants'!AU$28=0, INDEX('Indices courants'!AU$28:AU$135, MATCH(TRUE,Indices_courants___2025[IPP 23 - Fabrication d’autres produits minéraux non métalliques]<>"",0)),'Indices courants'!AU$28)),NA()) ->  | AB127: =IFERROR(IF('Indices courants'!AV29/IF('Indices courants'!AV$28=0, INDEX('Indices courants'!AV$28:AV$135, MATCH(TRUE,Indices_courants___2025[IPP 23 - Fabrication d’autres produits minéraux non métalliques]<>"",0)),'Indices courants'!AV$28)=0,NA(), 'Indices courants'!AV29/IF('Indices courants'!AV$28=0, INDEX('Indices courants'!AV$28:AV$135, MATCH(TRUE,Indices_courants___2025[IPP 23 - Fabrication d’autres produits minéraux non métalliques]<>"",0)),'Indices courants'!AV$28)),NA()) ->  | AC127: =IFERROR(IF('Indices courants'!AW29/IF('Indices courants'!AW$28=0, INDEX('Indices courants'!AW$28:AW$135, MATCH(TRUE,Indices_courants___2025[IPP 23 - Fabrication d’autres produits minéraux non métalliques]<>"",0)),'Indices courants'!AW$28)=0,NA(), 'Indices courants'!AW29/IF('Indices courants'!AW$28=0, INDEX('Indices courants'!AW$28:AW$135, MATCH(TRUE,Indices_courants___2025[IPP 23 - Fabrication d’autres produits minéraux non métalliques]<>"",0)),'Indices courants'!AW$28)),NA()) ->  | AD127: =IFERROR(IF('Indices courants'!AX29/IF('Indices courants'!AX$28=0, INDEX('Indices courants'!AX$28:AX$135, MATCH(TRUE,Indices_courants___2025[IPP 23 - Fabrication d’autres produits minéraux non métalliques]<>"",0)),'Indices courants'!AX$28)=0,NA(), 'Indices courants'!AX29/IF('Indices courants'!AX$28=0, INDEX('Indices courants'!AX$28:AX$135, MATCH(TRUE,Indices_courants___2025[IPP 23 - Fabrication d’autres produits minéraux non métalliques]<>"",0)),'Indices courants'!AX$28)),NA()) ->  | AE127: =IFERROR(IF('Indices courants'!AY29/IF('Indices courants'!AY$28=0, INDEX('Indices courants'!AY$28:AY$135, MATCH(TRUE,Indices_courants___2025[IPP 23 - Fabrication d’autres produits minéraux non métalliques]<>"",0)),'Indices courants'!AY$28)=0,NA(), 'Indices courants'!AY29/IF('Indices courants'!AY$28=0, INDEX('Indices courants'!AY$28:AY$135, MATCH(TRUE,Indices_courants___2025[IPP 23 - Fabrication d’autres produits minéraux non métalliques]<>"",0)),'Indices courants'!AY$28)),NA()) ->  | AF127: =IFERROR(IF('Indices courants'!AZ29/IF('Indices courants'!AZ$28=0, INDEX('Indices courants'!AZ$28:AZ$135, MATCH(TRUE,Indices_courants___2025[IPP 23 - Fabrication d’autres produits minéraux non métalliques]<>"",0)),'Indices courants'!AZ$28)=0,NA(), 'Indices courants'!AZ29/IF('Indices courants'!AZ$28=0, INDEX('Indices courants'!AZ$28:AZ$135, MATCH(TRUE,Indices_courants___2025[IPP 23 - Fabrication d’autres produits minéraux non métalliques]<>"",0)),'Indices courants'!AZ$28)),NA()) ->  | AG127: =IFERROR(IF('Indices courants'!BA29/IF('Indices courants'!BA$28=0, INDEX('Indices courants'!BA$28:BA$135, MATCH(TRUE,Indices_courants___2025[IPP 23 - Fabrication d’autres produits minéraux non métalliques]<>"",0)),'Indices courants'!BA$28)=0,NA(), 'Indices courants'!BA29/IF('Indices courants'!BA$28=0, INDEX('Indices courants'!BA$28:BA$135, MATCH(TRUE,Indices_courants___2025[IPP 23 - Fabrication d’autres produits minéraux non métalliques]<>"",0)),'Indices courants'!BA$28)),NA()) ->  | AH127: =IFERROR(IF('Indices courants'!BB29/IF('Indices courants'!BB$28=0, INDEX('Indices courants'!BB$28:BB$135, MATCH(TRUE,Indices_courants___2025[IPP 23 - Fabrication d’autres produits minéraux non métalliques]<>"",0)),'Indices courants'!BB$28)=0,NA(), 'Indices courants'!BB29/IF('Indices courants'!BB$28=0, INDEX('Indices courants'!BB$28:BB$135, MATCH(TRUE,Indices_courants___2025[IPP 23 - Fabrication d’autres produits minéraux non métalliques]<>"",0)),'Indices courants'!BB$28)),NA()) ->  | AI127: =IFERROR(IF('Indices courants'!BC29/IF('Indices courants'!BC$28=0, INDEX('Indices courants'!BC$28:BC$135, MATCH(TRUE,Indices_courants___2025[IPP 23 - Fabrication d’autres produits minéraux non métalliques]<>"",0)),'Indices courants'!BC$28)=0,NA(), 'Indices courants'!BC29/IF('Indices courants'!BC$28=0, INDEX('Indices courants'!BC$28:BC$135, MATCH(TRUE,Indices_courants___2025[IPP 23 - Fabrication d’autres produits minéraux non métalliques]<>"",0)),'Indices courants'!BC$28)),NA()) ->  | AJ127: =IFERROR(IF('Indices courants'!BD29/IF('Indices courants'!BD$28=0, INDEX('Indices courants'!BD$28:BD$135, MATCH(TRUE,Indices_courants___2025[IPP 23 - Fabrication d’autres produits minéraux non métalliques]<>"",0)),'Indices courants'!BD$28)=0,NA(), 'Indices courants'!BD29/IF('Indices courants'!BD$28=0, INDEX('Indices courants'!BD$28:BD$135, MATCH(TRUE,Indices_courants___2025[IPP 23 - Fabrication d’autres produits minéraux non métalliques]<>"",0)),'Indices courants'!BD$28)),NA()) ->  | AK127: =IFERROR(IF('Indices courants'!BE29/IF('Indices courants'!BE$28=0, INDEX('Indices courants'!BE$28:BE$135, MATCH(TRUE,Indices_courants___2025[IPP 23 - Fabrication d’autres produits minéraux non métalliques]<>"",0)),'Indices courants'!BE$28)=0,NA(), 'Indices courants'!BE29/IF('Indices courants'!BE$28=0, INDEX('Indices courants'!BE$28:BE$135, MATCH(TRUE,Indices_courants___2025[IPP 23 - Fabrication d’autres produits minéraux non métalliques]<>"",0)),'Indices courants'!BE$28)),NA()) ->  | AL127: =IFERROR(IF('Indices courants'!BF29/IF('Indices courants'!BF$28=0, INDEX('Indices courants'!BF$28:BF$135, MATCH(TRUE,Indices_courants___2025[IPP 23 - Fabrication d’autres produits minéraux non métalliques]<>"",0)),'Indices courants'!BF$28)=0,NA(), 'Indices courants'!BF29/IF('Indices courants'!BF$28=0, INDEX('Indices courants'!BF$28:BF$135, MATCH(TRUE,Indices_courants___2025[IPP 23 - Fabrication d’autres produits minéraux non métalliques]<>"",0)),'Indices courants'!BF$28)),NA()) ->  | AM127: =IFERROR(IF('Indices T.P. matériaux'!C34/IF('Indices T.P. matériaux'!C$33=0, INDEX(Indices_TP___2025[TP 105 - porphyre concassé - tout calibre (àpd 12/2023)],MATCH(TRUE,Indices_TP___2025[TP 105 - porphyre concassé - tout calibre (àpd 12/2023)]<>"",0)), 'Indices T.P. matériaux'!C$33)=0,NA(),'Indices T.P. matériaux'!C34/IF('Indices T.P. matériaux'!C$33=0, INDEX(Indices_TP___2025[TP 105 - porphyre concassé - tout calibre (àpd 12/2023)],MATCH(TRUE,Indices_TP___2025[TP 105 - porphyre concassé - tout calibre (àpd 12/2023)]<>"",0)), 'Indices T.P. matériaux'!C$33)),NA()) -> 1 | AN127: =IFERROR(IF('Indices T.P. matériaux'!D34/IF('Indices T.P. matériaux'!D$33=0, INDEX(Indices_TP___2025[TP 105 - porphyre concassé - tout calibre (àpd 12/2023)],MATCH(TRUE,Indices_TP___2025[TP 105 - porphyre concassé - tout calibre (àpd 12/2023)]<>"",0)), 'Indices T.P. matériaux'!D$33)=0,NA(),'Indices T.P. matériaux'!D34/IF('Indices T.P. matériaux'!D$33=0, INDEX(Indices_TP___2025[TP 105 - porphyre concassé - tout calibre (àpd 12/2023)],MATCH(TRUE,Indices_TP___2025[TP 105 - porphyre concassé - tout calibre (àpd 12/2023)]<>"",0)), 'Indices T.P. matériaux'!D$33)),NA()) -> 1 | AO127: =IFERROR(IF('Indices T.P. matériaux'!E34/IF('Indices T.P. matériaux'!E$33=0, INDEX(Indices_TP___2025[TP 105 - porphyre concassé - tout calibre (àpd 12/2023)],MATCH(TRUE,Indices_TP___2025[TP 105 - porphyre concassé - tout calibre (àpd 12/2023)]<>"",0)), 'Indices T.P. matériaux'!E$33)=0,NA(),'Indices T.P. matériaux'!E34/IF('Indices T.P. matériaux'!E$33=0, INDEX(Indices_TP___2025[TP 105 - porphyre concassé - tout calibre (àpd 12/2023)],MATCH(TRUE,Indices_TP___2025[TP 105 - porphyre concassé - tout calibre (àpd 12/2023)]<>"",0)), 'Indices T.P. matériaux'!E$33)),NA()) -> 1 | AP127: =IFERROR(IF('Indices T.P. matériaux'!F34/IF('Indices T.P. matériaux'!F$33=0, INDEX(Indices_TP___2025[TP 105 - porphyre concassé - tout calibre (àpd 12/2023)],MATCH(TRUE,Indices_TP___2025[TP 105 - porphyre concassé - tout calibre (àpd 12/2023)]<>"",0)), 'Indices T.P. matériaux'!F$33)=0,NA(),'Indices T.P. matériaux'!F34/IF('Indices T.P. matériaux'!F$33=0, INDEX(Indices_TP___2025[TP 105 - porphyre concassé - tout calibre (àpd 12/2023)],MATCH(TRUE,Indices_TP___2025[TP 105 - porphyre concassé - tout calibre (àpd 12/2023)]<>"",0)), 'Indices T.P. matériaux'!F$33)),NA()) -> 1 | AQ127: =IFERROR(IF('Indices T.P. matériaux'!G34/IF('Indices T.P. matériaux'!G$33=0, INDEX(Indices_TP___2025[TP 105 - porphyre concassé - tout calibre (àpd 12/2023)],MATCH(TRUE,Indices_TP___2025[TP 105 - porphyre concassé - tout calibre (àpd 12/2023)]<>"",0)), 'Indices T.P. matériaux'!G$33)=0,NA(),'Indices T.P. matériaux'!G34/IF('Indices T.P. matériaux'!G$33=0, INDEX(Indices_TP___2025[TP 105 - porphyre concassé - tout calibre (àpd 12/2023)],MATCH(TRUE,Indices_TP___2025[TP 105 - porphyre concassé - tout calibre (àpd 12/2023)]<>"",0)), 'Indices T.P. matériaux'!G$33)),NA()) ->  | AR127: =IFERROR(IF('Indices T.P. matériaux'!H34/IF('Indices T.P. matériaux'!H$33=0, INDEX(Indices_TP___2025[TP 105 - porphyre concassé - tout calibre (àpd 12/2023)],MATCH(TRUE,Indices_TP___2025[TP 105 - porphyre concassé - tout calibre (àpd 12/2023)]<>"",0)), 'Indices T.P. matériaux'!H$33)=0,NA(),'Indices T.P. matériaux'!H34/IF('Indices T.P. matériaux'!H$33=0, INDEX(Indices_TP___2025[TP 105 - porphyre concassé - tout calibre (àpd 12/2023)],MATCH(TRUE,Indices_TP___2025[TP 105 - porphyre concassé - tout calibre (àpd 12/2023)]<>"",0)), 'Indices T.P. matériaux'!H$33)),NA()) -> 1 | AS127: =IFERROR(IF('Indices T.P. matériaux'!I34/IF('Indices T.P. matériaux'!I$33=0, INDEX(Indices_TP___2025[TP 105 - porphyre concassé - tout calibre (àpd 12/2023)],MATCH(TRUE,Indices_TP___2025[TP 105 - porphyre concassé - tout calibre (àpd 12/2023)]<>"",0)), 'Indices T.P. matériaux'!I$33)=0,NA(),'Indices T.P. matériaux'!I34/IF('Indices T.P. matériaux'!I$33=0, INDEX(Indices_TP___2025[TP 105 - porphyre concassé - tout calibre (àpd 12/2023)],MATCH(TRUE,Indices_TP___2025[TP 105 - porphyre concassé - tout calibre (àpd 12/2023)]<>"",0)), 'Indices T.P. matériaux'!I$33)),NA()) -> 1 | AT127: =IFERROR(IF('Indices T.P. matériaux'!J34/IF('Indices T.P. matériaux'!J$33=0, INDEX(Indices_TP___2025[TP 105 - porphyre concassé - tout calibre (àpd 12/2023)],MATCH(TRUE,Indices_TP___2025[TP 105 - porphyre concassé - tout calibre (àpd 12/2023)]<>"",0)), 'Indices T.P. matériaux'!J$33)=0,NA(),'Indices T.P. matériaux'!J34/IF('Indices T.P. matériaux'!J$33=0, INDEX(Indices_TP___2025[TP 105 - porphyre concassé - tout calibre (àpd 12/2023)],MATCH(TRUE,Indices_TP___2025[TP 105 - porphyre concassé - tout calibre (àpd 12/2023)]<>"",0)), 'Indices T.P. matériaux'!J$33)),NA()) -> 1 | AU127: =IFERROR(IF('Indices T.P. matériaux'!K34/IF('Indices T.P. matériaux'!K$33=0, INDEX(Indices_TP___2025[TP 105 - porphyre concassé - tout calibre (àpd 12/2023)],MATCH(TRUE,Indices_TP___2025[TP 105 - porphyre concassé - tout calibre (àpd 12/2023)]<>"",0)), 'Indices T.P. matériaux'!K$33)=0,NA(),'Indices T.P. matériaux'!K34/IF('Indices T.P. matériaux'!K$33=0, INDEX(Indices_TP___2025[TP 105 - porphyre concassé - tout calibre (àpd 12/2023)],MATCH(TRUE,Indices_TP___2025[TP 105 - porphyre concassé - tout calibre (àpd 12/2023)]<>"",0)), 'Indices T.P. matériaux'!K$33)),NA()) -> 1 | AV127: =IFERROR(IF('Indices T.P. matériaux'!L34/IF('Indices T.P. matériaux'!L$33=0, INDEX(Indices_TP___2025[TP 105 - porphyre concassé - tout calibre (àpd 12/2023)],MATCH(TRUE,Indices_TP___2025[TP 105 - porphyre concassé - tout calibre (àpd 12/2023)]<>"",0)), 'Indices T.P. matériaux'!L$33)=0,NA(),'Indices T.P. matériaux'!L34/IF('Indices T.P. matériaux'!L$33=0, INDEX(Indices_TP___2025[TP 105 - porphyre concassé - tout calibre (àpd 12/2023)],MATCH(TRUE,Indices_TP___2025[TP 105 - porphyre concassé - tout calibre (àpd 12/2023)]<>"",0)), 'Indices T.P. matériaux'!L$33)),NA()) ->  | AW127: =IFERROR(IF('Indices T.P. matériaux'!M34/IF('Indices T.P. matériaux'!M$33=0, INDEX(Indices_TP___2025[TP 105 - porphyre concassé - tout calibre (àpd 12/2023)],MATCH(TRUE,Indices_TP___2025[TP 105 - porphyre concassé - tout calibre (àpd 12/2023)]<>"",0)), 'Indices T.P. matériaux'!M$33)=0,NA(),'Indices T.P. matériaux'!M34/IF('Indices T.P. matériaux'!M$33=0, INDEX(Indices_TP___2025[TP 105 - porphyre concassé - tout calibre (àpd 12/2023)],MATCH(TRUE,Indices_TP___2025[TP 105 - porphyre concassé - tout calibre (àpd 12/2023)]<>"",0)), 'Indices T.P. matériaux'!M$33)),NA()) -> 1 | AX127: =IFERROR(IF('Indices T.P. matériaux'!N34/IF('Indices T.P. matériaux'!N$33=0, INDEX(Indices_TP___2025[TP 105 - porphyre concassé - tout calibre (àpd 12/2023)],MATCH(TRUE,Indices_TP___2025[TP 105 - porphyre concassé - tout calibre (àpd 12/2023)]<>"",0)), 'Indices T.P. matériaux'!N$33)=0,NA(),'Indices T.P. matériaux'!N34/IF('Indices T.P. matériaux'!N$33=0, INDEX(Indices_TP___2025[TP 105 - porphyre concassé - tout calibre (àpd 12/2023)],MATCH(TRUE,Indices_TP___2025[TP 105 - porphyre concassé - tout calibre (àpd 12/2023)]<>"",0)), 'Indices T.P. matériaux'!N$33)),NA()) -> 1 | AY127: =IFERROR(IF('Indices T.P. matériaux'!O34/IF('Indices T.P. matériaux'!O$33=0, INDEX(Indices_TP___2025[TP 105 - porphyre concassé - tout calibre (àpd 12/2023)],MATCH(TRUE,Indices_TP___2025[TP 105 - porphyre concassé - tout calibre (àpd 12/2023)]<>"",0)), 'Indices T.P. matériaux'!O$33)=0,NA(),'Indices T.P. matériaux'!O34/IF('Indices T.P. matériaux'!O$33=0, INDEX(Indices_TP___2025[TP 105 - porphyre concassé - tout calibre (àpd 12/2023)],MATCH(TRUE,Indices_TP___2025[TP 105 - porphyre concassé - tout calibre (àpd 12/2023)]<>"",0)), 'Indices T.P. matériaux'!O$33)),NA()) -> 1 | AZ127: =IFERROR(IF('Indices T.P. matériaux'!P34/IF('Indices T.P. matériaux'!P$33=0, INDEX(Indices_TP___2025[TP 105 - porphyre concassé - tout calibre (àpd 12/2023)],MATCH(TRUE,Indices_TP___2025[TP 105 - porphyre concassé - tout calibre (àpd 12/2023)]<>"",0)), 'Indices T.P. matériaux'!P$33)=0,NA(),'Indices T.P. matériaux'!P34/IF('Indices T.P. matériaux'!P$33=0, INDEX(Indices_TP___2025[TP 105 - porphyre concassé - tout calibre (àpd 12/2023)],MATCH(TRUE,Indices_TP___2025[TP 105 - porphyre concassé - tout calibre (àpd 12/2023)]<>"",0)), 'Indices T.P. matériaux'!P$33)),NA()) -> 1 | BA127: =IFERROR(IF('Indices T.P. matériaux'!Q34/IF('Indices T.P. matériaux'!Q$33=0, INDEX(Indices_TP___2025[TP 105 - porphyre concassé - tout calibre (àpd 12/2023)],MATCH(TRUE,Indices_TP___2025[TP 105 - porphyre concassé - tout calibre (àpd 12/2023)]<>"",0)), 'Indices T.P. matériaux'!Q$33)=0,NA(),'Indices T.P. matériaux'!Q34/IF('Indices T.P. matériaux'!Q$33=0, INDEX(Indices_TP___2025[TP 105 - porphyre concassé - tout calibre (àpd 12/2023)],MATCH(TRUE,Indices_TP___2025[TP 105 - porphyre concassé - tout calibre (àpd 12/2023)]<>"",0)), 'Indices T.P. matériaux'!Q$33)),NA()) -> 1 | BB127: =IFERROR(IF('Indices T.P. matériaux'!R34/IF('Indices T.P. matériaux'!R$33=0, INDEX(Indices_TP___2025[TP 105 - porphyre concassé - tout calibre (àpd 12/2023)],MATCH(TRUE,Indices_TP___2025[TP 105 - porphyre concassé - tout calibre (àpd 12/2023)]<>"",0)), 'Indices T.P. matériaux'!R$33)=0,NA(),'Indices T.P. matériaux'!R34/IF('Indices T.P. matériaux'!R$33=0, INDEX(Indices_TP___2025[TP 105 - porphyre concassé - tout calibre (àpd 12/2023)],MATCH(TRUE,Indices_TP___2025[TP 105 - porphyre concassé - tout calibre (àpd 12/2023)]<>"",0)), 'Indices T.P. matériaux'!R$33)),NA()) ->  | BC127: =IFERROR(IF('Indices T.P. matériaux'!S34/IF('Indices T.P. matériaux'!S$33=0, INDEX(Indices_TP___2025[TP 105 - porphyre concassé - tout calibre (àpd 12/2023)],MATCH(TRUE,Indices_TP___2025[TP 105 - porphyre concassé - tout calibre (àpd 12/2023)]<>"",0)), 'Indices T.P. matériaux'!S$33)=0,NA(),'Indices T.P. matériaux'!S34/IF('Indices T.P. matériaux'!S$33=0, INDEX(Indices_TP___2025[TP 105 - porphyre concassé - tout calibre (àpd 12/2023)],MATCH(TRUE,Indices_TP___2025[TP 105 - porphyre concassé - tout calibre (àpd 12/2023)]<>"",0)), 'Indices T.P. matériaux'!S$33)),NA()) -> 1 | BD127: =IFERROR(IF('Indices T.P. matériaux'!T34/IF('Indices T.P. matériaux'!T$33=0, INDEX(Indices_TP___2025[TP 105 - porphyre concassé - tout calibre (àpd 12/2023)],MATCH(TRUE,Indices_TP___2025[TP 105 - porphyre concassé - tout calibre (àpd 12/2023)]<>"",0)), 'Indices T.P. matériaux'!T$33)=0,NA(),'Indices T.P. matériaux'!T34/IF('Indices T.P. matériaux'!T$33=0, INDEX(Indices_TP___2025[TP 105 - porphyre concassé - tout calibre (àpd 12/2023)],MATCH(TRUE,Indices_TP___2025[TP 105 - porphyre concassé - tout calibre (àpd 12/2023)]<>"",0)), 'Indices T.P. matériaux'!T$33)),NA()) -> 1 | BE127: =IFERROR(IF('Indices T.P. matériaux'!U34/IF('Indices T.P. matériaux'!U$33=0, INDEX(Indices_TP___2025[TP 105 - porphyre concassé - tout calibre (àpd 12/2023)],MATCH(TRUE,Indices_TP___2025[TP 105 - porphyre concassé - tout calibre (àpd 12/2023)]<>"",0)), 'Indices T.P. matériaux'!U$33)=0,NA(),'Indices T.P. matériaux'!U34/IF('Indices T.P. matériaux'!U$33=0, INDEX(Indices_TP___2025[TP 105 - porphyre concassé - tout calibre (àpd 12/2023)],MATCH(TRUE,Indices_TP___2025[TP 105 - porphyre concassé - tout calibre (àpd 12/2023)]<>"",0)), 'Indices T.P. matériaux'!U$33)),NA()) -> 1 | BF127: =IFERROR(IF('Indices T.P. matériaux'!V34/IF('Indices T.P. matériaux'!V$33=0, INDEX(Indices_TP___2025[TP 105 - porphyre concassé - tout calibre (àpd 12/2023)],MATCH(TRUE,Indices_TP___2025[TP 105 - porphyre concassé - tout calibre (àpd 12/2023)]<>"",0)), 'Indices T.P. matériaux'!V$33)=0,NA(),'Indices T.P. matériaux'!V34/IF('Indices T.P. matériaux'!V$33=0, INDEX(Indices_TP___2025[TP 105 - porphyre concassé - tout calibre (àpd 12/2023)],MATCH(TRUE,Indices_TP___2025[TP 105 - porphyre concassé - tout calibre (àpd 12/2023)]<>"",0)), 'Indices T.P. matériaux'!V$33)),NA()) -> 1 | BG127: =IFERROR(IF('Indices T.P. matériaux'!W34/IF('Indices T.P. matériaux'!W$33=0, INDEX(Indices_TP___2025[TP 105 - porphyre concassé - tout calibre (àpd 12/2023)],MATCH(TRUE,Indices_TP___2025[TP 105 - porphyre concassé - tout calibre (àpd 12/2023)]<>"",0)), 'Indices T.P. matériaux'!W$33)=0,NA(),'Indices T.P. matériaux'!W34/IF('Indices T.P. matériaux'!W$33=0, INDEX(Indices_TP___2025[TP 105 - porphyre concassé - tout calibre (àpd 12/2023)],MATCH(TRUE,Indices_TP___2025[TP 105 - porphyre concassé - tout calibre (àpd 12/2023)]<>"",0)), 'Indices T.P. matériaux'!W$33)),NA()) -> 1 | BH127: =IFERROR(IF('Indices T.P. matériaux'!X34/IF('Indices T.P. matériaux'!X$33=0, INDEX(Indices_TP___2025[TP 105 - porphyre concassé - tout calibre (àpd 12/2023)],MATCH(TRUE,Indices_TP___2025[TP 105 - porphyre concassé - tout calibre (àpd 12/2023)]<>"",0)), 'Indices T.P. matériaux'!X$33)=0,NA(),'Indices T.P. matériaux'!X34/IF('Indices T.P. matériaux'!X$33=0, INDEX(Indices_TP___2025[TP 105 - porphyre concassé - tout calibre (àpd 12/2023)],MATCH(TRUE,Indices_TP___2025[TP 105 - porphyre concassé - tout calibre (àpd 12/2023)]<>"",0)), 'Indices T.P. matériaux'!X$33)),NA()) -> 1 | BI127: =IFERROR(IF('Indices T.P. matériaux'!Y34/IF('Indices T.P. matériaux'!Y$33=0, INDEX(Indices_TP___2025[TP 105 - porphyre concassé - tout calibre (àpd 12/2023)],MATCH(TRUE,Indices_TP___2025[TP 105 - porphyre concassé - tout calibre (àpd 12/2023)]<>"",0)), 'Indices T.P. matériaux'!Y$33)=0,NA(),'Indices T.P. matériaux'!Y34/IF('Indices T.P. matériaux'!Y$33=0, INDEX(Indices_TP___2025[TP 105 - porphyre concassé - tout calibre (àpd 12/2023)],MATCH(TRUE,Indices_TP___2025[TP 105 - porphyre concassé - tout calibre (àpd 12/2023)]<>"",0)), 'Indices T.P. matériaux'!Y$33)),NA()) -> 1 | BJ127: =IFERROR(IF('Indices T.P. matériaux'!Z34/IF('Indices T.P. matériaux'!Z$33=0, INDEX(Indices_TP___2025[TP 105 - porphyre concassé - tout calibre (àpd 12/2023)],MATCH(TRUE,Indices_TP___2025[TP 105 - porphyre concassé - tout calibre (àpd 12/2023)]<>"",0)), 'Indices T.P. matériaux'!Z$33)=0,NA(),'Indices T.P. matériaux'!Z34/IF('Indices T.P. matériaux'!Z$33=0, INDEX(Indices_TP___2025[TP 105 - porphyre concassé - tout calibre (àpd 12/2023)],MATCH(TRUE,Indices_TP___2025[TP 105 - porphyre concassé - tout calibre (àpd 12/2023)]<>"",0)), 'Indices T.P. matériaux'!Z$33)),NA()) -> 1 | BK127: =IFERROR(IF('Indices T.P. matériaux'!AA34/IF('Indices T.P. matériaux'!AA$33=0, INDEX(Indices_TP___2025[TP 105 - porphyre concassé - tout calibre (àpd 12/2023)],MATCH(TRUE,Indices_TP___2025[TP 105 - porphyre concassé - tout calibre (àpd 12/2023)]<>"",0)), 'Indices T.P. matériaux'!AA$33)=0,NA(),'Indices T.P. matériaux'!AA34/IF('Indices T.P. matériaux'!AA$33=0, INDEX(Indices_TP___2025[TP 105 - porphyre concassé - tout calibre (àpd 12/2023)],MATCH(TRUE,Indices_TP___2025[TP 105 - porphyre concassé - tout calibre (àpd 12/2023)]<>"",0)), 'Indices T.P. matériaux'!AA$33)),NA()) -> 1 | BL127: =IFERROR(IF('Indices T.P. matériaux'!AB34/IF('Indices T.P. matériaux'!AB$33=0, INDEX(Indices_TP___2025[TP 105 - porphyre concassé - tout calibre (àpd 12/2023)],MATCH(TRUE,Indices_TP___2025[TP 105 - porphyre concassé - tout calibre (àpd 12/2023)]<>"",0)), 'Indices T.P. matériaux'!AB$33)=0,NA(),'Indices T.P. matériaux'!AB34/IF('Indices T.P. matériaux'!AB$33=0, INDEX(Indices_TP___2025[TP 105 - porphyre concassé - tout calibre (àpd 12/2023)],MATCH(TRUE,Indices_TP___2025[TP 105 - porphyre concassé - tout calibre (àpd 12/2023)]<>"",0)), 'Indices T.P. matériaux'!AB$33)),NA()) -> 1 | BM127: =IFERROR(IF('Indices T.P. matériaux'!AC34/IF('Indices T.P. matériaux'!AC$33=0, INDEX(Indices_TP___2025[TP 105 - porphyre concassé - tout calibre (àpd 12/2023)],MATCH(TRUE,Indices_TP___2025[TP 105 - porphyre concassé - tout calibre (àpd 12/2023)]<>"",0)), 'Indices T.P. matériaux'!AC$33)=0,NA(),'Indices T.P. matériaux'!AC34/IF('Indices T.P. matériaux'!AC$33=0, INDEX(Indices_TP___2025[TP 105 - porphyre concassé - tout calibre (àpd 12/2023)],MATCH(TRUE,Indices_TP___2025[TP 105 - porphyre concassé - tout calibre (àpd 12/2023)]<>"",0)), 'Indices T.P. matériaux'!AC$33)),NA()) -> 1 | BN127: =IFERROR(IF('Indices T.P. matériaux'!AD34/IF('Indices T.P. matériaux'!AD$33=0, INDEX(Indices_TP___2025[TP 105 - porphyre concassé - tout calibre (àpd 12/2023)],MATCH(TRUE,Indices_TP___2025[TP 105 - porphyre concassé - tout calibre (àpd 12/2023)]<>"",0)), 'Indices T.P. matériaux'!AD$33)=0,NA(),'Indices T.P. matériaux'!AD34/IF('Indices T.P. matériaux'!AD$33=0, INDEX(Indices_TP___2025[TP 105 - porphyre concassé - tout calibre (àpd 12/2023)],MATCH(TRUE,Indices_TP___2025[TP 105 - porphyre concassé - tout calibre (àpd 12/2023)]<>"",0)), 'Indices T.P. matériaux'!AD$33)),NA()) -> 1 | BO127: =IFERROR(IF('Indices T.P. matériaux'!AE34/IF('Indices T.P. matériaux'!AE$33=0, INDEX(Indices_TP___2025[TP 105 - porphyre concassé - tout calibre (àpd 12/2023)],MATCH(TRUE,Indices_TP___2025[TP 105 - porphyre concassé - tout calibre (àpd 12/2023)]<>"",0)), 'Indices T.P. matériaux'!AE$33)=0,NA(),'Indices T.P. matériaux'!AE34/IF('Indices T.P. matériaux'!AE$33=0, INDEX(Indices_TP___2025[TP 105 - porphyre concassé - tout calibre (àpd 12/2023)],MATCH(TRUE,Indices_TP___2025[TP 105 - porphyre concassé - tout calibre (àpd 12/2023)]<>"",0)), 'Indices T.P. matériaux'!AE$33)),NA()) -> 1.004971377 | BP127: =IFERROR(IF('Indices T.P. matériaux'!AF34/IF('Indices T.P. matériaux'!AF$33=0, INDEX(Indices_TP___2025[TP 105 - porphyre concassé - tout calibre (àpd 12/2023)],MATCH(TRUE,Indices_TP___2025[TP 105 - porphyre concassé - tout calibre (àpd 12/2023)]<>"",0)), 'Indices T.P. matériaux'!AF$33)=0,NA(),'Indices T.P. matériaux'!AF34/IF('Indices T.P. matériaux'!AF$33=0, INDEX(Indices_TP___2025[TP 105 - porphyre concassé - tout calibre (àpd 12/2023)],MATCH(TRUE,Indices_TP___2025[TP 105 - porphyre concassé - tout calibre (àpd 12/2023)]<>"",0)), 'Indices T.P. matériaux'!AF$33)),NA()) -> 1.007749582 | BQ127: =IFERROR(IF('Indices T.P. matériaux'!AG34/IF('Indices T.P. matériaux'!AG$33=0, INDEX(Indices_TP___2025[TP 105 - porphyre concassé - tout calibre (àpd 12/2023)],MATCH(TRUE,Indices_TP___2025[TP 105 - porphyre concassé - tout calibre (àpd 12/2023)]<>"",0)), 'Indices T.P. matériaux'!AG$33)=0,NA(),'Indices T.P. matériaux'!AG34/IF('Indices T.P. matériaux'!AG$33=0, INDEX(Indices_TP___2025[TP 105 - porphyre concassé - tout calibre (àpd 12/2023)],MATCH(TRUE,Indices_TP___2025[TP 105 - porphyre concassé - tout calibre (àpd 12/2023)]<>"",0)), 'Indices T.P. matériaux'!AG$33)),NA()) -> 1.002040816 | BR127: =IFERROR(IF('Indices T.P. matériaux'!AH34/IF('Indices T.P. matériaux'!AH$33=0, INDEX(Indices_TP___2025[TP 105 - porphyre concassé - tout calibre (àpd 12/2023)],MATCH(TRUE,Indices_TP___2025[TP 105 - porphyre concassé - tout calibre (àpd 12/2023)]<>"",0)), 'Indices T.P. matériaux'!AH$33)=0,NA(),'Indices T.P. matériaux'!AH34/IF('Indices T.P. matériaux'!AH$33=0, INDEX(Indices_TP___2025[TP 105 - porphyre concassé - tout calibre (àpd 12/2023)],MATCH(TRUE,Indices_TP___2025[TP 105 - porphyre concassé - tout calibre (àpd 12/2023)]<>"",0)), 'Indices T.P. matériaux'!AH$33)),NA()) -> 1.004828002 | BS127: =IFERROR(IF('Indices T.P. matériaux'!AI34/IF('Indices T.P. matériaux'!AI$33=0, INDEX(Indices_TP___2025[TP 105 - porphyre concassé - tout calibre (àpd 12/2023)],MATCH(TRUE,Indices_TP___2025[TP 105 - porphyre concassé - tout calibre (àpd 12/2023)]<>"",0)), 'Indices T.P. matériaux'!AI$33)=0,NA(),'Indices T.P. matériaux'!AI34/IF('Indices T.P. matériaux'!AI$33=0, INDEX(Indices_TP___2025[TP 105 - porphyre concassé - tout calibre (àpd 12/2023)],MATCH(TRUE,Indices_TP___2025[TP 105 - porphyre concassé - tout calibre (àpd 12/2023)]<>"",0)), 'Indices T.P. matériaux'!AI$33)),NA()) -> 1.002040469 | BT127: =IFERROR(IF('Indices T.P. matériaux'!AJ34/IF('Indices T.P. matériaux'!AJ$33=0, INDEX(Indices_TP___2025[TP 105 - porphyre concassé - tout calibre (àpd 12/2023)],MATCH(TRUE,Indices_TP___2025[TP 105 - porphyre concassé - tout calibre (àpd 12/2023)]<>"",0)), 'Indices T.P. matériaux'!AJ$33)=0,NA(),'Indices T.P. matériaux'!AJ34/IF('Indices T.P. matériaux'!AJ$33=0, INDEX(Indices_TP___2025[TP 105 - porphyre concassé - tout calibre (àpd 12/2023)],MATCH(TRUE,Indices_TP___2025[TP 105 - porphyre concassé - tout calibre (àpd 12/2023)]<>"",0)), 'Indices T.P. matériaux'!AJ$33)),NA()) -> 1 | BU127: =IFERROR(IF('Indices T.P. matériaux'!AK34/IF('Indices T.P. matériaux'!AK$33=0, INDEX(Indices_TP___2025[TP 105 - porphyre concassé - tout calibre (àpd 12/2023)],MATCH(TRUE,Indices_TP___2025[TP 105 - porphyre concassé - tout calibre (àpd 12/2023)]<>"",0)), 'Indices T.P. matériaux'!AK$33)=0,NA(),'Indices T.P. matériaux'!AK34/IF('Indices T.P. matériaux'!AK$33=0, INDEX(Indices_TP___2025[TP 105 - porphyre concassé - tout calibre (àpd 12/2023)],MATCH(TRUE,Indices_TP___2025[TP 105 - porphyre concassé - tout calibre (àpd 12/2023)]<>"",0)), 'Indices T.P. matériaux'!AK$33)),NA()) -> 1.004828002 | BV127: =IFERROR(IF('Indices T.P. matériaux'!AL34/IF('Indices T.P. matériaux'!AL$33=0, INDEX(Indices_TP___2025[TP 105 - porphyre concassé - tout calibre (àpd 12/2023)],MATCH(TRUE,Indices_TP___2025[TP 105 - porphyre concassé - tout calibre (àpd 12/2023)]<>"",0)), 'Indices T.P. matériaux'!AL$33)=0,NA(),'Indices T.P. matériaux'!AL34/IF('Indices T.P. matériaux'!AL$33=0, INDEX(Indices_TP___2025[TP 105 - porphyre concassé - tout calibre (àpd 12/2023)],MATCH(TRUE,Indices_TP___2025[TP 105 - porphyre concassé - tout calibre (àpd 12/2023)]<>"",0)), 'Indices T.P. matériaux'!AL$33)),NA()) -> 0.9957585644 | BW127: =IFERROR(IF('Indices T.P. matériaux'!AM34/IF('Indices T.P. matériaux'!AM$33=0, INDEX(Indices_TP___2025[TP 105 - porphyre concassé - tout calibre (àpd 12/2023)],MATCH(TRUE,Indices_TP___2025[TP 105 - porphyre concassé - tout calibre (àpd 12/2023)]<>"",0)), 'Indices T.P. matériaux'!AM$33)=0,NA(),'Indices T.P. matériaux'!AM34/IF('Indices T.P. matériaux'!AM$33=0, INDEX(Indices_TP___2025[TP 105 - porphyre concassé - tout calibre (àpd 12/2023)],MATCH(TRUE,Indices_TP___2025[TP 105 - porphyre concassé - tout calibre (àpd 12/2023)]<>"",0)), 'Indices T.P. matériaux'!AM$33)),NA()) -> 1.007907543 | BX127: =IFERROR(IF('Indices T.P. matériaux'!AN34/IF('Indices T.P. matériaux'!AN$33=0, INDEX(Indices_TP___2025[TP 105 - porphyre concassé - tout calibre (àpd 12/2023)],MATCH(TRUE,Indices_TP___2025[TP 105 - porphyre concassé - tout calibre (àpd 12/2023)]<>"",0)), 'Indices T.P. matériaux'!AN$33)=0,NA(),'Indices T.P. matériaux'!AN34/IF('Indices T.P. matériaux'!AN$33=0, INDEX(Indices_TP___2025[TP 105 - porphyre concassé - tout calibre (àpd 12/2023)],MATCH(TRUE,Indices_TP___2025[TP 105 - porphyre concassé - tout calibre (àpd 12/2023)]<>"",0)), 'Indices T.P. matériaux'!AN$33)),NA()) -> 1.002210508 | BY127: =IFERROR(IF('Indices T.P. matériaux'!AO34/IF('Indices T.P. matériaux'!AO$33=0, INDEX(Indices_TP___2025[TP 105 - porphyre concassé - tout calibre (àpd 12/2023)],MATCH(TRUE,Indices_TP___2025[TP 105 - porphyre concassé - tout calibre (àpd 12/2023)]<>"",0)), 'Indices T.P. matériaux'!AO$33)=0,NA(),'Indices T.P. matériaux'!AO34/IF('Indices T.P. matériaux'!AO$33=0, INDEX(Indices_TP___2025[TP 105 - porphyre concassé - tout calibre (àpd 12/2023)],MATCH(TRUE,Indices_TP___2025[TP 105 - porphyre concassé - tout calibre (àpd 12/2023)]<>"",0)), 'Indices T.P. matériaux'!AO$33)),NA()) -> 1.018975625 | BZ127: =IFERROR(IF('Indices T.P. matériaux'!AP34/IF('Indices T.P. matériaux'!AP$33=0, INDEX(Indices_TP___2025[TP 105 - porphyre concassé - tout calibre (àpd 12/2023)],MATCH(TRUE,Indices_TP___2025[TP 105 - porphyre concassé - tout calibre (àpd 12/2023)]<>"",0)), 'Indices T.P. matériaux'!AP$33)=0,NA(),'Indices T.P. matériaux'!AP34/IF('Indices T.P. matériaux'!AP$33=0, INDEX(Indices_TP___2025[TP 105 - porphyre concassé - tout calibre (àpd 12/2023)],MATCH(TRUE,Indices_TP___2025[TP 105 - porphyre concassé - tout calibre (àpd 12/2023)]<>"",0)), 'Indices T.P. matériaux'!AP$33)),NA()) -> 1.019227811 | CA127: =IFERROR(IF('Indices T.P. matériaux'!AQ34/IF('Indices T.P. matériaux'!AQ$33=0, INDEX(Indices_TP___2025[TP 105 - porphyre concassé - tout calibre (àpd 12/2023)],MATCH(TRUE,Indices_TP___2025[TP 105 - porphyre concassé - tout calibre (àpd 12/2023)]<>"",0)), 'Indices T.P. matériaux'!AQ$33)=0,NA(),'Indices T.P. matériaux'!AQ34/IF('Indices T.P. matériaux'!AQ$33=0, INDEX(Indices_TP___2025[TP 105 - porphyre concassé - tout calibre (àpd 12/2023)],MATCH(TRUE,Indices_TP___2025[TP 105 - porphyre concassé - tout calibre (àpd 12/2023)]<>"",0)), 'Indices T.P. matériaux'!AQ$33)),NA()) -> 1.019248537 | CB127: =IFERROR(IF('Indices T.P. matériaux'!AR34/IF('Indices T.P. matériaux'!AR$33=0, INDEX(Indices_TP___2025[TP 105 - porphyre concassé - tout calibre (àpd 12/2023)],MATCH(TRUE,Indices_TP___2025[TP 105 - porphyre concassé - tout calibre (àpd 12/2023)]<>"",0)), 'Indices T.P. matériaux'!AR$33)=0,NA(),'Indices T.P. matériaux'!AR34/IF('Indices T.P. matériaux'!AR$33=0, INDEX(Indices_TP___2025[TP 105 - porphyre concassé - tout calibre (àpd 12/2023)],MATCH(TRUE,Indices_TP___2025[TP 105 - porphyre concassé - tout calibre (àpd 12/2023)]<>"",0)), 'Indices T.P. matériaux'!AR$33)),NA()) -> 0.996911937 | CC127: =IFERROR(IF('Indices T.P. matériaux'!AS34/IF('Indices T.P. matériaux'!AS$33=0, INDEX(Indices_TP___2025[TP 105 - porphyre concassé - tout calibre (àpd 12/2023)],MATCH(TRUE,Indices_TP___2025[TP 105 - porphyre concassé - tout calibre (àpd 12/2023)]<>"",0)), 'Indices T.P. matériaux'!AS$33)=0,NA(),'Indices T.P. matériaux'!AS34/IF('Indices T.P. matériaux'!AS$33=0, INDEX(Indices_TP___2025[TP 105 - porphyre concassé - tout calibre (àpd 12/2023)],MATCH(TRUE,Indices_TP___2025[TP 105 - porphyre concassé - tout calibre (àpd 12/2023)]<>"",0)), 'Indices T.P. matériaux'!AS$33)),NA()) -> 1.014732143 | CD127: =IFERROR(IF('Indices T.P. matériaux'!AT34/IF('Indices T.P. matériaux'!AT$33=0, INDEX(Indices_TP___2025[TP 105 - porphyre concassé - tout calibre (àpd 12/2023)],MATCH(TRUE,Indices_TP___2025[TP 105 - porphyre concassé - tout calibre (àpd 12/2023)]<>"",0)), 'Indices T.P. matériaux'!AT$33)=0,NA(),'Indices T.P. matériaux'!AT34/IF('Indices T.P. matériaux'!AT$33=0, INDEX(Indices_TP___2025[TP 105 - porphyre concassé - tout calibre (àpd 12/2023)],MATCH(TRUE,Indices_TP___2025[TP 105 - porphyre concassé - tout calibre (àpd 12/2023)]<>"",0)), 'Indices T.P. matériaux'!AT$33)),NA()) -> 0.9730109643 | CE127: =IFERROR(IF('Indices T.P. matériaux'!AU34/IF('Indices T.P. matériaux'!AU$33=0, INDEX(Indices_TP___2025[TP 105 - porphyre concassé - tout calibre (àpd 12/2023)],MATCH(TRUE,Indices_TP___2025[TP 105 - porphyre concassé - tout calibre (àpd 12/2023)]<>"",0)), 'Indices T.P. matériaux'!AU$33)=0,NA(),'Indices T.P. matériaux'!AU34/IF('Indices T.P. matériaux'!AU$33=0, INDEX(Indices_TP___2025[TP 105 - porphyre concassé - tout calibre (àpd 12/2023)],MATCH(TRUE,Indices_TP___2025[TP 105 - porphyre concassé - tout calibre (àpd 12/2023)]<>"",0)), 'Indices T.P. matériaux'!AU$33)),NA()) ->  | CF127: =IFERROR(IF('Indices T.P. matériaux'!AV34/IF('Indices T.P. matériaux'!AV$33=0, INDEX(Indices_TP___2025[TP 105 - porphyre concassé - tout calibre (àpd 12/2023)],MATCH(TRUE,Indices_TP___2025[TP 105 - porphyre concassé - tout calibre (àpd 12/2023)]<>"",0)), 'Indices T.P. matériaux'!AV$33)=0,NA(),'Indices T.P. matériaux'!AV34/IF('Indices T.P. matériaux'!AV$33=0, INDEX(Indices_TP___2025[TP 105 - porphyre concassé - tout calibre (àpd 12/2023)],MATCH(TRUE,Indices_TP___2025[TP 105 - porphyre concassé - tout calibre (àpd 12/2023)]<>"",0)), 'Indices T.P. matériaux'!AV$33)),NA()) ->  | CG127: =IFERROR(IF('Indices T.P. matériaux'!AW34/IF('Indices T.P. matériaux'!AW$33=0, INDEX(Indices_TP___2025[TP 105 - porphyre concassé - tout calibre (àpd 12/2023)],MATCH(TRUE,Indices_TP___2025[TP 105 - porphyre concassé - tout calibre (àpd 12/2023)]<>"",0)), 'Indices T.P. matériaux'!AW$33)=0,NA(),'Indices T.P. matériaux'!AW34/IF('Indices T.P. matériaux'!AW$33=0, INDEX(Indices_TP___2025[TP 105 - porphyre concassé - tout calibre (àpd 12/2023)],MATCH(TRUE,Indices_TP___2025[TP 105 - porphyre concassé - tout calibre (àpd 12/2023)]<>"",0)), 'Indices T.P. matériaux'!AW$33)),NA()) ->  | CH127: =IFERROR(IF('Indices T.P. matériaux'!AX34/IF('Indices T.P. matériaux'!AX$33=0, INDEX(Indices_TP___2025[TP 105 - porphyre concassé - tout calibre (àpd 12/2023)],MATCH(TRUE,Indices_TP___2025[TP 105 - porphyre concassé - tout calibre (àpd 12/2023)]<>"",0)), 'Indices T.P. matériaux'!AX$33)=0,NA(),'Indices T.P. matériaux'!AX34/IF('Indices T.P. matériaux'!AX$33=0, INDEX(Indices_TP___2025[TP 105 - porphyre concassé - tout calibre (àpd 12/2023)],MATCH(TRUE,Indices_TP___2025[TP 105 - porphyre concassé - tout calibre (àpd 12/2023)]<>"",0)), 'Indices T.P. matériaux'!AX$33)),NA()) ->  | CI127: =IFERROR(IF('Indices T.P. matériaux'!AY34/IF('Indices T.P. matériaux'!AY$33=0, INDEX(Indices_TP___2025[TP 105 - porphyre concassé - tout calibre (àpd 12/2023)],MATCH(TRUE,Indices_TP___2025[TP 105 - porphyre concassé - tout calibre (àpd 12/2023)]<>"",0)), 'Indices T.P. matériaux'!AY$33)=0,NA(),'Indices T.P. matériaux'!AY34/IF('Indices T.P. matériaux'!AY$33=0, INDEX(Indices_TP___2025[TP 105 - porphyre concassé - tout calibre (àpd 12/2023)],MATCH(TRUE,Indices_TP___2025[TP 105 - porphyre concassé - tout calibre (àpd 12/2023)]<>"",0)), 'Indices T.P. matériaux'!AY$33)),NA()) ->  | CJ127: =IFERROR(IF('Indices T.P. matériaux'!AZ34/IF('Indices T.P. matériaux'!AZ$33=0, INDEX(Indices_TP___2025[TP 105 - porphyre concassé - tout calibre (àpd 12/2023)],MATCH(TRUE,Indices_TP___2025[TP 105 - porphyre concassé - tout calibre (àpd 12/2023)]<>"",0)), 'Indices T.P. matériaux'!AZ$33)=0,NA(),'Indices T.P. matériaux'!AZ34/IF('Indices T.P. matériaux'!AZ$33=0, INDEX(Indices_TP___2025[TP 105 - porphyre concassé - tout calibre (àpd 12/2023)],MATCH(TRUE,Indices_TP___2025[TP 105 - porphyre concassé - tout calibre (àpd 12/2023)]<>"",0)), 'Indices T.P. matériaux'!AZ$33)),NA()) ->  | CK127: =IFERROR(IF('Indices T.P. matériaux'!BA34/IF('Indices T.P. matériaux'!BA$33=0, INDEX(Indices_TP___2025[TP 105 - porphyre concassé - tout calibre (àpd 12/2023)],MATCH(TRUE,Indices_TP___2025[TP 105 - porphyre concassé - tout calibre (àpd 12/2023)]<>"",0)), 'Indices T.P. matériaux'!BA$33)=0,NA(),'Indices T.P. matériaux'!BA34/IF('Indices T.P. matériaux'!BA$33=0, INDEX(Indices_TP___2025[TP 105 - porphyre concassé - tout calibre (àpd 12/2023)],MATCH(TRUE,Indices_TP___2025[TP 105 - porphyre concassé - tout calibre (àpd 12/2023)]<>"",0)), 'Indices T.P. matériaux'!BA$33)),NA()) ->  | CL127: =IFERROR(IF('Indices T.P. matériaux'!BB34/IF('Indices T.P. matériaux'!BB$33=0, INDEX(Indices_TP___2025[TP 105 - porphyre concassé - tout calibre (àpd 12/2023)],MATCH(TRUE,Indices_TP___2025[TP 105 - porphyre concassé - tout calibre (àpd 12/2023)]<>"",0)), 'Indices T.P. matériaux'!BB$33)=0,NA(),'Indices T.P. matériaux'!BB34/IF('Indices T.P. matériaux'!BB$33=0, INDEX(Indices_TP___2025[TP 105 - porphyre concassé - tout calibre (àpd 12/2023)],MATCH(TRUE,Indices_TP___2025[TP 105 - porphyre concassé - tout calibre (àpd 12/2023)]<>"",0)), 'Indices T.P. matériaux'!BB$33)),NA()) -> 0.9843406352 | CM127: =IFERROR(IF('Indices T.P. matériaux'!BC34/IF('Indices T.P. matériaux'!BC$33=0, INDEX(Indices_TP___2025[TP 105 - porphyre concassé - tout calibre (àpd 12/2023)],MATCH(TRUE,Indices_TP___2025[TP 105 - porphyre concassé - tout calibre (àpd 12/2023)]<>"",0)), 'Indices T.P. matériaux'!BC$33)=0,NA(),'Indices T.P. matériaux'!BC34/IF('Indices T.P. matériaux'!BC$33=0, INDEX(Indices_TP___2025[TP 105 - porphyre concassé - tout calibre (àpd 12/2023)],MATCH(TRUE,Indices_TP___2025[TP 105 - porphyre concassé - tout calibre (àpd 12/2023)]<>"",0)), 'Indices T.P. matériaux'!BC$33)),NA()) -> 0.9767904509 | CN127: =IFERROR(IF('Indices T.P. matériaux'!BD34/IF('Indices T.P. matériaux'!BD$33=0, INDEX(Indices_TP___2025[TP 105 - porphyre concassé - tout calibre (àpd 12/2023)],MATCH(TRUE,Indices_TP___2025[TP 105 - porphyre concassé - tout calibre (àpd 12/2023)]<>"",0)), 'Indices T.P. matériaux'!BD$33)=0,NA(),'Indices T.P. matériaux'!BD34/IF('Indices T.P. matériaux'!BD$33=0, INDEX(Indices_TP___2025[TP 105 - porphyre concassé - tout calibre (àpd 12/2023)],MATCH(TRUE,Indices_TP___2025[TP 105 - porphyre concassé - tout calibre (àpd 12/2023)]<>"",0)), 'Indices T.P. matériaux'!BD$33)),NA()) -> 0.9767904509 | CO127: =IFERROR(IF('Indices T.P. matériaux'!BE34/IF('Indices T.P. matériaux'!BE$33=0, INDEX(Indices_TP___2025[TP 105 - porphyre concassé - tout calibre (àpd 12/2023)],MATCH(TRUE,Indices_TP___2025[TP 105 - porphyre concassé - tout calibre (àpd 12/2023)]<>"",0)), 'Indices T.P. matériaux'!BE$33)=0,NA(),'Indices T.P. matériaux'!BE34/IF('Indices T.P. matériaux'!BE$33=0, INDEX(Indices_TP___2025[TP 105 - porphyre concassé - tout calibre (àpd 12/2023)],MATCH(TRUE,Indices_TP___2025[TP 105 - porphyre concassé - tout calibre (àpd 12/2023)]<>"",0)), 'Indices T.P. matériaux'!BE$33)),NA()) -> 1.016480379 | CP127: =IFERROR(IF('Indices T.P. matériaux'!BF34/IF('Indices T.P. matériaux'!BF$33=0, INDEX(Indices_TP___2025[TP 105 - porphyre concassé - tout calibre (àpd 12/2023)],MATCH(TRUE,Indices_TP___2025[TP 105 - porphyre concassé - tout calibre (àpd 12/2023)]<>"",0)), 'Indices T.P. matériaux'!BF$33)=0,NA(),'Indices T.P. matériaux'!BF34/IF('Indices T.P. matériaux'!BF$33=0, INDEX(Indices_TP___2025[TP 105 - porphyre concassé - tout calibre (àpd 12/2023)],MATCH(TRUE,Indices_TP___2025[TP 105 - porphyre concassé - tout calibre (àpd 12/2023)]<>"",0)), 'Indices T.P. matériaux'!BF$33)),NA()) -> 1.015994154 | CQ127: =IFERROR(IF('Indices T.P. matériaux'!BG34/IF('Indices T.P. matériaux'!BG$33=0, INDEX(Indices_TP___2025[TP 105 - porphyre concassé - tout calibre (àpd 12/2023)],MATCH(TRUE,Indices_TP___2025[TP 105 - porphyre concassé - tout calibre (àpd 12/2023)]<>"",0)), 'Indices T.P. matériaux'!BG$33)=0,NA(),'Indices T.P. matériaux'!BG34/IF('Indices T.P. matériaux'!BG$33=0, INDEX(Indices_TP___2025[TP 105 - porphyre concassé - tout calibre (àpd 12/2023)],MATCH(TRUE,Indices_TP___2025[TP 105 - porphyre concassé - tout calibre (àpd 12/2023)]<>"",0)), 'Indices T.P. matériaux'!BG$33)),NA()) -> 1 | CR127: =IFERROR(IF('Indices T.P. matériaux'!BH34/IF('Indices T.P. matériaux'!BH$33=0, INDEX(Indices_TP___2025[TP 105 - porphyre concassé - tout calibre (àpd 12/2023)],MATCH(TRUE,Indices_TP___2025[TP 105 - porphyre concassé - tout calibre (àpd 12/2023)]<>"",0)), 'Indices T.P. matériaux'!BH$33)=0,NA(),'Indices T.P. matériaux'!BH34/IF('Indices T.P. matériaux'!BH$33=0, INDEX(Indices_TP___2025[TP 105 - porphyre concassé - tout calibre (àpd 12/2023)],MATCH(TRUE,Indices_TP___2025[TP 105 - porphyre concassé - tout calibre (àpd 12/2023)]<>"",0)), 'Indices T.P. matériaux'!BH$33)),NA()) -> 0.9747391543 | CS127: =IFERROR(IF('Indices T.P. matériaux'!BI34/IF('Indices T.P. matériaux'!BI$33=0, INDEX(Indices_TP___2025[TP 105 - porphyre concassé - tout calibre (àpd 12/2023)],MATCH(TRUE,Indices_TP___2025[TP 105 - porphyre concassé - tout calibre (àpd 12/2023)]<>"",0)), 'Indices T.P. matériaux'!BI$33)=0,NA(),'Indices T.P. matériaux'!BI34/IF('Indices T.P. matériaux'!BI$33=0, INDEX(Indices_TP___2025[TP 105 - porphyre concassé - tout calibre (àpd 12/2023)],MATCH(TRUE,Indices_TP___2025[TP 105 - porphyre concassé - tout calibre (àpd 12/2023)]<>"",0)), 'Indices T.P. matériaux'!BI$33)),NA()) ->  | CT127: =IFERROR(IF('Indices T.P. matériaux'!BJ34/IF('Indices T.P. matériaux'!BJ$33=0, INDEX(Indices_TP___2025[TP 105 - porphyre concassé - tout calibre (àpd 12/2023)],MATCH(TRUE,Indices_TP___2025[TP 105 - porphyre concassé - tout calibre (àpd 12/2023)]<>"",0)), 'Indices T.P. matériaux'!BJ$33)=0,NA(),'Indices T.P. matériaux'!BJ34/IF('Indices T.P. matériaux'!BJ$33=0, INDEX(Indices_TP___2025[TP 105 - porphyre concassé - tout calibre (àpd 12/2023)],MATCH(TRUE,Indices_TP___2025[TP 105 - porphyre concassé - tout calibre (àpd 12/2023)]<>"",0)), 'Indices T.P. matériaux'!BJ$33)),NA()) -> 1.041583594 | CU127: =IFERROR(IF('Indices T.P. matériaux'!BK34/IF('Indices T.P. matériaux'!BK$33=0, INDEX(Indices_TP___2025[TP 105 - porphyre concassé - tout calibre (àpd 12/2023)],MATCH(TRUE,Indices_TP___2025[TP 105 - porphyre concassé - tout calibre (àpd 12/2023)]<>"",0)), 'Indices T.P. matériaux'!BK$33)=0,NA(),'Indices T.P. matériaux'!BK34/IF('Indices T.P. matériaux'!BK$33=0, INDEX(Indices_TP___2025[TP 105 - porphyre concassé - tout calibre (àpd 12/2023)],MATCH(TRUE,Indices_TP___2025[TP 105 - porphyre concassé - tout calibre (àpd 12/2023)]<>"",0)), 'Indices T.P. matériaux'!BK$33)),NA()) -> 0.975638549 | CV127: =IFERROR(IF('Indices T.P. matériaux'!BL34/IF('Indices T.P. matériaux'!BL$33=0, INDEX(Indices_TP___2025[TP 105 - porphyre concassé - tout calibre (àpd 12/2023)],MATCH(TRUE,Indices_TP___2025[TP 105 - porphyre concassé - tout calibre (àpd 12/2023)]<>"",0)), 'Indices T.P. matériaux'!BL$33)=0,NA(),'Indices T.P. matériaux'!BL34/IF('Indices T.P. matériaux'!BL$33=0, INDEX(Indices_TP___2025[TP 105 - porphyre concassé - tout calibre (àpd 12/2023)],MATCH(TRUE,Indices_TP___2025[TP 105 - porphyre concassé - tout calibre (àpd 12/2023)]<>"",0)), 'Indices T.P. matériaux'!BL$33)),NA()) -> 1.016707053 | CW127: =IFERROR(IF('Indices T.P. matériaux'!BM34/IF('Indices T.P. matériaux'!BM$33=0, INDEX(Indices_TP___2025[TP 105 - porphyre concassé - tout calibre (àpd 12/2023)],MATCH(TRUE,Indices_TP___2025[TP 105 - porphyre concassé - tout calibre (àpd 12/2023)]<>"",0)), 'Indices T.P. matériaux'!BM$33)=0,NA(),'Indices T.P. matériaux'!BM34/IF('Indices T.P. matériaux'!BM$33=0, INDEX(Indices_TP___2025[TP 105 - porphyre concassé - tout calibre (àpd 12/2023)],MATCH(TRUE,Indices_TP___2025[TP 105 - porphyre concassé - tout calibre (àpd 12/2023)]<>"",0)), 'Indices T.P. matériaux'!BM$33)),NA()) -> 1.00453841 | CX127: =IFERROR(IF('Indices T.P. matériaux'!BN34/IF('Indices T.P. matériaux'!BN$33=0, INDEX(Indices_TP___2025[TP 105 - porphyre concassé - tout calibre (àpd 12/2023)],MATCH(TRUE,Indices_TP___2025[TP 105 - porphyre concassé - tout calibre (àpd 12/2023)]<>"",0)), 'Indices T.P. matériaux'!BN$33)=0,NA(),'Indices T.P. matériaux'!BN34/IF('Indices T.P. matériaux'!BN$33=0, INDEX(Indices_TP___2025[TP 105 - porphyre concassé - tout calibre (àpd 12/2023)],MATCH(TRUE,Indices_TP___2025[TP 105 - porphyre concassé - tout calibre (àpd 12/2023)]<>"",0)), 'Indices T.P. matériaux'!BN$33)),NA()) -> 1.013582966 | CY127: =IFERROR(IF('Indices T.P. matériaux'!BO34/IF('Indices T.P. matériaux'!BO$33=0, INDEX(Indices_TP___2025[TP 105 - porphyre concassé - tout calibre (àpd 12/2023)],MATCH(TRUE,Indices_TP___2025[TP 105 - porphyre concassé - tout calibre (àpd 12/2023)]<>"",0)), 'Indices T.P. matériaux'!BO$33)=0,NA(),'Indices T.P. matériaux'!BO34/IF('Indices T.P. matériaux'!BO$33=0, INDEX(Indices_TP___2025[TP 105 - porphyre concassé - tout calibre (àpd 12/2023)],MATCH(TRUE,Indices_TP___2025[TP 105 - porphyre concassé - tout calibre (àpd 12/2023)]<>"",0)), 'Indices T.P. matériaux'!BO$33)),NA()) -> 1 | CZ127: =IFERROR(IF('Indices T.P. matériaux'!BP34/IF('Indices T.P. matériaux'!BP$33=0, INDEX(Indices_TP___2025[TP 105 - porphyre concassé - tout calibre (àpd 12/2023)],MATCH(TRUE,Indices_TP___2025[TP 105 - porphyre concassé - tout calibre (àpd 12/2023)]<>"",0)), 'Indices T.P. matériaux'!BP$33)=0,NA(),'Indices T.P. matériaux'!BP34/IF('Indices T.P. matériaux'!BP$33=0, INDEX(Indices_TP___2025[TP 105 - porphyre concassé - tout calibre (àpd 12/2023)],MATCH(TRUE,Indices_TP___2025[TP 105 - porphyre concassé - tout calibre (àpd 12/2023)]<>"",0)), 'Indices T.P. matériaux'!BP$33)),NA()) -> 1 | DA127: =IFERROR(IF('Indices T.P. matériaux'!BQ34/IF('Indices T.P. matériaux'!BQ$33=0, INDEX(Indices_TP___2025[TP 105 - porphyre concassé - tout calibre (àpd 12/2023)],MATCH(TRUE,Indices_TP___2025[TP 105 - porphyre concassé - tout calibre (àpd 12/2023)]<>"",0)), 'Indices T.P. matériaux'!BQ$33)=0,NA(),'Indices T.P. matériaux'!BQ34/IF('Indices T.P. matériaux'!BQ$33=0, INDEX(Indices_TP___2025[TP 105 - porphyre concassé - tout calibre (àpd 12/2023)],MATCH(TRUE,Indices_TP___2025[TP 105 - porphyre concassé - tout calibre (àpd 12/2023)]<>"",0)), 'Indices T.P. matériaux'!BQ$33)),NA()) -> 1 | DB127: =IFERROR(IF('Indices T.P. matériaux'!BR34/IF('Indices T.P. matériaux'!BR$33=0, INDEX(Indices_TP___2025[TP 105 - porphyre concassé - tout calibre (àpd 12/2023)],MATCH(TRUE,Indices_TP___2025[TP 105 - porphyre concassé - tout calibre (àpd 12/2023)]<>"",0)), 'Indices T.P. matériaux'!BR$33)=0,NA(),'Indices T.P. matériaux'!BR34/IF('Indices T.P. matériaux'!BR$33=0, INDEX(Indices_TP___2025[TP 105 - porphyre concassé - tout calibre (àpd 12/2023)],MATCH(TRUE,Indices_TP___2025[TP 105 - porphyre concassé - tout calibre (àpd 12/2023)]<>"",0)), 'Indices T.P. matériaux'!BR$33)),NA()) -> 1 | DC127: =IFERROR(IF('Indices T.P. matériaux'!BS34/IF('Indices T.P. matériaux'!BS$33=0, INDEX(Indices_TP___2025[TP 105 - porphyre concassé - tout calibre (àpd 12/2023)],MATCH(TRUE,Indices_TP___2025[TP 105 - porphyre concassé - tout calibre (àpd 12/2023)]<>"",0)), 'Indices T.P. matériaux'!BS$33)=0,NA(),'Indices T.P. matériaux'!BS34/IF('Indices T.P. matériaux'!BS$33=0, INDEX(Indices_TP___2025[TP 105 - porphyre concassé - tout calibre (àpd 12/2023)],MATCH(TRUE,Indices_TP___2025[TP 105 - porphyre concassé - tout calibre (àpd 12/2023)]<>"",0)), 'Indices T.P. matériaux'!BS$33)),NA()) -> 1.007306677 | DD127: =IFERROR(IF('Indices T.P. matériaux'!BT34/IF('Indices T.P. matériaux'!BT$33=0, INDEX(Indices_TP___2025[TP 105 - porphyre concassé - tout calibre (àpd 12/2023)],MATCH(TRUE,Indices_TP___2025[TP 105 - porphyre concassé - tout calibre (àpd 12/2023)]<>"",0)), 'Indices T.P. matériaux'!BT$33)=0,NA(),'Indices T.P. matériaux'!BT34/IF('Indices T.P. matériaux'!BT$33=0, INDEX(Indices_TP___2025[TP 105 - porphyre concassé - tout calibre (àpd 12/2023)],MATCH(TRUE,Indices_TP___2025[TP 105 - porphyre concassé - tout calibre (àpd 12/2023)]<>"",0)), 'Indices T.P. matériaux'!BT$33)),NA()) -> 1.007323027 | DE127: =IFERROR(IF('Indices T.P. matériaux'!BU34/IF('Indices T.P. matériaux'!BU$33=0, INDEX(Indices_TP___2025[TP 105 - porphyre concassé - tout calibre (àpd 12/2023)],MATCH(TRUE,Indices_TP___2025[TP 105 - porphyre concassé - tout calibre (àpd 12/2023)]<>"",0)), 'Indices T.P. matériaux'!BU$33)=0,NA(),'Indices T.P. matériaux'!BU34/IF('Indices T.P. matériaux'!BU$33=0, INDEX(Indices_TP___2025[TP 105 - porphyre concassé - tout calibre (àpd 12/2023)],MATCH(TRUE,Indices_TP___2025[TP 105 - porphyre concassé - tout calibre (àpd 12/2023)]<>"",0)), 'Indices T.P. matériaux'!BU$33)),NA()) -> 1.007131214 | DF127: =IFERROR(IF('Indices T.P. matériaux'!BV34/IF('Indices T.P. matériaux'!BV$33=0, INDEX(Indices_TP___2025[TP 105 - porphyre concassé - tout calibre (àpd 12/2023)],MATCH(TRUE,Indices_TP___2025[TP 105 - porphyre concassé - tout calibre (àpd 12/2023)]<>"",0)), 'Indices T.P. matériaux'!BV$33)=0,NA(),'Indices T.P. matériaux'!BV34/IF('Indices T.P. matériaux'!BV$33=0, INDEX(Indices_TP___2025[TP 105 - porphyre concassé - tout calibre (àpd 12/2023)],MATCH(TRUE,Indices_TP___2025[TP 105 - porphyre concassé - tout calibre (àpd 12/2023)]<>"",0)), 'Indices T.P. matériaux'!BV$33)),NA()) -> 1.007122507 | DG127: =IFERROR(IF('Indices T.P. matériaux'!BW34/IF('Indices T.P. matériaux'!BW$33=0, INDEX(Indices_TP___2025[TP 105 - porphyre concassé - tout calibre (àpd 12/2023)],MATCH(TRUE,Indices_TP___2025[TP 105 - porphyre concassé - tout calibre (àpd 12/2023)]<>"",0)), 'Indices T.P. matériaux'!BW$33)=0,NA(),'Indices T.P. matériaux'!BW34/IF('Indices T.P. matériaux'!BW$33=0, INDEX(Indices_TP___2025[TP 105 - porphyre concassé - tout calibre (àpd 12/2023)],MATCH(TRUE,Indices_TP___2025[TP 105 - porphyre concassé - tout calibre (àpd 12/2023)]<>"",0)), 'Indices T.P. matériaux'!BW$33)),NA()) -> 1 | DH127: =IFERROR(IF('Indices T.P. matériaux'!BX34/IF('Indices T.P. matériaux'!BX$33=0, INDEX(Indices_TP___2025[TP 105 - porphyre concassé - tout calibre (àpd 12/2023)],MATCH(TRUE,Indices_TP___2025[TP 105 - porphyre concassé - tout calibre (àpd 12/2023)]<>"",0)), 'Indices T.P. matériaux'!BX$33)=0,NA(),'Indices T.P. matériaux'!BX34/IF('Indices T.P. matériaux'!BX$33=0, INDEX(Indices_TP___2025[TP 105 - porphyre concassé - tout calibre (àpd 12/2023)],MATCH(TRUE,Indices_TP___2025[TP 105 - porphyre concassé - tout calibre (àpd 12/2023)]<>"",0)), 'Indices T.P. matériaux'!BX$33)),NA()) -> 1 | DI127: =IFERROR(IF('Indices T.P. matériaux'!BY34/IF('Indices T.P. matériaux'!BY$33=0, INDEX(Indices_TP___2025[TP 105 - porphyre concassé - tout calibre (àpd 12/2023)],MATCH(TRUE,Indices_TP___2025[TP 105 - porphyre concassé - tout calibre (àpd 12/2023)]<>"",0)), 'Indices T.P. matériaux'!BY$33)=0,NA(),'Indices T.P. matériaux'!BY34/IF('Indices T.P. matériaux'!BY$33=0, INDEX(Indices_TP___2025[TP 105 - porphyre concassé - tout calibre (àpd 12/2023)],MATCH(TRUE,Indices_TP___2025[TP 105 - porphyre concassé - tout calibre (àpd 12/2023)]<>"",0)), 'Indices T.P. matériaux'!BY$33)),NA()) -> 1 | DJ127: =IFERROR(IF('Indices T.P. matériaux'!BZ34/IF('Indices T.P. matériaux'!BZ$33=0, INDEX(Indices_TP___2025[TP 105 - porphyre concassé - tout calibre (àpd 12/2023)],MATCH(TRUE,Indices_TP___2025[TP 105 - porphyre concassé - tout calibre (àpd 12/2023)]<>"",0)), 'Indices T.P. matériaux'!BZ$33)=0,NA(),'Indices T.P. matériaux'!BZ34/IF('Indices T.P. matériaux'!BZ$33=0, INDEX(Indices_TP___2025[TP 105 - porphyre concassé - tout calibre (àpd 12/2023)],MATCH(TRUE,Indices_TP___2025[TP 105 - porphyre concassé - tout calibre (àpd 12/2023)]<>"",0)), 'Indices T.P. matériaux'!BZ$33)),NA()) -> 1 | DK127: =IFERROR(IF('Indices T.P. matériaux'!CA34/IF('Indices T.P. matériaux'!CA$33=0, INDEX(Indices_TP___2025[TP 105 - porphyre concassé - tout calibre (àpd 12/2023)],MATCH(TRUE,Indices_TP___2025[TP 105 - porphyre concassé - tout calibre (àpd 12/2023)]<>"",0)), 'Indices T.P. matériaux'!CA$33)=0,NA(),'Indices T.P. matériaux'!CA34/IF('Indices T.P. matériaux'!CA$33=0, INDEX(Indices_TP___2025[TP 105 - porphyre concassé - tout calibre (àpd 12/2023)],MATCH(TRUE,Indices_TP___2025[TP 105 - porphyre concassé - tout calibre (àpd 12/2023)]<>"",0)), 'Indices T.P. matériaux'!CA$33)),NA()) -> 1 | DL127: =IFERROR(IF('Indices T.P. matériaux'!CB34/IF('Indices T.P. matériaux'!CB$33=0, INDEX(Indices_TP___2025[TP 105 - porphyre concassé - tout calibre (àpd 12/2023)],MATCH(TRUE,Indices_TP___2025[TP 105 - porphyre concassé - tout calibre (àpd 12/2023)]<>"",0)), 'Indices T.P. matériaux'!CB$33)=0,NA(),'Indices T.P. matériaux'!CB34/IF('Indices T.P. matériaux'!CB$33=0, INDEX(Indices_TP___2025[TP 105 - porphyre concassé - tout calibre (àpd 12/2023)],MATCH(TRUE,Indices_TP___2025[TP 105 - porphyre concassé - tout calibre (àpd 12/2023)]<>"",0)), 'Indices T.P. matériaux'!CB$33)),NA()) -> 1 | DM127: =IFERROR(IF('Indices T.P. matériaux'!CC34/IF('Indices T.P. matériaux'!CC$33=0, INDEX(Indices_TP___2025[TP 105 - porphyre concassé - tout calibre (àpd 12/2023)],MATCH(TRUE,Indices_TP___2025[TP 105 - porphyre concassé - tout calibre (àpd 12/2023)]<>"",0)), 'Indices T.P. matériaux'!CC$33)=0,NA(),'Indices T.P. matériaux'!CC34/IF('Indices T.P. matériaux'!CC$33=0, INDEX(Indices_TP___2025[TP 105 - porphyre concassé - tout calibre (àpd 12/2023)],MATCH(TRUE,Indices_TP___2025[TP 105 - porphyre concassé - tout calibre (àpd 12/2023)]<>"",0)), 'Indices T.P. matériaux'!CC$33)),NA()) -> 1 | DN127: =IFERROR(IF('Indices T.P. matériaux'!CD34/IF('Indices T.P. matériaux'!CD$33=0, INDEX(Indices_TP___2025[TP 105 - porphyre concassé - tout calibre (àpd 12/2023)],MATCH(TRUE,Indices_TP___2025[TP 105 - porphyre concassé - tout calibre (àpd 12/2023)]<>"",0)), 'Indices T.P. matériaux'!CD$33)=0,NA(),'Indices T.P. matériaux'!CD34/IF('Indices T.P. matériaux'!CD$33=0, INDEX(Indices_TP___2025[TP 105 - porphyre concassé - tout calibre (àpd 12/2023)],MATCH(TRUE,Indices_TP___2025[TP 105 - porphyre concassé - tout calibre (àpd 12/2023)]<>"",0)), 'Indices T.P. matériaux'!CD$33)),NA()) -> 0.990913811 | DO127: =IFERROR(IF('Indices T.P. matériaux'!CE34/IF('Indices T.P. matériaux'!CE$33=0, INDEX(Indices_TP___2025[TP 105 - porphyre concassé - tout calibre (àpd 12/2023)],MATCH(TRUE,Indices_TP___2025[TP 105 - porphyre concassé - tout calibre (àpd 12/2023)]<>"",0)), 'Indices T.P. matériaux'!CE$33)=0,NA(),'Indices T.P. matériaux'!CE34/IF('Indices T.P. matériaux'!CE$33=0, INDEX(Indices_TP___2025[TP 105 - porphyre concassé - tout calibre (àpd 12/2023)],MATCH(TRUE,Indices_TP___2025[TP 105 - porphyre concassé - tout calibre (àpd 12/2023)]<>"",0)), 'Indices T.P. matériaux'!CE$33)),NA()) -> 0.9907852044 | DP127: =IFERROR(IF('Indices T.P. matériaux'!CF34/IF('Indices T.P. matériaux'!CF$33=0, INDEX(Indices_TP___2025[TP 105 - porphyre concassé - tout calibre (àpd 12/2023)],MATCH(TRUE,Indices_TP___2025[TP 105 - porphyre concassé - tout calibre (àpd 12/2023)]<>"",0)), 'Indices T.P. matériaux'!CF$33)=0,NA(),'Indices T.P. matériaux'!CF34/IF('Indices T.P. matériaux'!CF$33=0, INDEX(Indices_TP___2025[TP 105 - porphyre concassé - tout calibre (àpd 12/2023)],MATCH(TRUE,Indices_TP___2025[TP 105 - porphyre concassé - tout calibre (àpd 12/2023)]<>"",0)), 'Indices T.P. matériaux'!CF$33)),NA()) -> 0.9907840083 | DQ127: =IFERROR(IF('Indices T.P. matériaux'!CG34/IF('Indices T.P. matériaux'!CG$33=0, INDEX(Indices_TP___2025[TP 105 - porphyre concassé - tout calibre (àpd 12/2023)],MATCH(TRUE,Indices_TP___2025[TP 105 - porphyre concassé - tout calibre (àpd 12/2023)]<>"",0)), 'Indices T.P. matériaux'!CG$33)=0,NA(),'Indices T.P. matériaux'!CG34/IF('Indices T.P. matériaux'!CG$33=0, INDEX(Indices_TP___2025[TP 105 - porphyre concassé - tout calibre (àpd 12/2023)],MATCH(TRUE,Indices_TP___2025[TP 105 - porphyre concassé - tout calibre (àpd 12/2023)]<>"",0)), 'Indices T.P. matériaux'!CG$33)),NA()) -> 0.9573241061 | DR127: =IFERROR(IF('Indices T.P. matériaux'!CH34/IF('Indices T.P. matériaux'!CH$33=0, INDEX(Indices_TP___2025[TP 105 - porphyre concassé - tout calibre (àpd 12/2023)],MATCH(TRUE,Indices_TP___2025[TP 105 - porphyre concassé - tout calibre (àpd 12/2023)]<>"",0)), 'Indices T.P. matériaux'!CH$33)=0,NA(),'Indices T.P. matériaux'!CH34/IF('Indices T.P. matériaux'!CH$33=0, INDEX(Indices_TP___2025[TP 105 - porphyre concassé - tout calibre (àpd 12/2023)],MATCH(TRUE,Indices_TP___2025[TP 105 - porphyre concassé - tout calibre (àpd 12/2023)]<>"",0)), 'Indices T.P. matériaux'!CH$33)),NA()) -> 0.9573241061 | DS127: =IFERROR(IF('Indices T.P. matériaux'!CI34/IF('Indices T.P. matériaux'!CI$33=0, INDEX(Indices_TP___2025[TP 105 - porphyre concassé - tout calibre (àpd 12/2023)],MATCH(TRUE,Indices_TP___2025[TP 105 - porphyre concassé - tout calibre (àpd 12/2023)]<>"",0)), 'Indices T.P. matériaux'!CI$33)=0,NA(),'Indices T.P. matériaux'!CI34/IF('Indices T.P. matériaux'!CI$33=0, INDEX(Indices_TP___2025[TP 105 - porphyre concassé - tout calibre (àpd 12/2023)],MATCH(TRUE,Indices_TP___2025[TP 105 - porphyre concassé - tout calibre (àpd 12/2023)]<>"",0)), 'Indices T.P. matériaux'!CI$33)),NA()) -> 0.9877888184 | DT127: =IFERROR(IF('Indices T.P. matériaux'!CJ34/IF('Indices T.P. matériaux'!CJ$33=0, INDEX(Indices_TP___2025[TP 105 - porphyre concassé - tout calibre (àpd 12/2023)],MATCH(TRUE,Indices_TP___2025[TP 105 - porphyre concassé - tout calibre (àpd 12/2023)]<>"",0)), 'Indices T.P. matériaux'!CJ$33)=0,NA(),'Indices T.P. matériaux'!CJ34/IF('Indices T.P. matériaux'!CJ$33=0, INDEX(Indices_TP___2025[TP 105 - porphyre concassé - tout calibre (àpd 12/2023)],MATCH(TRUE,Indices_TP___2025[TP 105 - porphyre concassé - tout calibre (àpd 12/2023)]<>"",0)), 'Indices T.P. matériaux'!CJ$33)),NA()) -> 0.9876720527 | DU127: =IFERROR(IF('Indices T.P. matériaux'!CK34/IF('Indices T.P. matériaux'!CK$33=0, INDEX(Indices_TP___2025[TP 105 - porphyre concassé - tout calibre (àpd 12/2023)],MATCH(TRUE,Indices_TP___2025[TP 105 - porphyre concassé - tout calibre (àpd 12/2023)]<>"",0)), 'Indices T.P. matériaux'!CK$33)=0,NA(),'Indices T.P. matériaux'!CK34/IF('Indices T.P. matériaux'!CK$33=0, INDEX(Indices_TP___2025[TP 105 - porphyre concassé - tout calibre (àpd 12/2023)],MATCH(TRUE,Indices_TP___2025[TP 105 - porphyre concassé - tout calibre (àpd 12/2023)]<>"",0)), 'Indices T.P. matériaux'!CK$33)),NA()) -> 0.9869167535 | DV127: =IFERROR(IF('Indices T.P. matériaux'!CL34/IF('Indices T.P. matériaux'!CL$33=0, INDEX(Indices_TP___2025[TP 105 - porphyre concassé - tout calibre (àpd 12/2023)],MATCH(TRUE,Indices_TP___2025[TP 105 - porphyre concassé - tout calibre (àpd 12/2023)]<>"",0)), 'Indices T.P. matériaux'!CL$33)=0,NA(),'Indices T.P. matériaux'!CL34/IF('Indices T.P. matériaux'!CL$33=0, INDEX(Indices_TP___2025[TP 105 - porphyre concassé - tout calibre (àpd 12/2023)],MATCH(TRUE,Indices_TP___2025[TP 105 - porphyre concassé - tout calibre (àpd 12/2023)]<>"",0)), 'Indices T.P. matériaux'!CL$33)),NA()) -> 0.9175285426 | DW127: =IFERROR(IF('Indices T.P. matériaux'!CM34/IF('Indices T.P. matériaux'!CM$33=0, INDEX(Indices_TP___2025[TP 105 - porphyre concassé - tout calibre (àpd 12/2023)],MATCH(TRUE,Indices_TP___2025[TP 105 - porphyre concassé - tout calibre (àpd 12/2023)]<>"",0)), 'Indices T.P. matériaux'!CM$33)=0,NA(),'Indices T.P. matériaux'!CM34/IF('Indices T.P. matériaux'!CM$33=0, INDEX(Indices_TP___2025[TP 105 - porphyre concassé - tout calibre (àpd 12/2023)],MATCH(TRUE,Indices_TP___2025[TP 105 - porphyre concassé - tout calibre (àpd 12/2023)]<>"",0)), 'Indices T.P. matériaux'!CM$33)),NA()) -> 1.000684838 | DX127: =IFERROR(IF('Indices T.P. matériaux'!CN34/IF('Indices T.P. matériaux'!CN$33=0, INDEX(Indices_TP___2025[TP 105 - porphyre concassé - tout calibre (àpd 12/2023)],MATCH(TRUE,Indices_TP___2025[TP 105 - porphyre concassé - tout calibre (àpd 12/2023)]<>"",0)), 'Indices T.P. matériaux'!CN$33)=0,NA(),'Indices T.P. matériaux'!CN34/IF('Indices T.P. matériaux'!CN$33=0, INDEX(Indices_TP___2025[TP 105 - porphyre concassé - tout calibre (àpd 12/2023)],MATCH(TRUE,Indices_TP___2025[TP 105 - porphyre concassé - tout calibre (àpd 12/2023)]<>"",0)), 'Indices T.P. matériaux'!CN$33)),NA()) -> 1.00074184 | DY127: =IFERROR(IF('Indices T.P. matériaux'!CO34/IF('Indices T.P. matériaux'!CO$33=0, INDEX(Indices_TP___2025[TP 105 - porphyre concassé - tout calibre (àpd 12/2023)],MATCH(TRUE,Indices_TP___2025[TP 105 - porphyre concassé - tout calibre (àpd 12/2023)]<>"",0)), 'Indices T.P. matériaux'!CO$33)=0,NA(),'Indices T.P. matériaux'!CO34/IF('Indices T.P. matériaux'!CO$33=0, INDEX(Indices_TP___2025[TP 105 - porphyre concassé - tout calibre (àpd 12/2023)],MATCH(TRUE,Indices_TP___2025[TP 105 - porphyre concassé - tout calibre (àpd 12/2023)]<>"",0)), 'Indices T.P. matériaux'!CO$33)),NA()) -> 1.012052371 | DZ127: =IFERROR(IF('Indices T.P. matériaux'!CP34/IF('Indices T.P. matériaux'!CP$33=0, INDEX(Indices_TP___2025[TP 105 - porphyre concassé - tout calibre (àpd 12/2023)],MATCH(TRUE,Indices_TP___2025[TP 105 - porphyre concassé - tout calibre (àpd 12/2023)]<>"",0)), 'Indices T.P. matériaux'!CP$33)=0,NA(),'Indices T.P. matériaux'!CP34/IF('Indices T.P. matériaux'!CP$33=0, INDEX(Indices_TP___2025[TP 105 - porphyre concassé - tout calibre (àpd 12/2023)],MATCH(TRUE,Indices_TP___2025[TP 105 - porphyre concassé - tout calibre (àpd 12/2023)]<>"",0)), 'Indices T.P. matériaux'!CP$33)),NA()) -> 1.011290505 | EA127: =IFERROR(IF('Indices T.P. matériaux'!CQ34/IF('Indices T.P. matériaux'!CQ$33=0, INDEX(Indices_TP___2025[TP 105 - porphyre concassé - tout calibre (àpd 12/2023)],MATCH(TRUE,Indices_TP___2025[TP 105 - porphyre concassé - tout calibre (àpd 12/2023)]<>"",0)), 'Indices T.P. matériaux'!CQ$33)=0,NA(),'Indices T.P. matériaux'!CQ34/IF('Indices T.P. matériaux'!CQ$33=0, INDEX(Indices_TP___2025[TP 105 - porphyre concassé - tout calibre (àpd 12/2023)],MATCH(TRUE,Indices_TP___2025[TP 105 - porphyre concassé - tout calibre (àpd 12/2023)]<>"",0)), 'Indices T.P. matériaux'!CQ$33)),NA()) -> 1.001995787 | EB127: =IFERROR(IF('Indices T.P. matériaux'!CR34/IF('Indices T.P. matériaux'!CR$33=0, INDEX(Indices_TP___2025[TP 105 - porphyre concassé - tout calibre (àpd 12/2023)],MATCH(TRUE,Indices_TP___2025[TP 105 - porphyre concassé - tout calibre (àpd 12/2023)]<>"",0)), 'Indices T.P. matériaux'!CR$33)=0,NA(),'Indices T.P. matériaux'!CR34/IF('Indices T.P. matériaux'!CR$33=0, INDEX(Indices_TP___2025[TP 105 - porphyre concassé - tout calibre (àpd 12/2023)],MATCH(TRUE,Indices_TP___2025[TP 105 - porphyre concassé - tout calibre (àpd 12/2023)]<>"",0)), 'Indices T.P. matériaux'!CR$33)),NA()) -> 1.009946796 | EC127: =IFERROR(IF('Indices T.P. matériaux'!CS34/IF('Indices T.P. matériaux'!CS$33=0, INDEX(Indices_TP___2025[TP 105 - porphyre concassé - tout calibre (àpd 12/2023)],MATCH(TRUE,Indices_TP___2025[TP 105 - porphyre concassé - tout calibre (àpd 12/2023)]<>"",0)), 'Indices T.P. matériaux'!CS$33)=0,NA(),'Indices T.P. matériaux'!CS34/IF('Indices T.P. matériaux'!CS$33=0, INDEX(Indices_TP___2025[TP 105 - porphyre concassé - tout calibre (àpd 12/2023)],MATCH(TRUE,Indices_TP___2025[TP 105 - porphyre concassé - tout calibre (àpd 12/2023)]<>"",0)), 'Indices T.P. matériaux'!CS$33)),NA()) -> 1.009083202 | ED127: =IFERROR(IF('Indices T.P. matériaux'!CT34/IF('Indices T.P. matériaux'!CT$33=0, INDEX(Indices_TP___2025[TP 105 - porphyre concassé - tout calibre (àpd 12/2023)],MATCH(TRUE,Indices_TP___2025[TP 105 - porphyre concassé - tout calibre (àpd 12/2023)]<>"",0)), 'Indices T.P. matériaux'!CT$33)=0,NA(),'Indices T.P. matériaux'!CT34/IF('Indices T.P. matériaux'!CT$33=0, INDEX(Indices_TP___2025[TP 105 - porphyre concassé - tout calibre (àpd 12/2023)],MATCH(TRUE,Indices_TP___2025[TP 105 - porphyre concassé - tout calibre (àpd 12/2023)]<>"",0)), 'Indices T.P. matériaux'!CT$33)),NA()) ->  | EE127: =IFERROR(IF('Indices T.P. matériaux'!CU34/IF('Indices T.P. matériaux'!CU$33=0, INDEX(Indices_TP___2025[TP 105 - porphyre concassé - tout calibre (àpd 12/2023)],MATCH(TRUE,Indices_TP___2025[TP 105 - porphyre concassé - tout calibre (àpd 12/2023)]<>"",0)), 'Indices T.P. matériaux'!CU$33)=0,NA(),'Indices T.P. matériaux'!CU34/IF('Indices T.P. matériaux'!CU$33=0, INDEX(Indices_TP___2025[TP 105 - porphyre concassé - tout calibre (àpd 12/2023)],MATCH(TRUE,Indices_TP___2025[TP 105 - porphyre concassé - tout calibre (àpd 12/2023)]<>"",0)), 'Indices T.P. matériaux'!CU$33)),NA()) ->  | EF127: =IFERROR(IF('Indices T.P. matériaux'!CV34/IF('Indices T.P. matériaux'!CV$33=0, INDEX(Indices_TP___2025[TP 105 - porphyre concassé - tout calibre (àpd 12/2023)],MATCH(TRUE,Indices_TP___2025[TP 105 - porphyre concassé - tout calibre (àpd 12/2023)]<>"",0)), 'Indices T.P. matériaux'!CV$33)=0,NA(),'Indices T.P. matériaux'!CV34/IF('Indices T.P. matériaux'!CV$33=0, INDEX(Indices_TP___2025[TP 105 - porphyre concassé - tout calibre (àpd 12/2023)],MATCH(TRUE,Indices_TP___2025[TP 105 - porphyre concassé - tout calibre (àpd 12/2023)]<>"",0)), 'Indices T.P. matériaux'!CV$33)),NA()) ->  | EG127: =IFERROR(IF('Indices T.P. matériaux'!CW34/IF('Indices T.P. matériaux'!CW$33=0, INDEX(Indices_TP___2025[TP 105 - porphyre concassé - tout calibre (àpd 12/2023)],MATCH(TRUE,Indices_TP___2025[TP 105 - porphyre concassé - tout calibre (àpd 12/2023)]<>"",0)), 'Indices T.P. matériaux'!CW$33)=0,NA(),'Indices T.P. matériaux'!CW34/IF('Indices T.P. matériaux'!CW$33=0, INDEX(Indices_TP___2025[TP 105 - porphyre concassé - tout calibre (àpd 12/2023)],MATCH(TRUE,Indices_TP___2025[TP 105 - porphyre concassé - tout calibre (àpd 12/2023)]<>"",0)), 'Indices T.P. matériaux'!CW$33)),NA()) ->  | EH127: =IFERROR(IF('Indices Grymafer'!D31/'Indices Grymafer'!D$30=0,NA(),'Indices Grymafer'!D31/'Indices Grymafer'!D$30),NA()) -> 0.9938366718 | EI127: =IFERROR(IF('Indices Grymafer'!E31/'Indices Grymafer'!E$30=0,NA(),'Indices Grymafer'!E31/'Indices Grymafer'!E$30),NA()) -> 0.9961038961 | EJ127: =IFERROR(IF('Indices Grymafer'!F31/'Indices Grymafer'!F$30=0,NA(),'Indices Grymafer'!F31/'Indices Grymafer'!F$30),NA()) -> 1.001112347 | EK127: =IFERROR(IF('Indices Grymafer'!G31/'Indices Grymafer'!G$30=0,NA(),'Indices Grymafer'!G31/'Indices Grymafer'!G$30),NA()) -> 0.9961290323 | EL127: =IFERROR(IF('Indices T.P. matériaux'!CZ34/'Indices T.P. matériaux'!CZ$33=0,NA(),'Indices T.P. matériaux'!CZ34/'Indices T.P. matériaux'!CZ$33),NA()) -> 1.007769552 | EM127: =IFERROR(IF('Indices T.P. matériaux'!DA34/'Indices T.P. matériaux'!DA$33=0,NA(),'Indices T.P. matériaux'!DA34/'Indices T.P. matériaux'!DA$33),NA()) -> 1.005122832 | EN127: =IFERROR(IF('Indices T.P. matériaux'!DB34/'Indices T.P. matériaux'!DB$33=0,NA(),'Indices T.P. matériaux'!DB34/'Indices T.P. matériaux'!DB$33),NA()) -> 1.000439367 | EO127: =IFERROR(IF('Indices T.P. matériaux'!DC34/'Indices T.P. matériaux'!DC$33=0,NA(),'Indices T.P. matériaux'!DC34/'Indices T.P. matériaux'!DC$33),NA()) -> 1.00150858 | EP127: =IFERROR(IF('Indices T.P. matériaux'!DD34/'Indices T.P. matériaux'!DD$33=0,NA(),'Indices T.P. matériaux'!DD34/'Indices T.P. matériaux'!DD$33),NA()) -> 0.865497076 | EQ127: =IFERROR(IF('Indices T.P. matériaux'!DE34/'Indices T.P. matériaux'!DE$33=0,NA(),'Indices T.P. matériaux'!DE34/'Indices T.P. matériaux'!DE$33),NA()) -> 1.001598195 | ER127: =IFERROR(IF('Indices T.P. matériaux'!DF34/'Indices T.P. matériaux'!DF$33=0,NA(),'Indices T.P. matériaux'!DF34/'Indices T.P. matériaux'!DF$33),NA()) -> 1 | ES127: =IFERROR(IF('Indices T.P. matériaux'!DG34/'Indices T.P. matériaux'!DG$33=0,NA(),'Indices T.P. matériaux'!DG34/'Indices T.P. matériaux'!DG$33),NA()) -> 1.001598195 | EU127: =B127 -> 2018-02-01 | EV127: =IFERROR(IF('Indices des produits & services'!D31/'Indices des produits & services'!D$30=0,NA(),'Indices des produits & services'!D31/'Indices des produits & services'!D$30),NA()) -> 1 | EW127: =IFERROR(IF('Indices des produits & services'!E31/'Indices des produits & services'!E$30=0,NA(),'Indices des produits & services'!E31/'Indices des produits & services'!E$30),NA()) -> 1 | EX127: =IFERROR(IF('Indices des produits & services'!F31/'Indices des produits & services'!F$30=0,NA(),'Indices des produits & services'!F31/'Indices des produits & services'!F$30),NA()) -> 1 | EY127: =IFERROR(IF('Indices des produits & services'!G31/'Indices des produits & services'!G$30=0,NA(),'Indices des produits & services'!G31/'Indices des produits & services'!G$30),NA()) -> 1 | EZ127: =IFERROR(IF('Indices des produits & services'!H31/'Indices des produits & services'!H$30=0,NA(),'Indices des produits & services'!H31/'Indices des produits & services'!H$30),NA()) -> 1 | FA127: =IFERROR(IF('Indices des produits & services'!I31/'Indices des produits & services'!I$30=0,NA(),'Indices des produits & services'!I31/'Indices des produits & services'!I$30),NA()) -> 1 | FB127: =IFERROR(IF('Indices des produits & services'!J31/'Indices des produits & services'!J$30=0,NA(),'Indices des produits & services'!J31/'Indices des produits & services'!J$30),NA()) -> 1 | FC127: =IFERROR(IF('Indices des produits & services'!K31/'Indices des produits & services'!K$30=0,NA(),'Indices des produits & services'!K31/'Indices des produits & services'!K$30),NA()) -> 1 | FD127: =IFERROR(IF('Indices des produits & services'!L31/'Indices des produits & services'!L$30=0,NA(),'Indices des produits & services'!L31/'Indices des produits & services'!L$30),NA()) -> 1 | FE127: =IFERROR(IF('Indices des produits & services'!M31/'Indices des produits & services'!M$30=0,NA(),'Indices des produits & services'!M31/'Indices des produits & services'!M$30),NA()) -> 1 | FF127: =IFERROR(IF('Indices des produits & services'!N31/'Indices des produits & services'!N$30=0,NA(),'Indices des produits & services'!N31/'Indices des produits & services'!N$30),NA()) -> 1 | FG127: =IFERROR(IF('Indices des produits & services'!O31/'Indices des produits & services'!O$30=0,NA(),'Indices des produits & services'!O31/'Indices des produits & services'!O$30),NA()) -> 1 | FH127: =IFERROR(IF('Indices des produits & services'!P31/'Indices des produits & services'!P$30=0,NA(),'Indices des produits & services'!P31/'Indices des produits & services'!P$30),NA()) -> 0.9849183075 | FI127: =IFERROR(IF('Indices des produits & services'!Q31/'Indices des produits & services'!Q$30=0,NA(),'Indices des produits & services'!Q31/'Indices des produits & services'!Q$30),NA()) -> 1.008733624 | FJ127: =IFERROR(IF('Indices des produits & services'!R31/'Indices des produits & services'!R$30=0,NA(),'Indices des produits & services'!R31/'Indices des produits & services'!R$30),NA()) -> 1.013443526 | FK127: =IFERROR(IF('Indices des produits & services'!S31/'Indices des produits & services'!S$30=0,NA(),'Indices des produits & services'!S31/'Indices des produits & services'!S$30),NA()) -> 1.02681505 | FL127: =IFERROR(IF('Indices des produits & services'!T31/'Indices des produits & services'!T$30=0,NA(),'Indices des produits & services'!T31/'Indices des produits & services'!T$30),NA()) -> 1.002262699 | FM127: =IFERROR(IF('Indices des produits & services'!U31/'Indices des produits & services'!U$30=0,NA(),'Indices des produits & services'!U31/'Indices des produits & services'!U$30),NA()) -> 1.002638825 | FN127: =IFERROR(IF('Indices des produits & services'!V31/'Indices des produits & services'!V$30=0,NA(),'Indices des produits & services'!V31/'Indices des produits & services'!V$30),NA()) -> 1 | FO127: =IFERROR(IF('Indices des produits & services'!W31/'Indices des produits & services'!W$30=0,NA(),'Indices des produits & services'!W31/'Indices des produits & services'!W$30),NA()) -> 1.008172192 | FP127: =IFERROR(IF('Indices des produits & services'!X31/'Indices des produits & services'!X$30=0,NA(),'Indices des produits & services'!X31/'Indices des produits & services'!X$30),NA()) -> 1 | FQ127: =IFERROR(IF('Indices des produits & services'!Y31/'Indices des produits & services'!Y$30=0,NA(),'Indices des produits & services'!Y31/'Indices des produits & services'!Y$30),NA()) -> 1.003987928 | FR127: =IFERROR(IF('Indices des produits & services'!Z31/'Indices des produits & services'!Z$30=0,NA(),'Indices des produits & services'!Z31/'Indices des produits & services'!Z$30),NA()) -> 0.9838709677 | FS127: =IFERROR(IF('Indices des produits & services'!AA31/'Indices des produits & services'!AA$30=0,NA(),'Indices des produits & services'!AA31/'Indices des produits & services'!AA$30),NA()) -> 0.8880399925 | FT127: =IFERROR(IF('Indices des produits & services'!AB31/'Indices des produits & services'!AB$30=0,NA(),'Indices des produits & services'!AB31/'Indices des produits & services'!AB$30),NA()) -> 1.015153461 | FU127: =IFERROR(IF('Indices des produits & services'!AC31/'Indices des produits & services'!AC$30=0,NA(),'Indices des produits & services'!AC31/'Indices des produits & services'!AC$30),NA()) -> 1.018070575 | FV127: =IFERROR(IF('Indices des produits & services'!AD31/'Indices des produits & services'!AD$30=0,NA(),'Indices des produits & services'!AD31/'Indices des produits & services'!AD$30),NA()) -> 1.01448009 | FW127: =IFERROR(IF('Indices des produits & services'!AE31/'Indices des produits & services'!AE$30=0,NA(),'Indices des produits & services'!AE31/'Indices des produits & services'!AE$30),NA()) -> 1.011367512 | FX127: =IFERROR(IF('Indices des produits & services'!AF31/'Indices des produits & services'!AF$30=0,NA(),'Indices des produits & services'!AF31/'Indices des produits & services'!AF$30),NA()) -> 1.000726041 | FY127: =IFERROR(IF('Indices des produits & services'!AG31/'Indices des produits & services'!AG$30=0,NA(),'Indices des produits & services'!AG31/'Indices des produits & services'!AG$30),NA()) -> 1.003660705 | FZ127: =IFERROR(IF('Indices des produits & services'!AH31/'Indices des produits & services'!AH$30=0,NA(),'Indices des produits & services'!AH31/'Indices des produits & services'!AH$30),NA()) -> 0.9708929452 | GA127: =IFERROR(IF('Indices des produits & services'!AI31/'Indices des produits & services'!AI$30=0,NA(),'Indices des produits & services'!AI31/'Indices des produits & services'!AI$30),NA()) -> 0.9983843047 | GB127: =IFERROR(IF('Indices des produits & services'!AJ31/'Indices des produits & services'!AJ$30=0,NA(),'Indices des produits & services'!AJ31/'Indices des produits & services'!AJ$30),NA()) -> 1 | GC127: =IFERROR(IF('Indices des produits & services'!AK31/'Indices des produits & services'!AK$30=0,NA(),'Indices des produits & services'!AK31/'Indices des produits & services'!AK$30),NA()) -> 0.9552191065 | GD127: =IFERROR(IF('Indices des produits & services'!AL31/'Indices des produits & services'!AL$30=0,NA(),'Indices des produits & services'!AL31/'Indices des produits & services'!AL$30),NA()) -> 1.004762368 | GE127: =IFERROR(IF('Indices des produits & services'!AM31/'Indices des produits & services'!AM$30=0,NA(),'Indices des produits & services'!AM31/'Indices des produits & services'!AM$30),NA()) -> 1.018667393 | GF127: =IFERROR(IF('Indices des produits & services'!AN31/'Indices des produits & services'!AN$30=0,NA(),'Indices des produits & services'!AN31/'Indices des produits & services'!AN$30),NA()) -> 0.986707918 | GG127: =IFERROR(IF('Indices des produits & services'!AO31/'Indices des produits & services'!AO$30=0,NA(),'Indices des produits & services'!AO31/'Indices des produits & services'!AO$30),NA()) -> 1.001855693 | GH127: =IFERROR(IF('Indices des produits & services'!AP31/'Indices des produits & services'!AP$30=0,NA(),'Indices des produits & services'!AP31/'Indices des produits & services'!AP$30),NA()) -> 0.9980730115 | GI127: =IFERROR(IF('Indices des produits & services'!AQ31/'Indices des produits & services'!AQ$30=0,NA(),'Indices des produits & services'!AQ31/'Indices des produits & services'!AQ$30),NA()) -> 1.002297342 | GJ127: =IFERROR(IF('Indices des produits & services'!AR31/'Indices des produits & services'!AR$30=0,NA(),'Indices des produits & services'!AR31/'Indices des produits & services'!AR$30),NA()) -> 1.011790715 | GK127: =IFERROR(IF('Indices des produits & services'!AS31/'Indices des produits & services'!AS$30=0,NA(),'Indices des produits & services'!AS31/'Indices des produits & services'!AS$30),NA()) -> 0.9987495737 | GL127: =IFERROR(IF('Indices des produits & services'!AT31/'Indices des produits & services'!AT$30=0,NA(),'Indices des produits & services'!AT31/'Indices des produits & services'!AT$30),NA()) -> 1.008519224 | GM127: =IFERROR(IF('Indices des produits & services'!AU31/'Indices des produits & services'!AU$30=0,NA(),'Indices des produits & services'!AU31/'Indices des produits & services'!AU$30),NA()) -> 1.011964874 | GN127: =IFERROR(IF('Indices des produits & services'!AV31/'Indices des produits & services'!AV$30=0,NA(),'Indices des produits & services'!AV31/'Indices des produits & services'!AV$30),NA()) -> 1.023809524 | GO127: =IFERROR(IF('Indices des produits & services'!AW31/'Indices des produits & services'!AW$30=0,NA(),'Indices des produits & services'!AW31/'Indices des produits & services'!AW$30),NA()) -> 1.084877687 | GP127: =IFERROR(IF('Indices des produits & services'!AX31/'Indices des produits & services'!AX$30=0,NA(),'Indices des produits & services'!AX31/'Indices des produits & services'!AX$30),NA()) -> 1.014726737 | GQ127: =IFERROR(IF('Indices des produits & services'!AY31/'Indices des produits & services'!AY$30=0,NA(),'Indices des produits & services'!AY31/'Indices des produits & services'!AY$30),NA()) -> 1.014848783 | GR127: =IFERROR(IF('Indices des produits & services'!AZ31/'Indices des produits & services'!AZ$30=0,NA(),'Indices des produits & services'!AZ31/'Indices des produits & services'!AZ$30),NA()) -> 0.9906154518 | GS127: =IFERROR(IF('Indices des produits & services'!BA31/'Indices des produits & services'!BA$30=0,NA(),'Indices des produits & services'!BA31/'Indices des produits & services'!BA$30),NA()) -> 0.9768767123 | GT127: =IFERROR(IF('Indices des produits & services'!BB31/'Indices des produits & services'!BB$30=0,NA(),'Indices des produits & services'!BB31/'Indices des produits & services'!BB$30),NA()) -> 1.016393443 | GU127: =IFERROR(IF('Indices des produits & services'!BC31/'Indices des produits & services'!BC$30=0,NA(),'Indices des produits & services'!BC31/'Indices des produits & services'!BC$30),NA()) -> 1.018233558 | GV127: =IFERROR(IF('Indices des produits & services'!BD31/'Indices des produits & services'!BD$30=0,NA(),'Indices des produits & services'!BD31/'Indices des produits & services'!BD$30),NA()) -> 1.019291875 | GW127: =IFERROR(IF('Indices des produits & services'!BE31/'Indices des produits & services'!BE$30=0,NA(),'Indices des produits & services'!BE31/'Indices des produits & services'!BE$30),NA()) -> 0.9934566787 | GX127: =IFERROR(IF('Indices des produits & services'!BF31/'Indices des produits & services'!BF$30=0,NA(),'Indices des produits & services'!BF31/'Indices des produits & services'!BF$30),NA()) -> 1 | GY127: =IFERROR(IF('Indices des produits & services'!BG31/'Indices des produits & services'!BG$30=0,NA(),'Indices des produits & services'!BG31/'Indices des produits & services'!BG$30),NA()) -> 1.011916708 | GZ127: =IFERROR(IF('Indices des produits & services'!BH31/'Indices des produits & services'!BH$30=0,NA(),'Indices des produits & services'!BH31/'Indices des produits & services'!BH$30),NA()) -> 0.9918022288 | HA127: =IFERROR(IF('Indices des produits & services'!BI31/'Indices des produits & services'!BI$30=0,NA(),'Indices des produits & services'!BI31/'Indices des produits & services'!BI$30),NA()) -> 1.007956555 | HB127: =IFERROR(IF('Indices des produits & services'!BJ31/'Indices des produits & services'!BJ$30=0,NA(),'Indices des produits & services'!BJ31/'Indices des produits & services'!BJ$30),NA()) -> 0.993381397 | HC127: =IFERROR(IF('Indices des produits & services'!BK31/'Indices des produits & services'!BK$30=0,NA(),'Indices des produits & services'!BK31/'Indices des produits & services'!BK$30),NA()) -> 0.9926717924 | HD127: =IFERROR(IF('Indices des produits & services'!BL31/'Indices des produits & services'!BL$30=0,NA(),'Indices des produits & services'!BL31/'Indices des produits & services'!BL$30),NA()) -> 0.982894561 | HE127: =IFERROR(IF('Indices des produits & services'!BM31/'Indices des produits & services'!BM$30=0,NA(),'Indices des produits & services'!BM31/'Indices des produits & services'!BM$30),NA()) -> 0.9990828092 | HF127: =IFERROR(IF('Indices des produits & services'!BN31/'Indices des produits & services'!BN$30=0,NA(),'Indices des produits & services'!BN31/'Indices des produits & services'!BN$30),NA()) -> 1 | HG127: =IFERROR(IF('Indices des produits & services'!BO31/'Indices des produits & services'!BO$30=0,NA(),'Indices des produits & services'!BO31/'Indices des produits & services'!BO$30),NA()) -> 1 | HH127: =IFERROR(IF('Indices des produits & services'!BP31/'Indices des produits & services'!BP$30=0,NA(),'Indices des produits & services'!BP31/'Indices des produits & services'!BP$30),NA()) -> 1.021165308 | HI127: =IFERROR(IF('Indices des produits & services'!BQ31/'Indices des produits & services'!BQ$30=0,NA(),'Indices des produits & services'!BQ31/'Indices des produits & services'!BQ$30),NA()) -> 1.00830225 | HJ127: =IFERROR(IF('Indices des produits & services'!BR31/'Indices des produits & services'!BR$30=0,NA(),'Indices des produits & services'!BR31/'Indices des produits & services'!BR$30),NA()) -> 1.011229023 | HK127: =IFERROR(IF('Indices des produits & services'!BS31/'Indices des produits & services'!BS$30=0,NA(),'Indices des produits & services'!BS31/'Indices des produits & services'!BS$30),NA()) -> 1.00134786 | HL127: =IFERROR(IF('Indices des produits & services'!BT31/'Indices des produits & services'!BT$30=0,NA(),'Indices des produits & services'!BT31/'Indices des produits & services'!BT$30),NA()) -> 1.008747045 | HM127: =IFERROR(IF('Indices des produits & services'!BU31/'Indices des produits & services'!BU$30=0,NA(),'Indices des produits & services'!BU31/'Indices des produits & services'!BU$30),NA()) -> 1.011112397 | HN127: =IFERROR(IF('Indices des produits & services'!BV31/'Indices des produits & services'!BV$30=0,NA(),'Indices des produits & services'!BV31/'Indices des produits & services'!BV$30),NA()) -> 1.025992202 | HO127: =IFERROR(IF('Indices des produits & services'!BW31/'Indices des produits & services'!BW$30=0,NA(),'Indices des produits & services'!BW31/'Indices des produits & services'!BW$30),NA()) -> 1 | HP127: =IFERROR(IF('Indices des produits & services'!BX31/'Indices des produits & services'!BX$30=0,NA(),'Indices des produits & services'!BX31/'Indices des produits & services'!BX$30),NA()) -> 1.025211934 | HQ127: =IFERROR(IF('Indices des produits & services'!BY31/'Indices des produits & services'!BY$30=0,NA(),'Indices des produits & services'!BY31/'Indices des produits & services'!BY$30),NA()) -> 1.043463497 | HR127: =IFERROR(IF('Indices des produits & services'!BZ31/'Indices des produits & services'!BZ$30=0,NA(),'Indices des produits & services'!BZ31/'Indices des produits & services'!BZ$30),NA()) -> 1.020474591 | HS127: =IFERROR(IF('Indices des produits & services'!CA31/'Indices des produits & services'!CA$30=0,NA(),'Indices des produits & services'!CA31/'Indices des produits & services'!CA$30),NA()) -> 1.048813559 | HT127: =IFERROR(IF('Indices des produits & services'!CB31/'Indices des produits & services'!CB$30=0,NA(),'Indices des produits & services'!CB31/'Indices des produits & services'!CB$30),NA()) -> 1 | HU127: =IFERROR(IF('Indices des produits & services'!CC31/'Indices des produits & services'!CC$30=0,NA(),'Indices des produits & services'!CC31/'Indices des produits & services'!CC$30),NA()) -> 1.002037752 | HV127: =IFERROR(IF('Indices des produits & services'!CD31/'Indices des produits & services'!CD$30=0,NA(),'Indices des produits & services'!CD31/'Indices des produits & services'!CD$30),NA()) -> 1.010361599 | HW127: =IFERROR(IF('Indices des produits & services'!CE31/'Indices des produits & services'!CE$30=0,NA(),'Indices des produits & services'!CE31/'Indices des produits & services'!CE$30),NA()) -> 1.001924187 | HX127: =IFERROR(IF('Indices des produits & services'!CF31/'Indices des produits & services'!CF$30=0,NA(),'Indices des produits & services'!CF31/'Indices des produits & services'!CF$30),NA()) -> 1.002280873 | HY127: =IFERROR(IF('Indices des produits & services'!CG31/'Indices des produits & services'!CG$30=0,NA(),'Indices des produits & services'!CG31/'Indices des produits & services'!CG$30),NA()) -> 1 | HZ127: =IFERROR(IF('Indices des produits & services'!CH31/'Indices des produits & services'!CH$30=0,NA(),'Indices des produits & services'!CH31/'Indices des produits & services'!CH$30),NA()) -> 1.001088969 | IA127: =IFERROR(IF('Indices des produits & services'!CI31/'Indices des produits & services'!CI$30=0,NA(),'Indices des produits & services'!CI31/'Indices des produits & services'!CI$30),NA()) -> 1.003171771 | IB127: =IFERROR(IF('Indices des produits & services'!CJ31/'Indices des produits & services'!CJ$30=0,NA(),'Indices des produits & services'!CJ31/'Indices des produits & services'!CJ$30),NA()) -> 1.002651438 | IC127: =IFERROR(IF('Indices des produits & services'!CK31/'Indices des produits & services'!CK$30=0,NA(),'Indices des produits & services'!CK31/'Indices des produits & services'!CK$30),NA()) -> 0.9920965656 | ID127: =IFERROR(IF('Indices des produits & services'!CL31/'Indices des produits & services'!CL$30=0,NA(),'Indices des produits & services'!CL31/'Indices des produits & services'!CL$30),NA()) -> 0.9890032426 | IE127: =IFERROR(IF('Indices des produits & services'!CM31/'Indices des produits & services'!CM$30=0,NA(),'Indices des produits & services'!CM31/'Indices des produits & services'!CM$30),NA()) -> 1.002860821 | IF127: =IFERROR(IF('Indices des produits & services'!CN31/'Indices des produits & services'!CN$30=0,NA(),'Indices des produits & services'!CN31/'Indices des produits & services'!CN$30),NA()) -> 1.000924689 | IH127: =B127 -> 2018-02-01 | II127: =IFERROR(IF('Indices courants'!J29/'Indices courants'!J$28=0,NA(),'Indices courants'!J29/'Indices courants'!J$28),NA()) -> 1.000353994 | IJ127: =IFERROR(IF('Indices courants'!K29/'Indices courants'!K$28=0,NA(),'Indices courants'!K29/'Indices courants'!K$28),NA()) -> 1.00031295 | IK127: =IFERROR(IF('Indices courants'!L29/'Indices courants'!L$28=0,NA(),'Indices courants'!L29/'Indices courants'!L$28),NA()) -> 1.000344299 | IL127: =IFERROR(IF('Indices courants'!M29/'Indices courants'!M$28=0,NA(),'Indices courants'!M29/'Indices courants'!M$28),NA()) -> 1.000354359 | IM127: =IFERROR(IF('Indices courants'!N29/'Indices courants'!N$28=0,NA(),'Indices courants'!N29/'Indices courants'!N$28),NA()) -> 1.000313264 | IN127: =IFERROR(IF('Indices courants'!O29/'Indices courants'!O$28=0,NA(),'Indices courants'!O29/'Indices courants'!O$28),NA()) -> 1.000344644 | IO127: =IFERROR(IF('Indices courants'!P29/'Indices courants'!P$28=0,NA(),'Indices courants'!P29/'Indices courants'!P$28),NA()) -> 1.000361973 | IP127: =IFERROR(IF('Indices courants'!Q29/'Indices courants'!Q$28=0,NA(),'Indices courants'!Q29/'Indices courants'!Q$28),NA()) -> 1.000319806 | IQ127: =IFERROR(IF('Indices courants'!R29/'Indices courants'!R$28=0,NA(),'Indices courants'!R29/'Indices courants'!R$28),NA()) -> 1.000351842 | IR127: =IFERROR(IF('Indices courants'!S29/'Indices courants'!S$28=0,NA(),'Indices courants'!S29/'Indices courants'!S$28),NA()) -> 1.000367955 | IS127: =IFERROR(IF('Indices courants'!T29/'Indices courants'!T$28=0,NA(),'Indices courants'!T29/'Indices courants'!T$28),NA()) -> 1.000357433 | IT127: =IFERROR(IF('Indices courants'!U29/'Indices courants'!U$28=0,NA(),'Indices courants'!U29/'Indices courants'!U$28),NA()) -> 1.000357491 | IU127: =IFERROR(IF('Indices courants'!V29/'Indices courants'!V$28=0,NA(),'Indices courants'!V29/'Indices courants'!V$28),NA()) -> 1.000795355 | IV127: =IFERROR(IF('Indices courants'!W29/'Indices courants'!W$28=0,NA(),'Indices courants'!W29/'Indices courants'!W$28),NA()) -> 1.000747737 | IW127: =IFERROR(IF('Indices courants'!X29/'Indices courants'!X$28=0,NA(),'Indices courants'!X29/'Indices courants'!X$28),NA()) -> 0.9960738123 | IX127: =IFERROR(IF('Indices courants'!Y29/'Indices courants'!Y$28=0,NA(),'Indices courants'!Y29/'Indices courants'!Y$28),NA()) -> 0.9968739717 | IY127: =IFERROR(IF('Indices courants'!Z29/'Indices courants'!Z$28=0,NA(),'Indices courants'!Z29/'Indices courants'!Z$28),NA()) -> 0.995246718 | IZ127: =IFERROR(IF('Indices courants'!AA29/'Indices courants'!AA$28=0,NA(),'Indices courants'!AA29/'Indices courants'!AA$28),NA()) -> 0.9961118311 | JA127: =IFERROR(IF('Indices courants'!AB29/'Indices courants'!AB$28=0,NA(),'Indices courants'!AB29/'Indices courants'!AB$28),NA()) -> 0.9951576345 | JB127: =IFERROR(IF('Indices courants'!AC29/'Indices courants'!AC$28=0,NA(),'Indices courants'!AC29/'Indices courants'!AC$28),NA()) -> 0.9935228745 | JC127: =IFERROR(IF('Indices courants'!AD29/'Indices courants'!AD$28=0,NA(),'Indices courants'!AD29/'Indices courants'!AD$28),NA()) -> 1 | JD127: =IFERROR(IF('Indexations des salaires par CP'!BY38/'Indexations des salaires par CP'!BY$37=0,NA(),'Indexations des salaires par CP'!BY38/'Indexations des salaires par CP'!BY$37),NA()) -> 1 | JE127: =IFERROR(IF('Indexations des salaires par CP'!BZ38/'Indexations des salaires par CP'!BZ$37=0,NA(),'Indexations des salaires par CP'!BZ38/'Indexations des salaires par CP'!BZ$37),NA()) -> 1 | JF127: =IFERROR(IF('Indexations des salaires par CP'!CA38/'Indexations des salaires par CP'!CA$37=0,NA(),'Indexations des salaires par CP'!CA38/'Indexations des salaires par CP'!CA$37),NA()) -> 1 | JG127: =IFERROR(IF('Indexations des salaires par CP'!CB38/'Indexations des salaires par CP'!CB$37=0,NA(),'Indexations des salaires par CP'!CB38/'Indexations des salaires par CP'!CB$37),NA()) -> 1 | JH127: =IFERROR(IF('Indexations des salaires par CP'!CC38/'Indexations des salaires par CP'!CC$37=0,NA(),'Indexations des salaires par CP'!CC38/'Indexations des salaires par CP'!CC$37),NA()) -> 1 | JI127: =IFERROR(IF('Indexations des salaires par CP'!CD38/'Indexations des salaires par CP'!CD$37=0,NA(),'Indexations des salaires par CP'!CD38/'Indexations des salaires par CP'!CD$37),NA()) -> 1 | JJ127: =IFERROR(IF('Indexations des salaires par CP'!CE38/'Indexations des salaires par CP'!CE$37=0,NA(),'Indexations des salaires par CP'!CE38/'Indexations des salaires par CP'!CE$37),NA()) -> 1 | JK127: =IFERROR(IF('Indexations des salaires par CP'!CF38/'Indexations des salaires par CP'!CF$37=0,NA(),'Indexations des salaires par CP'!CF38/'Indexations des salaires par CP'!CF$37),NA()) -> 1 | JL127: =IFERROR(IF('Indexations des salaires par CP'!CG38/'Indexations des salaires par CP'!CG$37=0,NA(),'Indexations des salaires par CP'!CG38/'Indexations des salaires par CP'!CG$37),NA()) -> 1 | JM127: =IFERROR(IF('Indexations des salaires par CP'!CH38/'Indexations des salaires par CP'!CH$37=0,NA(),'Indexations des salaires par CP'!CH38/'Indexations des salaires par CP'!CH$37),NA()) -> 1
